{"text_format":"1","workbook":"xlsx","n_sheets":75,"sheets":["Dates","Intro","Planner","Guides","CL11","CL12","CL13","CL14","CL15","CL16","CL17","CL18","CL19","CL21","CL22","CL23","CL24","CL25","CL26","CL31","CL32","CL33","CL34","CL35","CL36","CL37","CL39","CL41","CL42","CL43","CL44","CL45","CL46","CL47","CL48","CL49","CL51","CL52","CL53","CL54","CL55","CL56","CL57","CL58","CL61","CL62","CL63","CL64","CL65","CL66","CL67","CL68","CL71","CL72","CL73","CL74","CL75","CL76","CL77","CL78","CL79","CL81","CL82","CL83","CL84","CL85","CL86","CL87","CL88","CL89","CL91","CL92","CL93","CL94","CL95"],"not_rendered":{"charts":0,"images":1,"macros":1,"external_links":0,"defined_names":44,"comments":0,"pivot_tables":0},"unopened":[],"bounds":{"document_bytes":16777216,"sheet_cells":100000,"rows_first":2000,"rows_last":500,"rows_between":2000,"halvings":0,"cell_chars":16384,"cell_head_chars":4096},"cells_cut":0,"cells_raw":0,"read":"whole","date_system":"1900"}

{"sheet":"Dates","index":0,"n_rows":11,"n_cols":7,"rows_kept":11,"cut":false,"hidden":true,"merged":[]}
[null,null,"BTech"]
["Start code",null,"TryBTech"]
["Start date",null,"2019-01-30T15:27:43"]
["Warning date",null,"2019-01-30T15:27:43"]
["Expire date",null,{"$f":"IF(C2=\"TryBTech\",C3+10)","v":"2019-02-09T15:27:43"}]
["Client ID num",null,"BTech"]
["Company Name",null,"Test"]
[]
[]
[]
[null,null,null,null,null,null,"Do not alter this page in any way"]

{"sheet":"Intro","index":1,"n_rows":27,"n_cols":5,"rows_kept":27,"cut":false,"hidden":false,"merged":[]}
[null,null,null,null,"PROJECT QUALITY REPORT"]
[null,null,null,null,{"$f":"Planner!B2","v":"Project Number & Name "}]
[null,null,null,null,{"$f":"Planner!B3","v":"Location of Project "}]
[null,null,null,null,{"$f":"NOW()","v":"2022-05-01T17:08:35.820"}]
[null,null,null,null,{"$f":"Planner!B1","v":"CHECKITx All"}]
[]
[]
[]
[null,null,null,null,{"$f":"Planner!D1","v":"Test"}]
[null,null,null,null,{"$f":"Planner!D2","v":"Street Address"}]
[null,null,null,null,{"$f":"Planner!D3","v":"City | State | Postcode"}]
[]
[]
[]
[]
[]
[null,null,null,null,"CHECKITx  Core"]
[null,null,null,null,"CHECKITx  More"]
[null,null,null,null,{"$f":"Planner!J1","v":"Version 9.19 | 11 December 2018"}]
[]
[null,null,null,null,"About CHECKITx"]
[]
[null,null,null,null,"Features & Benefits "]
[]
[null,null,null,null,"Using CHECKITx"]
[]
[null,null,null,null,"Go to PLANNER"]

{"sheet":"Planner","index":2,"n_rows":84,"n_cols":11,"rows_kept":84,"cut":false,"hidden":false,"merged":[[0,3,0,5],[1,3,1,5],[2,3,2,5]]}
["Type","CHECKITx All",null,"Test",null,null,null,null,null,"Version 9.19 | 11 December 2018"]
["Project","Project Number & Name ",null,"Street Address"]
["Location","Location of Project ",null,"City | State | Postcode"]
["Stage","CORE Checklists",null,"MORE Checklists",null,"Signoff","Hide","Show",null,"CHECKITx  Setup & use "]
[null,"1  Initiation",null,"For reference only - Not included in CORE set"]
["CL11","Preagreement",null,null,"s",{"$f":"'CL11'!O11","v":0},null,null,null,"Step 1:","Personalising & registering"]
["CL12","Programme Development",null,null,"s",{"$f":"'CL12'!O11","v":0},null,null,null,null,"your copy of CHECKITx"]
[null,null,"CL13","Environmental Requirements","s",{"$f":"'CL13'!O11","v":0}]
["CL14","Site Information",null,null,"s",{"$f":"'CL14'!O11","v":0},null,null,null,"Step 2:","Customising CHECKITx"]
["CL15","Authorities & Planning Approvals",null,null,"s",{"$f":"'CL15'!O11","v":0},null,null,null,null,"to suit your practice"]
[null,null,"CL16","Building Diagnostics","s",{"$f":"'CL16'!O11","v":0}]
[null,null,"CL17","Building Survey ","s",{"$f":"'CL17'!O11","v":0},null,null,null,"Step 3:","Creating Project Checklists"]
["CL18","Design Planning, DA & Stakeholders",null,null,"s",{"$f":"'CL18'!O11","v":0}]
["CL19","Project Quality & Risk Planning",null,null,"s",{"$f":"'CL19'!O11","v":0},null,null,null,"Step 4:","Using Project Checklists"]
[null,"2  Schematic Design"]
["CL21","Permit & Concept Studies",null,null,"s",{"$f":"'CL21'!O11","v":0},null,null,null,"Guide 1:","Using CHECKIT x to create "]
[null,null,"CL22","Traffic & Parking","s",{"$f":"'CL22'!O11","v":0},null,null,null,null,"an ISO 9001:2015 QMS"]
[null,null,"CL23","Landscape Architecture","s",{"$f":"'CL23'!O11","v":0}]
[null,null,"CL24","Environmental – Siting & Planning","s",{"$f":"'CL24'!O11","v":0},null,null,null,"Guide 2:","Plan & verify  design process"]
["CL25","Risk / WH&S Design",null,null,"s",{"$f":"'CL25'!O11","v":0},null,null,null,null,"or use as a \"memory jogger\""]
[null,null,"CL26","BIM Project Setup","s",{"$f":"'CL26'!O11","v":0}]
[null,"3  Design Development",null,null,null,null,null,null,null,"Guide 3:","Miscellaneous matters"]
["CL31","Design Development",null,null,"s",{"$f":"'CL31'!O11","v":0}]
[null,null,"CL32","Structural Engineering Input","s",{"$f":"'CL32'!O11","v":0},null,null,null,"These Steps and Guides are on the"]
[null,null,"CL33","Building Services Engineering Input","s",{"$f":"'CL33'!O11","v":0},null,null,null,"Guides tab, and also on the website -"]
[null,null,"CL34","Environmental Design","s",{"$f":"'CL34'!O11","v":0},null,null,null,"Click underlined links above"]
[null,null,"CL35","Environmental Materials Selection","s",{"$f":"'CL35'!O11","v":0}]
[null,null,"CL36","Energy & Water Conservation","s",{"$f":"'CL36'!O11","v":0}]
[null,null,"CL37","Create BIM Model","s",{"$f":"'CL37'!O11","v":0}]
[null,null,"CL39","Packaged/Fast-tracked Projects","s",{"$f":"'CL39'!O11","v":0}]
[null,"4  Coordination"]
[null,null,"CL41","Landscape Architecture Coordination","s",{"$f":"'CL41'!O11","v":0}]
[null,null,"CL42","Civil Engineering Coordination","s",{"$f":"'CL42'!O11","v":0}]
[null,null,"CL43","Structural Engineering Coordination","s",{"$f":"'CL43'!O11","v":0}]
[null,null,"CL44","Fire Protection & Hydraulic Engineering","s",{"$f":"'CL44'!O11","v":0}]
[null,null,"CL45","Mechanical Services Coordination","s",{"$f":"'CL45'!O11","v":0}]
[null,null,"CL46","Lifts & Escalators Coordination","s",{"$f":"'CL46'!O11","v":0}]
[null,null,"CL47","Electrical Services Coordination","s",{"$f":"'CL47'!O11","v":0}]
[null,null,"CL48","Communications Coordination","s",{"$f":"'CL48'!O11","v":0}]
[null,null,"CL49","Kitchen Equipment Coordination","s",{"$f":"'CL49'!O11","v":0}]
[null,"5  Documentation"]
["CL51","Documentation – General",null,null,"s",{"$f":"'CL51'!O11","v":0}]
["CL52","Documentation – Detail",null,null,"s",{"$f":"'CL52'!O11","v":0}]
["CL53","Specification Production",null,null,"s",{"$f":"'CL53'!O11","v":0}]
[null,null,"CL54","Environmental Specification","s",{"$f":"'CL54'!O11","v":0}]
["CL55","Architectural Check",null,null,"s",{"$f":"'CL55'!O11","v":0}]
[null,null,"CL56","Renovations Check","s",{"$f":"'CL56'!O11","v":0}]
[null,null,"CL57","Furnishings & Fittings","s",{"$f":"'CL57'!O11","v":0}]
[null,null,"CL58","Equipment","s",{"$f":"'CL58'!O11","v":0}]
[null,"6  Procurement"]
["CL61","Tendering/Bidding",null,null,"s",{"$f":"'CL61'!O11","v":0}]
["CL62","Evaluation & Negotiation of Tender/Bid",null,null,"s",{"$f":"'CL62'!O11","v":0}]
["CL63","Award Contract – General",null,null,"s",{"$f":"'CL63'!O11","v":0}]
[null,null,"CL64","Award Contract: AS 2124","s",{"$f":"'CL64'!O11","v":0}]
[null,null,"CL65","Award Contract: AS 4000","s",{"$f":"'CL65'!O11","v":0}]
[null,null,"CL66","Award Contract: ABIC","s",{"$f":"'CL66'!O11","v":0}]
[null,null,"CL67","Tendering: NZS 3910","s",{"$f":"'CL67'!O11","v":0}]
[null,null,"CL68","Award Contract: NZS 3910","s",{"$f":"'CL68'!O11","v":0}]
[null,"7  Delivery"]
["CL71","Admin Set-up",null,null,"s",{"$f":"'CL71'!O11","v":0}]
["CL72","Documents & Site Conditions",null,null,"s",{"$f":"'CL72'!O11","v":0}]
["CL73","Indemnities, Insurances & Time",null,null,"s",{"$f":"'CL73'!O11","v":0}]
["CL74","Administration",null,null,"s",{"$f":"'CL74'!O11","v":0}]
["CL75","Submissions, Inspections & Execution",null,null,"s",{"$f":"'CL75'!O11","v":0}]
[null,null,"CL76","Delivery: AS 2124 ","s",{"$f":"'CL76'!O11","v":0}]
[null,null,"CL77","Delivery: AS 4000","s",{"$f":"'CL77'!O11","v":0}]
[null,null,"CL78","Delivery: ABIC","s",{"$f":"'CL78'!O11","v":0}]
[null,null,"CL79","Delivery: NZS 3910 ","s",{"$f":"'CL79'!O11","v":0}]
[null,"8 Completion"]
["CL81","Practical Completion ",null,null,"s",{"$f":"'CL81'!O11","v":0}]
["CL82","Defects Liability Period",null,null,"s",{"$f":"'CL82'!O11","v":0}]
["CL83","Payment & Adjustment of Contract Sum",null,null,"s",{"$f":"'CL83'!O11","v":0}]
["CL84","Testing & Commissioning",null,null,"s",{"$f":"'CL84'!O11","v":0}]
["CL85","Disputes, Final Certificate & Payment",null,null,"s",{"$f":"'CL85'!O11","v":0}]
[null,null,"CL86","Completion: AS 2124 ","s",{"$f":"'CL86'!O11","v":0}]
[null,null,"CL87","Completion: AS 4000","s",{"$f":"'CL87'!O11","v":0}]
[null,null,"CL88","Completion: ABIC","s",{"$f":"'CL88'!O11","v":0}]
[null,null,"CL89","Completion: NZS 3910","s",{"$f":"'CL89'!O11","v":0}]
[null,"9  Management"]
["CL91","Project Resources & Management Review",null,null,"s",{"$f":"'CL91'!O11","v":0}]
["CL92","Project Communication & Records",null,null,"s",{"$f":"'CL92'!O11","v":0}]
["CL93","Design Scope Changes",null,null,"s",{"$f":"'CL93'!O11","v":0}]
[null,null,"CL94","Consultants Project Monitoring","s",{"$f":"'CL94'!O11","v":0}]
[null,null,"CL95","Post-occupancy Evaluation (POE)","s",{"$f":"'CL95'!O11","v":0}]

{"sheet":"Guides","index":3,"n_rows":102,"n_cols":7,"rows_kept":102,"cut":false,"hidden":false,"merged":[]}
[null,"CHECKITx  Setup and use "]
[]
["Step 1","Personalising & registering your copy of CHECKIT x ",null,null,null,null,"Return to Planner"]
[1.1000000000000001,"When opening the file, always select \"Enable Macros\". "]
[1.2,"When you first open CHECKITx, you will be asked to enter a startup code: \"TryBTech\". Do that."]
[null,"Next, you will be asked to enter your Firm Name, which you must do before you can do anything "]
[null,"else. That registers CHECKITx to your firm. Then, go to the Planner tab, and click on Step 1, and "]
[null,"read the setup instructions for your options. Complete the rest of customising CHECKITx."]
[1.3,"Unless you bought the program and received a registration code, you have a 10-day free trial."]
[null,"The free trial gives you access to 8 sample checklists for each of the two programs."]
[1.4,"Each time you open CHECKITx during the free trial period, you will be asked to enter an Unlock "]
[null,"code. You can click \"Cancel\" and the cursor will flash a bit and then give you access to the"]
[null,"trial checklists. After 10 days it will stop working unless you put in an unlock code."]
[1.5,"When you enter your unlock code, press \"OK\"."]
[1.6,"For more information, go to: ",null,"buildingtech.com/checkitx/how-to-buy/"]
[]
["Step 2","Customising CHECKITx",null,null,null,null,"Return to Planner"]
[2.1,"Review the checkmarks in each checklist. Which ones will you implement on all projects?"]
[null,"Change red checks to black, or vice versa, to customise the checklists to your values. SAVE."]
[2.2000000000000002,"Make a copy of the complete file for each major building type or discipline that you do."]
[null,"In each copy, change \"Core\" in cell 1B to that type/discipline eg. Aged Care or Interiors."]
[null,"This designnation will be copied into every checklist in the named set. SAVE."]
[null,"The Building Type / Discipline will also be copied into the Project Quality Report cover sheet."]
[2.2999999999999998,"For each saved Project Type/Discipline Master, review the Stages you want to include."]
[null,"You can turn off any checklist by clicking the Hide [ H ] button opposite it."]
[null,"You can turn any hidden checklist back on by clicking the Show [ S ] button opposite it."]
[2.4,"Review each checklist item as to whether you want included in the type/discipline checklist."]
[null,"You can delete any checklist item or reword it."]
[null,"You can create additional items as long as they don't exceed 26 (a-z) in one list."]
[2.5,"SAVE. Your CHECKIT Project Type Master set is now ready to be customised for a project."]
[2.6,"NOTE: Do not attempt to change any checklist title. The titles are used to operate the Hide & "]
[null,"Show features, and if you try to change  them you'll disable the system."]
[]
["Step 3","Creating Project Checklists",null,null,null,null,"Return to Planner"]
[3.1,"Select the appropriate Discipline/Building Type Master and create a duplicate."]
[3.2,"Enter the Project number & name in cell 2B. Enter project location in cell 3B. SAVE."]
[null,"The Project Number & Name will be automatically entered into each checklist, and into the "]
[null,"Project Quality Report cover sheet."]
[3.3,"Review the selected Hide/Show selections and make changes as appropriate. SAVE."]
[3.4,"Review the checked items in each visible checklist. Turn off  items not required for project."]
[null,"If needed, revise any check items. SAVE. Your checklists are now ready for use. "]
[3.5,"Jump to any checklist by clicking its tab, or its title. "]
[null,"Return to the Planner by clicking the PLNR button at the centre top of the checklist."]
[3.6,"Set up project responsibility:  Put the initials of the main person responsible for each"]
[null,"checklist in the Staff Assignment cell. That will paste these initials into the \"WHO?\" column "]
[null,"across all checklist items. You can then individually assign items to others by putting in their"]
[null,"initials. SAVE. (Note: Changing responsibility to another person disconnects the link."]
[null,"Restore by copying a cell with a \"0\" and pasting it into the unlinked cell.)"]
[3.7,"This set of checklists is, effectively, your Project Quality Plan."]
[]
["Step 4","Using Project Checklists",null,null,null,null,"Return to Planner"]
[4.0999999999999996,"Each time you do a project check, put your intials and the date in the next available"]
[null,"Checking Record cell. There is space for 10 checks - more than you'll likely need!"]
[4.2,"At each check, if the item is satisfactorily completed, put your initials & date in the item "]
[null,"Chk by: and Date cell (col's F and G) . This indicates the item does not need more checking."]
[4.3,"If you check an item and find it has problems, note briefly those problems under Col. E,"]
[null,"and DO NOT initial the Chk by & Date cells."]
[4.4000000000000004,"On subsequent checks against #4.3 items, if completed, follow instruction 4.2."]
[4.5,"Once all items on the page have been completed, put your name and the date in the"]
[null,"Row 11 signoff boxes. This completes the signoff."]
[4.5999999999999996,"Entries in the O11 cell will be auto-transferred to col. F on this page, for \"at-a-glance\""]
[null,"completion of the project checklist."]
[4.7,"You can, at any time, save the file as a Project Quality Report, by printing or using the Save as"]
[null,"PDF printer function. The Report date will automatically be entered on the Cover page as the"]
[null,"date of printing. See also Guide 3: Miscellaneous matters below."]
[]
["Guide 1","Using CHECKIT x to create an ISO 9001 QMS",null,null,null,null,"Return to Planner"]
[null,"You can use the CHECKITx systtem to create an ISO 9001:2015 - compliant Quality"]
[null,"Management System (QMS). ",null,"buildingtech.com/checkitx"]
[]
["Guide 2","Plan and verify the design process vs. \"memory jogger\" ",null,null,null,null,"Return to Planner"]
[null,"You can use Checkitx as a tool to plan the design process, and to verify that"]
[null,"the plan is being followed. To do this, you need to implement Steps 3 and 4."]
[null,"Alternatively, you can simply use CHECKIT x as a \"memory jogger\" or informal "]
[null,"checklist at the various stages of a project."]
[]
["Guide 3","Miscellaneous matters",null,null,null,null,"Return to Planner"]
[]
[null,"Abbreviations - Go to: ",null,"Glossary & Abbreviations"]
[]
[null,"Free Trial - Show/Hide buttons limitation:"]
[null,"You cannot use the Show/Hide buttons when in the Free Trial mode. If you attempt to, you'll get"]
[null,"an error message: \"Runtime error '1004': Select method of worksheet class failed\". Click END."]
[]
[null,"Trouble-shooting & saving PDF files"]
[null,"If, for any reason, you cannot see the tabs at the bottom, click Window > Zoom Window "]
[null,"in the top Excel menu bar. That will reposition the bottom of the sheet so tabs are visible."]
[]
[null,"Saving PDF files:"]
[null,"The spreadsheets are formatted to print properly on an A4 page, with binding margins"]
[null,"should you want to print or save as a PDF file. If you have any problems doing this, open"]
[null,"File > Page Setup and set left margin to 1.9 cm and right margin to 0.9 cm."]
[]
[null,"Things you can't do:"]
[1,"Change the Project Quality Report cover page. "]
[2,"Change your company name once entered - if it needs changing, you'll have to download a new copy."]
[3,"Create new checklists or rename existing checklists."]
[4,"Make a checklist longer than 26 items (you can, but there won't be room for more than 3 characters)."]
[]
[null,"Adding more Notes"]
[null,"You  can add any extra Guide notes you want to this page (which will create a third page of Notes)."]
[null,"If you do, break the lines to match these - otherwise they will be off the page horizontally."]

{"sheet":"CL11","index":4,"n_rows":33,"n_cols":19,"rows_kept":33,"cut":false,"hidden":false,"merged":[[3,4,3,6],[0,4,0,6],[1,4,1,6],[2,4,2,6]]}
["Type:",null,{"$f":"Planner!B1","v":"CHECKITx All"},null,{"$f":"Planner!D1","v":"Test"}]
["Stage:",null,"1.  Initiation","PLNR",{"$f":"Planner!D2","v":"Street Address"},null,null,null,"CHECKITx"]
["CL ID:",null,"CL11 Preagreement",null,{"$f":"Planner!D3","v":"City | State | Postcode"}]
["Project:",null,{"$f":"Planner!B2","v":"Project Number & Name "},"Loc.",{"$f":"Planner!B3","v":"Location of Project "},null,null,null,null,null,"Staff assignment for this checklist - See Guides Sheet Step 4 for instructions"]
[]
["Item No ","Use","Task description","Who?","Checking record - action required if any. When action is completed, Initial & date approval\n","Chk By","Date",null,"Checking record:"]
["CL11a","✔","Ask the 2 fundamental questions: (1) Is this project strategically important for our firm?  (2) Do we have the resources to do this project?",{"$f":"J4","v":0},null,"cen","2016-06-06",null,null,1,2,3,4,5,6,7,8,9,10]
["CL11b","✔","Confirm status of any other architects previously involved with project.",{"$f":"J4","v":0},null,null,null,null,"Initials:","CEN"]
["CL11c","✔","Evaluate client financial and management capability to undertake project. Determine if project is speculative or committed for client.  ISO 9001: 6.1",{"$f":"J4","v":0},null,null,null,null,"Date:","12.12.2016"]
["CL11d","✔","Evaluate any known record of client's propensity for litigation.  ISO 9001: 6.1",{"$f":"J4","v":0},null,null,null,null,"Checklist signoff: I have verified that all tasks for this Checklist are complete"]
["CL11e ","✔","Obtain or develop, and have approved and dated a project brief; take initiative in development of brief where appropriate and possible. IOS 9001: 8.2.2, 8.2.3, 8.3.3, 8.5.1. [C]",{"$f":"J4","v":0},null,null,null,null,"By:",null,null,null,null,"Date:"]
["CL11f","✔","Prepare preliminary staffing and in-house cost plan (including subconsultants) for project.",{"$f":"J4","v":0}]
["CL11g","✔","Determine identity of person empowered to bind corporate or governmental client.",{"$f":"J4","v":0},null,null,null,null,"✔","1. All red-checked Tasks are required for this project by the firm.\n"]
["CL11h","✔","Obtain list of other consultants engaged by client or intended to be engaged by client. IOS 9001: 8.2.2, 8.2.3.",{"$f":"J4","v":0},null,null,null,null,"ISO","2. If ISO 9001 is a project requirement, all Tasks with a blue ISO reference must be used."]
["CL11i","✔","Prepare preliminary consultants' information required schedule for project. (This does not mean that you are accepting responsibility for them or their work.)",{"$f":"J4","v":0},null,null,null,null,"✔","3. Select optional Tasks (black check mark) by deleting checkmarks for Tasks not needed."]
["CL11j","✔","Clarify in detail with client, intended responsibilities and cost obligations for inter-consultant coordination and for programming. Ref. CL93i.",{"$f":"J4","v":0},null,null,null,null,"[C]","4. If using the 2009 AIA Client and Architects Agreement, this is a CORE activity."]
["CL11k","✔","Confirm intended construction contract arrangements, particularly whether construction is to be “packaged”. If so, use CL39.",{"$f":"J4","v":0}]
["CL11l ","✔","Prepare outline of consulting services' time schedule. Confirm with client.",{"$f":"J4","v":0}]
["CL11m","✔","Develop outline of subconsultants' briefs; obtain subconsultants' cost proposals to brief. Confirm whether QS will issue Bill of Quantities or Specified BOQ. ISO 9001: 7.2, 8.4.",{"$f":"J4","v":0}]
["CL11n","✔","If BIM is required, confirm BIM Level of Development (LOD) required; price accordingly. Refer CL26 & CL37.",{"$f":"J4","v":0}]
["CL11o","✔","Prepare programme development task allocation list; confirm w/ client any listed tasks not included in Agreement. Note particularly limitations on appeals and arbitration.   ISO 9001: 5.1.2, 8.2.1.",{"$f":"J4","v":0}]
["CL11p","✔","If in price competition, develop min/max services/costs analysis to fit range of brief.",{"$f":"J4","v":0}]
["CL11q","✔","If client has set conditions of client/architect agreement, obtain/review with counsel. Be wary of clauses that imply a level of service that may not be possible to deliver.  ISO 9001: 6.1, 8.2.3.",{"$f":"J4","v":0}]
["CL11r","✔","If in design competition, query any doubts relating to brief. Keep written record of answers.",{"$f":"J4","v":0}]
["CL11s","✔","Prepare Project Management Plan (PMP), including a Work Breakdown Structure (WBS) that assigns time and cost to each task in the WBS.",{"$f":"J4","v":0}]
["CL11t","✔","Prepare final services' offer and fee proposal, including, as appropriate, cashflow/billing scheme and any special payment provisions.",{"$f":"J4","v":0}]
["CL11u","✔","Prepare client's agreement/review agreement, with conditions of engagement and termination. If using AS 4122, review Standard and complete cl. 36: Standard Form Nature of Contract.",{"$f":"J4","v":0}]
["CL11v","✔","Compare terms of agreement with all prior understandings. Clarify any discrepancies.",{"$f":"J4","v":0}]
["CL11w","✔","Based on the above, conduct a formal risk assessment & analysis (Go - NoGo) evaluation. ISO 9001: 6.1",{"$f":"J4","v":0}]
["CL11x","✔","Visit site and assess site conditions and constraints.  [C] ",{"$f":"J5","v":0}]
["CL11y","✔","Review AIA \"Core Architectural Services\" Pre-design list to ensure you've covered all items. [C]",{"$f":"J6","v":0}]
["CL11z","✔","Execute agreement.",{"$f":"J4","v":0}]
["© 1986-2017 Building Technology Pty Ltd. All rights reserved."]

{"sheet":"CL12","index":5,"n_rows":31,"n_cols":19,"rows_kept":31,"cut":false,"hidden":false,"merged":[[0,4,0,6],[1,4,1,6],[2,4,2,6],[3,4,3,6]]}
["Type:",null,{"$f":"Planner!B1","v":"CHECKITx All"},null,{"$f":"Planner!D1","v":"Test"}]
["Stage:",null,"1.  Initiation","PLNR",{"$f":"Planner!D2","v":"Street Address"},null,null,null,"CHECKITx"]
["CL ID:",null,"CL12 Programme Development",null,{"$f":"Planner!D3","v":"City | State | Postcode"}]
["Project:",null,{"$f":"Planner!B2","v":"Project Number & Name "},"Loc.",{"$f":"Planner!B3","v":"Location of Project "},null,null,null,null,null,"Staff assignment for this checklist - See Guides Sheet Step 4 for instructions"]
[]
["Item No ","Use","Task description","Who?","Checking record - action required if any. When action is completed, Initial & date approval\n","Chk By","Date",null,"Checking record:"]
["CL12a","✔","If ESD or Green Star project, use CL13 in conjunction with this checklist",{"$f":"J4","v":0},null,null,null,null,null,1,2,3,4,5,6,7,8,9,10]
["CL12b","✔","Open project file, assign project no., determine official project name (confirm with client); advise office/bookkeeping of agreements, fees, consultants etc.",{"$f":"J4","v":0},null,null,null,null,"Initials:"]
["CL12c","✔","Prepare cost & resources allocation plan (in-office); coordinate with client's cash flow requirements as established in agreed fee structure (CL11t).",{"$f":"J4","v":0},null,null,null,null,"Date:"]
["CL12d","✔","Prepare schedule of key persons, addresses, phone nos. etc. Circulate. Verify all titles, firm names, spellings. Verify staff competence. ISO 9002 cl. 7.2.",{"$f":"J4","v":0},null,null,null,null,"Checklist signoff: I have verified that all tasks for this checklist are complete"]
["CL12e ","✔","Prepare list of information needed from client & from other consultants. Circulate. ISO 9001 cl. 7.4.",{"$f":"J4","v":0},null,null,null,null,"By:",null,null,null,null,"Date:"]
["CL21f","✔","Prepare detailed task list of all decisions requiring input by more than one consultant. Confirm team members responsible for each action.  ISO 9001 cl. 7.4, cl. 8.4.",{"$f":"J4","v":0}]
["CL12g","✔","Review in detail client's brief; prepare detail list of additional information required. Submit to client.",{"$f":"J4","v":0},null,null,null,null,"✔","1. All red-checked Tasks are required for this project by the firm.\n"]
["CL12h","✔","Confirm understanding with client & other consultants of all types of information flow, including procedures for transmittals.  ISO 9001 cl. 7.4.",{"$f":"J4","v":0},null,null,null,null,"ISO","2. If ISO 9001 is a project requirement, all Tasks with a blue ISO reference must be used."]
["CL12i","✔","(If any data is to be transmitted electronically). Confirm details including word processing packages, addressing requirements, electronic communication requirements.  ISO 9001 cl. 7.4.",{"$f":"J4","v":0},null,null,null,null,"✔","3. Select optional Tasks (black check mark) by deleting checkmarks for Tasks not needed."]
["CL12j","✔","Prepare design briefs for subconsultants and other consultants. [C]  ISO 9001 cl. 8.4.",{"$f":"J4","v":0},null,null,null,null,"[C]","4. If using the 2009 AIA Client and Architects Agreement, this is a CORE activity."]
["CL12k","✔","Prepare preliminary assessment of adjoining owners' issues & questions. Transmit to client with action request. [C]  ISO 9001 cl. 4.2.",{"$f":"J4","v":0}]
["CL12l ","✔","Obtain adjoining owners' consent for survey of adjoining properties.  ISO 9001 cl. 4.2.",{"$f":"J4","v":0}]
["CL12m","✔","Obtain adjoining owners' consent for protection of properties and method of underpinning.   ISO 9001 cl. 4.2.",{"$f":"J4","v":0}]
["CL12n","✔","Obtain from responsible authorities, where applicable, statutory certificates and advisory documents identifying all relevant planning controls. ISO 9001 cl. 8.2.2.",{"$f":"J4","v":0}]
["CL12o","✔","Consult actual controlling documents (Planning Scheme etc.) to determine relevant definitions of uses & works; check consistency with Building, Health, Fire Brigade and other controls.",{"$f":"J4","v":0}]
["CL12p","✔","Check status of subsoil/structural data available & need for additional data, with responsible consultant. Confirm to client.   ISO 9001 cl. 8.3.",{"$f":"J4","v":0}]
["CL12q","✔","Request statement from client, with examples, on levels of finish quality to be used for preliminary delivery budget reports. ISO 9001 cl. 8.2.2.",{"$f":"J4","v":0}]
["CL12r","✔","Request from each subconsultant list of all critical decisions to be made by others, with deadlines. ISO 9001 cl. 8.4.",{"$f":"J4","v":0}]
["CL12s","✔","Compile CL12r lists into master document & distribute to all affected parties; highlight decisions they are required to provide.  ISO 9001 cl. 7.4.",{"$f":"J4","v":0}]
["CL12t","✔","Verify that all critical decisions have been made and communicated as required in current period. ISO 9001 cl. 7.4, 8.2.1.",{"$f":"J4","v":0}]
["CL12u","✔","Obtain work plan from each subconsultant and check against overall schedule and subconsultant brief; adjust as required.  ISO 9001 cl. 7.4.",{"$f":"J4","v":0}]
["CL12v","✔","Confirm with client detail responsibility for providing delivery budget information, and level of detail required, for each phase of the documentation.",{"$f":"J4","v":0}]
["CL12w","✔","Coordinate preparation of a preliminary estimate of construction cost. [C]",{"$f":"J4","v":0}]
[]
["© 1986-2017 Building Technology Pty Ltd. All rights reserved."]

{"sheet":"CL13","index":6,"n_rows":21,"n_cols":19,"rows_kept":21,"cut":false,"hidden":false,"merged":[[3,4,3,6],[0,4,0,6],[1,4,1,6],[2,4,2,6]]}
["Type:",null,{"$f":"Planner!B1","v":"CHECKITx All"},null,{"$f":"Planner!D1","v":"Test"}]
["Stage:",null,"1.  Initiation","PLNR",{"$f":"Planner!D2","v":"Street Address"},null,null,null,"CHECKITx"]
["CL ID:",null,"CL13 Environmental Requirements",null,{"$f":"Planner!D3","v":"City | State | Postcode"}]
["Project:",null,{"$f":"Planner!B2","v":"Project Number & Name "},"Loc.",{"$f":"Planner!B3","v":"Location of Project "},null,null,null,null,null,"Staff assignment for this checklist - See Guides Sheet Step 4 for instructions"]
[]
["Item No ","Use","Task description","Who?","Checking record - action required if any. When action is completed, Initial & date approval\n","Chk By","Date",null,"Checking record:"]
["CL13a","✔","Use this Checklist in conjunction with CL12,  CL24, CL34, CL35, CL36 and CL54. Use for all ESD and Green Star projects.",{"$f":"J4","v":0},null,null,null,null,null,1,2,3,4,5,6,7,8,9,10]
["CL13b","✔","Establish energy conservation design criteria or ESD goals as appropriate.",{"$f":"J4","v":0},null,null,null,null,"Initials:"]
["CL13c","✔","Review prospective consultants’ ESD capabilities; advise client.",{"$f":"J4","v":0},null,null,null,null,"Date:"]
["CL13d","✔","Arrange appointment or assist in the selection of ESD / Green Star consultant if required. Use TeamWork EC.",{"$f":"J4","v":0},null,null,null,null,"Checklist signoff: I have verified that all tasks for this checklist are complete"]
["CL13e ","✔","Resolve with the consultant which items of this checklist will be the responsibility of the consultant and which of the practice. Document & submit to client.",{"$f":"J4","v":0},null,null,null,null,"By:",null,null,null,null,"Date:"]
["CL13f","✔","Determine if client intends to have the project certified as a Green Star project; if so, advise client on necessity of an early application.",{"$f":"J4","v":0}]
["CL13g","✔","Undertake research & preparation for workshop and briefing of ESD opportunities.",{"$f":"J4","v":0},null,null,null,null,"✔","1. All red-checked Tasks are required for this project by the firm.\n"]
["CL13h","✔","Appraise client of ESD opportunities, and the broader benefits/consequences of taking such actions.",{"$f":"J4","v":0},null,null,null,null,"ISO","2. If ISO 9001 is a project requirement, all Tasks with a blue ISO reference must be used."]
["CL13i","✔","Prepare Environmental Impact Statement if required.",{"$f":"J4","v":0},null,null,null,null,"✔","3. Select optional Tasks (black check mark) by deleting checkmarks for Tasks not needed."]
["CL13j","✔","Prior to submitting fee proposal, verify that your fee structure covers ESD / Green Star design responsibilities.",{"$f":"J4","v":0},null,null,null,null,"[C]","4. If using the 2009 AIA Client and Architects Agreement, this is a CORE activity."]
["CL13k","✔","Where possible, involve main consultants early in the project design phase to agree on ESD/Green Star initiatives.",{"$f":"J4","v":0}]
["CL13l ","✔","Where possible & appropriate, explore opportunities with local government authorities to improve sustainable opportunities and outcomes.",{"$f":"J4","v":0}]
["CL13m","✔","Where appropriate, evaluate opportunities to adapt and/or utilise existing buildings, facilities, infrastructure, materials and fixtures & fittings, etc.",{"$f":"J4","v":0}]
["CL13n","✔","Evaluate ‘no-build’ or ‘non-structural’ options, or re-use / retrofit existing facilities in order to reduce the embodied energy of the building.",{"$f":"J4","v":0}]
["© 1986-2017 Building Technology Pty Ltd. All rights reserved."]

{"sheet":"CL14","index":7,"n_rows":29,"n_cols":19,"rows_kept":29,"cut":false,"hidden":false,"merged":[[0,4,0,6],[1,4,1,6],[2,4,2,6],[3,4,3,6]]}
["Type:",null,{"$f":"Planner!B1","v":"CHECKITx All"},null,{"$f":"Planner!D1","v":"Test"}]
["Stage:",null,"1.  Initiation","PLNR",{"$f":"Planner!D2","v":"Street Address"},null,null,null,"CHECKITx"]
["CL ID:",null,"CL14 Site Information",null,{"$f":"Planner!D3","v":"City | State | Postcode"}]
["Project:",null,{"$f":"Planner!B2","v":"Project Number & Name "},"Loc.",{"$f":"Planner!B3","v":"Location of Project "},null,null,null,null,null,"Staff assignment for this checklist - See Guides Sheet Step 4 for instructions"]
[]
["Item No ","Use","Task description","Who?","Checking record - action required if any. When action is completed, Initial & date approval\n","Chk By","Date",null,"Checking record:"]
["CL14a","✔","Request that client supply copy of title to property, and a legal opinion that title is clear and free of constraints. [C]",{"$f":"J4","v":0},null,null,null,null,null,1,2,3,4,5,6,7,8,9,10]
["CL14b","✔","Obtain all site zoning information, including easements, covenants, rights-of-way, flood plains etc. [C]",{"$f":"J4","v":0},null,null,null,null,"Initials:"]
["CL14c","✔","Determine if environmental impact statement is needed. Refer CL13, especially CL13j.",{"$f":"J4","v":0},null,null,null,null,"Date:"]
["CL14d","✔","Obtain and review all available previous studies and proposals for site.",{"$f":"J4","v":0},null,null,null,null,"Checklist signoff: I have verified that all tasks for this checklist are complete"]
["CL14e","✔","Obtain boundary survey from client. Confirm title particulars from check survey. [C]",{"$f":"J4","v":0},null,null,null,null,"By:",null,null,null,null,"Date:"]
["CL14f","✔","Note planning and design constraints in easements, party walls or covenants as identified in boundary survey. ",{"$f":"J4","v":0}]
["CL14g","✔","Personally visit site or arrange for site inspection. Determine temporary site access points and any easements required. Document visit. [C]",{"$f":"J4","v":0},null,null,null,null,"✔","1. All red-checked Tasks are required for this project by the firm.\n"]
["CL14h","✔","Review boundary survey and other available site data; prepare list of additional detail information required. Submit to client. ",{"$f":"J4","v":0},null,null,null,null,"ISO","2. If ISO 9001 is a project requirement, all Tasks with a blue ISO reference must be used."]
["CL14i","✔","Check site survey requirements with planning, landscape and engineering consultants.",{"$f":"J4","v":0},null,null,null,null,"✔","3. Select optional Tasks (black check mark) by deleting checkmarks for Tasks not needed."]
["CL14j","✔","Specify detail for topographical survey, including contour interval, vegetation, existing works, soils etc.",{"$f":"J4","v":0},null,null,null,null,"[C]","4. If using the 2009 AIA Client and Architects Agreement, this is a CORE activity."]
["CL14k","✔","After consultation with SEng., prepare and issue plan and specification for soil borings and test pits.",{"$f":"J4","v":0}]
["CL14l","✔","Determine minimum excavation limits at any existing specimen trees. Note on survey drawings. ",{"$f":"J4","v":0}]
["CL14m","✔","Note retaining walls, outcroppings and any other site features to be conserved. Check data for below-ground structures against site evidence.",{"$f":"J4","v":0}]
["CL14n","✔","Record all relevant abuttal conditions, including overshadowing and overlooking, and required protection during demolition. ",{"$f":"J4","v":0}]
["CL14o","✔","Establish current ground water levels and probable highest seasonal ground water levels. ",{"$f":"J4","v":0}]
["CL14p","✔","Note any site topsoil to be stockpiled; determine location.  Arrange for testing of soil, where extensive planting is required in native soil.",{"$f":"J4","v":0}]
["CL14q","✔","Prepare/distribute report on site findings, recommendations, and plant materials suited to soils and climate.",{"$f":"J4","v":0}]
["CL14r","✔","Determine which tasks are to be responsibility of Landscape Architect; prepare brief, engage LA as appropriate. Refer CL23a.",{"$f":"J4","v":0}]
["CL14s","✔","Establish solid waste disposal needs of building user; determine whether compactor is to be provided.",{"$f":"J4","v":0}]
["CL45t","✔","Determine access requirements and clearances for disposal service vehicles.",{"$f":"J4","v":0}]
["CL14u","✔","Complete preliminary design for solid waste disposal; review with authorities and client.",{"$f":"J4","v":0}]
[]
["© 1986-2017 Building Technology Pty Ltd. All rights reserved."]

{"sheet":"CL15","index":8,"n_rows":30,"n_cols":19,"rows_kept":30,"cut":false,"hidden":false,"merged":[[0,4,0,6],[1,4,1,6],[2,4,2,6],[3,4,3,6]]}
["Type:",null,{"$f":"Planner!B1","v":"CHECKITx All"},null,{"$f":"Planner!D1","v":"Test"}]
["Stage:",null,"1.  Initiation","PLNR",{"$f":"Planner!D2","v":"Street Address"},null,null,null,"CHECKITx"]
["CL ID:",null,"CL15 Authorities & Planning Approvals",null,{"$f":"Planner!D3","v":"City | State | Postcode"}]
["Project:",null,{"$f":"Planner!B2","v":"Project Number & Name "},"Loc.",{"$f":"Planner!B3","v":"Location of Project "},null,null,null,null,null,"Staff assignment for this checklist - See Guides Sheet Step 4 for instructions"]
[]
["Item No ","Use","Task description","Who?","Checking record - action required if any. When action is completed, Initial & date approval\n","Chk By","Date",null,"Checking record:"]
["CL15a","✔","Request that client supply, or otherwise obtain governmental record of any previous record of applications for use change, appeals etc. ",{"$f":"J4","v":0},null,null,null,null,null,1,2,3,4,5,6,7,8,9,10]
["CL15b","✔","Research, prepare and circulate list of governmental approvals required; include contact names & addresses. [C]  ISO 9001 cl. 8.3.",{"$f":"J4","v":0},null,null,null,null,"Initials:"]
["CL15c","✔","Obtain standard forms (if any) for applications. Note particulars of timing & third party involvement. ",{"$f":"J4","v":0},null,null,null,null,"Date:"]
["CL15d","✔","If any doubt about whether permit or rezoning required, consult lawyer or planning consultant. ",{"$f":"J4","v":0},null,null,null,null,"Checklist signoff: I have verified that all tasks for this checklist are complete"]
["CL15e ","✔","Before lodging applications for permits or rezoning, discuss draft applications with authority officers. [C] ",{"$f":"J4","v":0},null,null,null,null,"By:",null,null,null,null,"Date:"]
["CL15f","✔","Meet with authorities to discuss site access preference and restrictions. Confirm in report to client. [C]",{"$f":"J4","v":0}]
["CL15g","✔","Determine whether authority will require a traffic impact study; if so, commission one. Refer CL22.",{"$f":"J4","v":0},null,null,null,null,"✔","1. All red-checked Tasks are required for this project by the firm.\n"]
["CL15h","✔","Establish statutory or other official parking limitations, ratios for use classes and special site requirements. ",{"$f":"J4","v":0},null,null,null,null,"ISO","2. If ISO 9001 is a project requirement, all Tasks with a blue ISO reference must be used."]
["CL15i","✔","Confirm parking space requirements, minimum lane and turning dimensions, and whether spaces for small cars are permitted. Refer AS 2890.",{"$f":"J4","v":0},null,null,null,null,"✔","3. Select optional Tasks (black check mark) by deleting checkmarks for Tasks not needed."]
["CL15j","✔","Establish footpath elevations at all vehicle access points and proposed parking floor elevations. Determine ramp lengths needed. ",{"$f":"J4","v":0},null,null,null,null,"[C]","4. If using the 2009 AIA Client and Architects Agreement, this is a CORE activity."]
["CL15k","✔","File parking layout and exhaust provisions with authorities as required. ",{"$f":"J4","v":0}]
["CL15l ","✔","Identify responsible officers of all authorities and relevant community groups and add to schedule of \"key persons\" (CL12d). ISO 9001: 4.2",{"$f":"J4","v":0}]
["CL15m","✔","Prepare summary description for public notification - objective, scale, appearance, impacts.  ISO 9001 cl. 4.2",{"$f":"J4","v":0}]
["CL15n","✔","Identify owners, occupiers & title particulars for all other property likely to be materially affected including adjoining owners; advise client. ISO 9001: 4.2",{"$f":"J4","v":0}]
["CL15o","✔","Check requirements of others in position to exercise control over the project, e.g. liquor licensing or funding sources, for possible conflicts. ISO 9001: 4.2",{"$f":"J4","v":0}]
["CL15p","✔","Upon receipt of response to applications, note whether all time limits and other conditions are acceptable. ",{"$f":"J4","v":0}]
["CL15q","✔","If any conditions are not acceptable, or in case of refusal, note appeal or review provisions, and report to client. ",{"$f":"J4","v":0}]
["CL15r","✔","Obtain adjoining owners' consent as required for demolition permit, if applicable.  Refer CL14n. ISO 9001: 4.2",{"$f":"J4","v":0}]
["CL15s","✔","Carry out/commission existing conditions surveys of adjoining properties. Refer CL17.",{"$f":"J4","v":0}]
["CL15t","✔","Record official name of applicant, authority to act if not owner, title particulars of subject land in detail, as developed from boundary survey (CL14h).",{"$f":"J4","v":0}]
["CL15u","✔","If an environmental impact study is required, confirm brief with client, select consultant and commission.  Refer CL14c and CL13.",{"$f":"J4","v":0}]
["CL15v","✔","Ensure that project team understands environmental protection and heritage requirements, as applicable to project.",{"$f":"J4","v":0}]
[]
["© 1986-2017 Building Technology Pty Ltd. All rights reserved."]

{"sheet":"CL16","index":9,"n_rows":19,"n_cols":19,"rows_kept":19,"cut":false,"hidden":false,"merged":[[0,4,0,6],[1,4,1,6],[2,4,2,6],[3,4,3,6]]}
["Type:",null,{"$f":"Planner!B1","v":"CHECKITx All"},null,{"$f":"Planner!D1","v":"Test"}]
["Stage:",null,"1.  Initiation","PLNR",{"$f":"Planner!D2","v":"Street Address"},null,null,null,"CHECKITx"]
["CL ID:",null,"CL16 Building Diagnostics",null,{"$f":"Planner!D3","v":"City | State | Postcode"}]
["Project:",null,{"$f":"Planner!B2","v":"Project Number & Name "},"Loc.",{"$f":"Planner!B3","v":"Location of Project "},null,null,null,null,null,"Staff assignment for this checklist - See Guides Sheet Step 4 for instructions"]
[]
["Item No ","Use","Task description","Who?","Checking record - action required if any. When action is completed, Initial & date approval\n","Chk By","Date",null,"Checking record:"]
["CL16a","✔","Confirm with client or principal-in-charge the complete purposes of the survey; prepare checklist of items to be documented. Coordinate with CL17 if applicable.",{"$f":"J4","v":0},null,null,null,null,null,1,2,3,4,5,6,7,8,9,10]
["CL16b","✔","Review proposed plan for consistency with internal project budget. Identify resources needed and cost to carry out proposed plan. ",{"$f":"J4","v":0},null,null,null,null,"Initials:"]
["CL16c","✔","Determine which items of proposed plan are required by project brief and which may be additional to the agreement. ",{"$f":"J4","v":0},null,null,null,null,"Date:"]
["CL16d","✔","Obtain written quotations for all resources needed to carry out proposed diagnostics; cost  items which can be performed by the practice.",{"$f":"J4","v":0},null,null,null,null,"Checklist signoff: I have verified that all tasks for this checklist are complete"]
["CL16e ","✔","Obtain detailed checklists from consultants as to extent of diagnostics they are providing. File for comparison with their post-diagnostic reports.",{"$f":"J4","v":0},null,null,null,null,"By:",null,null,null,null,"Date:"]
["CL16f","✔","Schedule internal and external resources/ reporting.",{"$f":"J4","v":0}]
["CL16g","✔","Confirm permission and access details to building; arrange for power to be on if possible. Obtain complete set of keys. ",{"$f":"J4","v":0},null,null,null,null,"✔","1. All red-checked Tasks are required for this project by the firm.\n"]
["CL16h","✔","Obtain and study any existing drawings. Take copies to survey for comparison to actual conditions.",{"$f":"J4","v":0},null,null,null,null,"ISO","2. If ISO 9001 is a project requirement, all Tasks with a blue ISO reference must be used."]
["CL16i","✔","Determine whether any documentation of historic detail is required. ",{"$f":"J4","v":0},null,null,null,null,"✔","3. Select optional Tasks (black check mark) by deleting checkmarks for Tasks not needed."]
["CL16j","✔","Determine whether any photographic record is required; if so, arrange for same.",{"$f":"J4","v":0},null,null,null,null,"[C]","4. If using the 2009 AIA Client and Architects Agreement, this is a CORE activity."]
["CL16k","✔","Prepare building diagnostics report promptly from notes.",{"$f":"J4","v":0}]
[]
["© 1986-2017 Building Technology Pty Ltd. All rights reserved."]

{"sheet":"CL17","index":10,"n_rows":29,"n_cols":19,"rows_kept":29,"cut":false,"hidden":false,"merged":[[0,4,0,6],[1,4,1,6],[2,4,2,6],[3,4,3,6]]}
["Type:",null,{"$f":"Planner!B1","v":"CHECKITx All"},null,{"$f":"Planner!D1","v":"Test"}]
["Stage:",null,"1.  Initiation","PLNR",{"$f":"Planner!D2","v":"Street Address"},null,null,null,"CHECKITx"]
["CL ID:",null,"CL17 Building Survey",null,{"$f":"Planner!D3","v":"City | State | Postcode"}]
["Project:",null,{"$f":"Planner!B2","v":"Project Number & Name "},"Loc.",{"$f":"Planner!B3","v":"Location of Project "},null,null,null,null,null,"Staff assignment for this checklist - See Guides Sheet Step 4 for instructions"]
[]
["Item No ","Use","Task description","Who?","Checking record - action required if any. When action is completed, Initial & date approval\n","Chk By","Date",null,"Checking record:"]
["CL17a","✔","Confirm with client or principal-in-charge the complete purposes of the survey; prepare checklist of items to be documented. Coordinate with CL16 as applicable.",{"$f":"J4","v":0},null,null,null,null,null,1,2,3,4,5,6,7,8,9,10]
["CL17b","✔","Establish survey party. For measuring of existing conditions, a party of 3 is most efficient: 2 to measure; 1 to record - except where laser measuring equipment is available.",{"$f":"J4","v":0},null,null,null,null,"Initials:"]
["CL17c","✔","Take along: Laser measurer or 30m tape & 6m tape, 2 torches, camera, clipboard, pocket tape recorder, extra batteries, screwdriver, hammer. \n\n",{"$f":"J4","v":0},null,null,null,null,"Date:"]
["CL17d","✔","Check and note all external spaces, including roof. If roof is not accessible, take binoculars.  ",{"$f":"J4","v":0},null,null,null,null,"Checklist signoff: I have verified that all tasks for this checklist are complete"]
["CL17e","✔","Check and note all rooms on each floor in a clockwise manner. Note any alterations from existing drawings. \n",{"$f":"J4","v":0},null,null,null,null,"By:",null,null,null,null,"Date:"]
["CL17f","✔","Measure floor-to-floor heights in stairwells; measure exterior wall heights by dropping tape line from roof. ",{"$f":"J4","v":0}]
["CL17g","✔","Check and carefully note beams and timbers above top ceiling, if possible, and in basements.  ",{"$f":"J4","v":0},null,null,null,null,"✔","1. All red-checked Tasks are required for this project by the firm.\n"]
["CL17h","✔","Check carefully and note all exposed portions of foundation walls, noting any evidence of past movement, including stabilised movement.  ",{"$f":"J4","v":0},null,null,null,null,"ISO","2. If ISO 9001 is a project requirement, all Tasks with a blue ISO reference must be used."]
["CL17i","✔","Note any evidence of insect infestation or dry rot. Use screwdriver as probe. Note suspicious areas for follow up expert investigation. ",{"$f":"J4","v":0},null,null,null,null,"✔","3. Select optional Tasks (black check mark) by deleting checkmarks for Tasks not needed."]
["CL17j","✔","Note drain locations, position of drains, locations and size of water, fire, and gas entry lines.",{"$f":"J4","v":0},null,null,null,null,"[C]","4. If using the 2009 AIA Client and Architects Agreement, this is a CORE activity."]
["CL147k","✔","Note electrical equipment and building service capacity. ",{"$f":"J4","v":0}]
["CL17l","✔","Note heating and cooling equipment; copy data from nameplates; note operating condition if known. ",{"$f":"J4","v":0}]
["CL17m","✔","Note history of additions, extensions and alterations as can be determined. ",{"$f":"J4","v":0}]
["CL17n","✔","Check conditions of  flashings, copings, damp- courses, windows, skylights, external grilles, intakes, exhausts; note and photograph defects. ",{"$f":"J4","v":0}]
["CL17o","✔","Check adequacy of crawl space ventilation; check all ground floor floorboards, where accessible. ",{"$f":"J4","v":0}]
["CL17p","✔","Collect any drawings or photographs of the structure found during the survey. ",{"$f":"J4","v":0}]
["CL17q","✔","Prepare complete report promptly from notes.",{"$f":"J4","v":0}]
["CL17r","✔","Prepare existing conditions drawings (if required); note taken dimensions; note check dimensions which do not appear to be correct.",{"$f":"J4","v":0}]
["CL17s","✔","Revisit site and verify all doubtful dimensions.",{"$f":"J4","v":0}]
["CL17t","✔","Incorporate survey reports from subconsultants, if any, and distribute complete report and survey drawings package.",{"$f":"J4","v":0}]
["CL17u","✔","Review survey report against project brief; advise client and other consultants of any modification indicated.",{"$f":"J4","v":0}]
[]
["© 1986-2017 Building Technology Pty Ltd. All rights reserved."]

{"sheet":"CL18","index":11,"n_rows":25,"n_cols":19,"rows_kept":25,"cut":false,"hidden":false,"merged":[[0,4,0,6],[1,4,1,6],[2,4,2,6],[3,4,3,6]]}
["Type:",null,{"$f":"Planner!B1","v":"CHECKITx All"},null,{"$f":"Planner!D1","v":"Test"}]
["Stage:",null,"1.  Initiation","PLNR",{"$f":"Planner!D2","v":"Street Address"},null,null,null,"CHECKITx"]
["CL ID:",null,"CL18 Design Planning, DA & Stakeholders",null,{"$f":"Planner!D3","v":"City | State | Postcode"}]
["Project:",null,{"$f":"Planner!B2","v":"Project Number & Name "},"Loc.",{"$f":"Planner!B3","v":"Location of Project "},null,null,null,null,null,"Staff assignment for this checklist - See Guides Sheet Step 4 for instructions"]
[]
["Item No ","Use","Task description","Who?","Checking record - action required if any. When action is completed, Initial & date approval\n","Chk By","Date",null,"Checking record:"]
["CL18a","✔","Review project brief if not already familiar with it.",{"$f":"J4","v":0},null,null,null,null,null,1,2,3,4,5,6,7,8,9,10]
["CL18b","✔","If there are other consultants, confirm that program interface and coordination requirements have been established.",{"$f":"J4","v":0},null,null,null,null,"Initials:"]
["CL18c","✔","Schedule formal, minuted internal, client and consultant design reviews. [C]  ISO 9001 cl. 8.5.1.",{"$f":"J4","v":0},null,null,null,null,"Date:"]
["CL18d","✔","Check to determine whether staff assignment package is as submitted, or was amended betweeen submission and appointment.",{"$f":"J4","v":0},null,null,null,null,"Checklist signoff: I have verified that all tasks for this checklist are complete"]
["CL18e ","✔","Write to Client  to confirm review and acceptance of brief, with or without amendment. [C]",{"$f":"J4","v":0},null,null,null,null,"By:",null,null,null,null,"Date:"]
["CL18f","✔","Ensure that Client has confirmed that nominated subconsultants are acceptable before issuing letters of engagement. ISO 9001 cl. 8.4.",{"$f":"J4","v":0}]
["CL18g","✔","Prepare locality plan(s) showing zoning, roads, public transport, road traffic, major utilities, similar uses (existing or proposed). [C]",{"$f":"J4","v":0},null,null,null,null,"✔","1. All red-checked Tasks are required for this project by the firm.\n"]
["CL18h","✔","Prepare drawings & schedule re proposed uses for each building: gross floor area, all principal & ancillary uses. ISO 9001 cl. 8.3.",{"$f":"J4","v":0},null,null,null,null,"ISO","2. If ISO 9001 is a project requirement, all Tasks with a blue ISO reference must be used."]
["CL18i","✔","Prepare drawings & schedule re: development: existing & proposed building envelope, landscaping, parking & access. [C]",{"$f":"J4","v":0},null,null,null,null,"✔","3. Select optional Tasks (black check mark) by deleting checkmarks for Tasks not needed."]
["CL18j","✔","Prepare drawings & schedule re: urban design: elevations, materials, colours, shadows, signage, awnings etc. ISO 9001 cl. 8.3.",{"$f":"J4","v":0},null,null,null,null,"[C]","4. If using the 2009 AIA Client and Architects Agreement, this is a CORE activity."]
["CL18k","✔","Document supporting information re environmental impacts: natural, social, economic, commercial, traffic and other utility systems.",{"$f":"J4","v":0}]
["CL18l ","✔","Review subconsultants' \"critical decisions\" list for timely compliance (CL12r). ISO 9001 cl. 8.4.",{"$f":"J4","v":0}]
["CL18m","✔","Submit Design Approval documents. [C]",{"$f":"J4","v":0}]
["CL18n","✔","Review CL18 tasks against program development task allocation list; determine if extra services were rendered, if so request agreement variation (CL11o). ISO 9001 cl. 6.3.",{"$f":"J4","v":0}]
["CL18o","✔","Determine whether design will be single stage or two-stage (schematic design and design development). If design stages are combined, so note  in the PQP. Refer CL19.",{"$f":"J4","v":0}]
["CL18p","✔","Define issue points for design documents. ISO 9001 cl. 8.3.",{"$f":"J3","v":0}]
["CL18q","✔","Identify  needs and expectations of public & private stakeholders; identify project conditions that need to be met to meet their needs. Discuss with Client & amend scope if agreed. ISO 9001:4.2",{"$f":"J4","v":0}]
[]
["© 1986-2017 Building Technology Pty Ltd. All rights reserved."]

{"sheet":"CL19","index":12,"n_rows":23,"n_cols":19,"rows_kept":23,"cut":false,"hidden":false,"merged":[[0,4,0,6],[1,4,1,6],[2,4,2,6],[3,4,3,6]]}
["Type:",null,{"$f":"Planner!B1","v":"CHECKITx All"},null,{"$f":"Planner!D1","v":"Test"}]
["Stage:",null,"1.  Initiation","PLNR",{"$f":"Planner!D2","v":"Street Address"},null,null,null,"CHECKITx"]
["CL ID:",null,"CL19 Project Quality & Risk Planning",null,{"$f":"Planner!D3","v":"City | State | Postcode"}]
["Project:",null,{"$f":"Planner!B2","v":"Project Number & Name "},"Loc.",{"$f":"Planner!B3","v":"Location of Project "},null,null,null,null,null,"Staff assignment for this checklist - See Guides Sheet Step 4 for instructions"]
[]
["Item No ","Use","Task description","Who?","Checking record - action required if any. When action is completed, Initial & date approval\n","Chk By","Date",null,"Checking record:"]
["CL19a","✔","Quality management items occur throughout the CHECKIT system, and are indicated with blue text.  If ISO 9001 compliance is a project requirement, ensure they are checked red for this project.",{"$f":"J4","v":0},null,null,null,null,null,1,2,3,4,5,6,7,8,9,10]
["CL19b","✔","Review CL11w Risk Analysis outcome and ensure that recommended mitigation strategies are implemented. ISO 9001 cl. 6.1.1, 6.1.2",{"$f":"J4","v":0},null,null,null,null,"Initials:"]
["CL19c","✔","Prepare a Project Quality Plan (PQP) using the CHECKIT PQP template. ISO 9001 cl. 6.2, 8.1",{"$f":"J4","v":0},null,null,null,null,"Date:"]
["CL19d","✔","Review Client requirements for the PQP. If more extensive than provided for in the template, the format will require amendment. ISO 9001 cl. 5.1.2, 9.1.3.",{"$f":"J4","v":0},null,null,null,null,"Checklist signoff: I have verified that all tasks for this checklist are complete"]
["CL19e ","✔","Review options for type and frequency of quality checks; also determine with Client whether Client will attend design reviews (recommended). ISO 9001 cl. 8.5.1.",{"$f":"J4","v":0},null,null,null,null,"By:",null,null,null,null,"Date:"]
["CL19f","✔","Review and resolve method of dealing with any outstanding risk issues in the client's brief, and as indicated by site or other project constraints (eg latent conditions). ISO 9001 cl. 6.1.",{"$f":"J4","v":0}]
["CL19g","✔","Prepare a Risk Management Plan (RMP), taking into account CL19b, CL19f and the risk-related items in CL11. The DesignRisk Excel template can be used to create the RMP. ISO 9001 cl. 6.1.",{"$f":"J4","v":0},null,null,null,null,"✔","1. All red-checked Tasks are required for this project by the firm.\n"]
["CL19h","✔","Determine if PQPs are required from subconsultants / other consultants; if so, obtain and check for coordination with your PQP. ISO 9001 cl. 8.4.",{"$f":"J4","v":0},null,null,null,null,null,"2. If ISO 9001 is a project requirement, all Tasks with a blue ISO reference must be used."]
["CL19i","✔","Update the PQP if/as required by changes in or evolution of the project brief.  ISO 9001 cl. 7.5.2, 8.3.",{"$f":"J4","v":0},null,null,null,null,"✔","3. Select optional Tasks (black check mark) by deleting checkmarks for Tasks not needed."]
["CL19j","✔","Arrange to have the project director approve any changes to a PQP. ISO 9001 cl. 5.1, 8.3.",{"$f":"J4","v":0},null,null,null,null,"[C]","4. If using the 2009 AIA Client and Architects Agreement, this is a CORE activity."]
["CL19k","✔","Changes to the PQP are a revision; manage them in accordance with firm procedures for updating controlled documents. ISO 9001 cl. 8.3.",{"$f":"J4","v":0}]
["CL19l ","✔","Prepare and issue amended pages. Add a 'revised date' and update the issue no. in accordance with firm’s document control procedures. ISO 9001 cl. 8.2, 8.3.",{"$f":"J4","v":0}]
["CL19m","✔","Carry out internal project audits if recommended by the firm's overall quality policy. ISO 9001 cl. 9.2.",{"$f":"J4","v":0}]
["CL19n","✔","Conduct a final  check prior to issuing tender documents. Make final changes as needed, and record any significant discrepancies. Report to senior management. ISO 9001 cl. 8.6, 8.7, 10.2.",{"$f":"J4","v":0}]
["CL19o","✔","Regulary update the RMP; keep client and other consultants updated with changes in risk issues. ISO 9001 cl. 7.5.2, 8.3.6,  8.5.6.",{"$f":"J4","v":0}]
[]
["© 1986-2017 Building Technology Pty Ltd. All rights reserved."]

{"sheet":"CL21","index":13,"n_rows":34,"n_cols":19,"rows_kept":34,"cut":false,"hidden":false,"merged":[[0,4,0,6],[1,4,1,6],[2,4,2,6],[3,4,3,6]]}
["Type:",null,{"$f":"Planner!B1","v":"CHECKITx All"},null,{"$f":"Planner!D1","v":"Test"}]
["Stage:",null,"2.  Schematic Design","PLNR",{"$f":"Planner!D2","v":"Street Address"},null,null,null,"CHECKITx"]
["CL ID:",null,"CL21 Permit & Concept Studies",null,{"$f":"Planner!D3","v":"City | State | Postcode"}]
["Project:",null,{"$f":"Planner!B2","v":"Project Number & Name "},"Loc.",{"$f":"Planner!B3","v":"Location of Project "},null,null,null,null,null,"Staff assignment for this checklist - See Guides Sheet Step 4 for instructions"]
[]
["Item No ","Use","Task description","Who?","Checking record - action required if any. When action is completed, Initial & date approval\n","Chk By","Date",null,"Checking record:"]
["CL21a","✔","Prepare summary of detailed brief including all up-to-date information; confirm with client. Distribute to office team. ISO 9001 cl. 7.3, 7.4, 8.5.",{"$f":"J4","v":0},null,null,null,null,null,1,2,3,4,5,6,7,8,9,10]
["CL21b","✔","Develop list of questions affecting schematic design pertinent to each engineering discipline. Circulate with requested target date for answers. ISO 9001 cl. 8.4.",{"$f":"J4","v":0},null,null,null,null,"Initials:"]
["CL21c","✔","Prepare schematic phase work and staffing plan and time schedule. Review with PlC.",{"$f":"J4","v":0},null,null,null,null,"Date:"]
["CL21d","✔","Verify progress to work plan in current period. Note deficiencies.",{"$f":"J4","v":0},null,null,null,null,"Checklist signoff: I have verified that all tasks for this checklist are complete"]
["CL21e","✔","Prepare functional diagrams including relationship to existing structures; develop viable functional arrangement options; review with client. Select preferred arrangement(s).",{"$f":"J4","v":0},null,null,null,null,"By:",null,null,null,null,"Date:"]
["CL21f","✔","Study siting options and climatic influences; develop massing models; evaluate relationships to site context.",{"$f":"J4","v":0}]
["CL21g","✔","Test massing options against preferred functional arrangement and brief; review with client. Select model.",{"$f":"J4","v":0},null,null,null,null,"✔","1. All red-checked Tasks are required for this project by the firm.\n"]
["Cl21h","✔","Evaluate provisional concepts for accommodation of economic structural systems with SEng.",{"$f":"J4","v":0},null,null,null,null,"ISO","2. If ISO 9001 is a project requirement, all Tasks with a blue ISO reference must be used."]
["CL21i","✔","Evaluate provisional concepts for accommodation of parking requirements.",{"$f":"J4","v":0},null,null,null,null,"✔","3. Select optional Tasks (black check mark) by deleting checkmarks for Tasks not needed."]
["CL21j","✔","Receive SEng's preliminary report on structural system options; review with QS and client. Select provisional system(s).",{"$f":"J4","v":0},null,null,null,null,"[C]","4. If using the 2009 AIA Client and Architects Agreement, this is a CORE activity."]
["CL21k","✔","Receive BSEng's preliminary report on building services options; review with QS and client. Select provisional systems.",{"$f":"J4","v":0}]
["CL21l","✔","Develop plan for presentation materials, renderings, models and written materials. Confirm with client.",{"$f":"J4","v":0}]
["CL21m","✔","Select and appoint other consultants or subconsultants for presentation materials; confirm costs and delivery schedules. Obtain client's approval on other consultants.",{"$f":"J4","v":0}]
["CL21n","✔","Confirm any revisions to project delivery budget estimate; request updated delivery budget from QS.",{"$f":"J4","v":0}]
["CL21o","✔","Prepare preliminary schedule of internal & external finishes; confirm with client & submit to QS; request confirmation of any delivery budget changes and costs for alternatives. [C]",{"$f":"J4","v":0}]
["CL21p","✔","Check concept plans for conformity with fire and egress requirements. Establish provisional egress space requirements.",{"$f":"J4","v":0}]
["CL21q","✔","Establish provisional lift shaft sizes, air duct sizes, raised floor requirements, plant room sizes and other mechanical requirements.",{"$f":"J4","v":0}]
["CL21r","✔","Establish provisional beam depths, duct crossovers and floor-to-floor heights.",{"$f":"J4","v":0}]
["CL21s","✔","Establish disabled access requirements.",{"$f":"J4","v":0}]
["CL21t","✔","Confirm compliance with plot ratio requirements and bonuses.",{"$f":"J4","v":0}]
["CL21u","✔","Determine if shading studies are required; if so, prepare and submit.",{"$f":"J4","v":0}]
["CL21v","✔","Check schematic design against all CL15 requirements. [Authority & Planning Approvals]",{"$f":"J4","v":0}]
["CL21w","✔","Review scheme with planning authority personnel for informal advice and comment. [C]",{"$f":"J4","v":0}]
["CL21x","✔","Submit schematic design to QS for review of preliminary delivery budget & alignment with cost plan (Ref. CL12w)",{"$f":"J5","v":0}]
["CL21y","✔","Review schematic design with client’s marketing/real estate advisors.",{"$f":"J6","v":0}]
["CL21z","✔","Obtain client’s approval of and sign-off on schematic design, or obtain authority to proceed to next stage.",{"$f":"J4","v":0}]
[]
["© 1986-2017 Building Technology Pty Ltd. All rights reserved."]

{"sheet":"CL22","index":14,"n_rows":32,"n_cols":19,"rows_kept":32,"cut":false,"hidden":false,"merged":[[0,4,0,6],[1,4,1,6],[2,4,2,6],[3,4,3,6]]}
["Type:",null,{"$f":"Planner!B1","v":"CHECKITx All"},null,{"$f":"Planner!D1","v":"Test"}]
["Stage:",null,"2. Schematic Design","PLNR",{"$f":"Planner!D2","v":"Street Address"},null,null,null,"CHECKITx"]
["CL ID:",null,"CL22 Traffic and Parking",null,{"$f":"Planner!D3","v":"City | State | Postcode"}]
["Project:",null,{"$f":"Planner!B2","v":"Project Number & Name "},"Loc.",{"$f":"Planner!B3","v":"Location of Project "},null,null,null,null,null,"Staff assignment for this checklist - See Guides Sheet Step 4 for instructions"]
[]
["Item No ","Use","Task description","Who?","Checking record - action required if any. When action is completed, Initial & date approval\n","Chk By","Date",null,"Checking record:"]
["CL22a","✔","Meet with authorities to discuss site access preference and restrictions. Confirm in report to client.",{"$f":"J4","v":0},null,null,null,null,null,1,2,3,4,5,6,7,8,9,10]
["CL22b","✔","Determine if traffic consultant is required; if so advise client; prepare brief if instructed and select consultant. ",{"$f":"J4","v":0},null,null,null,null,"Initials:"]
["CL22c","✔","Determine whether authority will require a traffic impact study, if so, commission.",{"$f":"J4","v":0},null,null,null,null,"Date:"]
["CL22d","✔","Establish statutory or other official parking limitations, ratios for use classes and special site requirements.",{"$f":"J4","v":0},null,null,null,null,"Checklist signoff: I have verified that all tasks for this checklist are complete"]
["CL22e","✔","File traffic impact study with responsible authority if required.",{"$f":"J4","v":0},null,null,null,null,"By:",null,null,null,null,"Date:"]
["CL22f","✔","Confirm parking space requirements. minimum lane and turning dimensions. and whether spaces for small cars are permitted.",{"$f":"J4","v":0}]
["CL22g","✔","Confirm that proposed column spacing is compatible with parking requirements.",{"$f":"J4","v":0},null,null,null,null,"✔","1. All red-checked Tasks are required for this project by the firm.\n"]
["CL22h","✔","Establish footpath elevations at all vehicle access points and proposed parking floor elevations. Determine ramp lengths needed.",{"$f":"J4","v":0},null,null,null,null,"ISO","2. If ISO 9001 is a project requirement, all Tasks with a blue ISO reference must be used."]
["CL22i","✔","Prepare preliminary parking layouts; distribute to SEng. BSEng and Traffic Engineer for checking of conflicts.",{"$f":"J4","v":0},null,null,null,null,"✔","3. Select optional Tasks (black check mark) by deleting checkmarks for Tasks not needed."]
["CL22j","✔","Confirm type of parking control with client; review against brief. Confirm space requirements.",{"$f":"J4","v":0},null,null,null,null,"[C]","4. If using the 2009 AIA Client and Architects Agreement, this is a CORE activity."]
["CL22k","✔","Verify headroom requirements for boom gates; advise SEng to hold down reinforcement at sensor loops as required.",{"$f":"J4","v":0}]
["CL22l","✔","Check design development drawings for vehicle headroom.",{"$f":"J4","v":0}]
["CL22m","✔","Confirm headroom requirements. turning radii. dock heights, etc. at loading bays.",{"$f":"J4","v":0}]
["CL22n","✔","Establish statutory garage exhaust and sprinkler protection requirements. Confirm for BSEng.",{"$f":"J4","v":0}]
["CL22o","✔","Review parking capacities with client and client's real estate advisors.",{"$f":"J4","v":0}]
["CL22p","✔","File parking layout and exhaust provisions with authorities as required.",{"$f":"J4","v":0}]
["CL22q","✔","Confirm location and type of drains with BSEng.",{"$f":"J4","v":0}]
["CL22r","✔","Confirm location and type of fire warning and control devices with Fire Brigade.",{"$f":"J4","v":0}]
["CL22s","✔","Confirm fire separation ratings required and check against architectural drawings.",{"$f":"J4","v":0}]
["CL22t","✔","Confirm that all ducts, piping and conduits are higher than entrance clearance.",{"$f":"J4","v":0}]
["CL22u","✔","Confirm locations and type of all required signs. Advise specification writer.",{"$f":"J4","v":0}]
["CL22v","✔","Confirm locations of all column guards, bollards and barriers. Advise architectural team.",{"$f":"J4","v":0}]
["CL22w","✔","Verify adequate head clearance for roller doors.",{"$f":"J4","v":0}]
["CL22x","✔","Confirm sealers, safety painting and line marking with client. Advise specification writer.",{"$f":"J5","v":0}]
["CL22y","✔","Final check all ramp grades and gradients.",{"$f":"J6","v":0}]
["© 1986-2017 Building Technology Pty Ltd. All rights reserved."]

{"sheet":"CL23","index":15,"n_rows":22,"n_cols":19,"rows_kept":22,"cut":false,"hidden":false,"merged":[[0,4,0,6],[1,4,1,6],[2,4,2,6],[3,4,3,6]]}
["Type:",null,{"$f":"Planner!B1","v":"CHECKITx All"},null,{"$f":"Planner!D1","v":"Test"}]
["Stage:",null,"2. Schematic Design","PLNR",{"$f":"Planner!D2","v":"Street Address"},null,null,null,"CHECKITx"]
["CL ID:",null,"CL23 Landscape Architecture",null,{"$f":"Planner!D3","v":"City | State | Postcode"}]
["Project:",null,{"$f":"Planner!B2","v":"Project Number & Name "},"Loc.",{"$f":"Planner!B3","v":"Location of Project "},null,null,null,null,null,"Staff assignment for this checklist - See Guides Sheet Step 4 for instructions"]
[]
["Item No ","Use","Task description","Who?","Checking record - action required if any. When action is completed, Initial & date approval\n","Chk By","Date",null,"Checking record:"]
["CL23a","✔","Using information obtained via CL14, prepare preliminary landscaping plan; distribute for review.",{"$f":"J4","v":0},null,null,null,null,null,1,2,3,4,5,6,7,8,9,10]
["CL23b","✔","Prepare preliminary plant materials schedule.",{"$f":"J4","v":0},null,null,null,null,"Initials:"]
["CL23c","✔","Confirm delivdery budget allowances for landscaping; advise QS.",{"$f":"J4","v":0},null,null,null,null,"Date:"]
["CL23d","✔","Confirm coordination of hydrant, irrigation and drainage requirements with BSEng.",{"$f":"J4","v":0},null,null,null,null,"Checklist signoff: I have verified that all tasks for this checklist are complete"]
["CL23e","✔","Check landscaping plan for conformity to brief and architectural design.",{"$f":"J4","v":0},null,null,null,null,"By:",null,null,null,null,"Date:"]
["CL23f","✔","Verify that areas of sodding, seeding and mulching are shown and noted.",{"$f":"J4","v":0}]
["CL23g","✔","Check final plant materials schedule.",{"$f":"J4","v":0},null,null,null,null,"✔","1. All red-checked Tasks are required for this project by the firm."]
["CL23h","✔","Confirm appropriate planting season limitations.",{"$f":"J4","v":0},null,null,null,null,"ISO","2. If ISO 9001 is a project requirement, all Tasks with a blue ISO reference must be used."]
["CL23i","✔","Confirm provision of specification notes to specification writer.",{"$f":"J4","v":0},null,null,null,null,"✔","3. Select optional Tasks (black check mark) by deleting checkmarks for Tasks not needed."]
["CL23j","✔","Confirm final landscape requirements with QS.",{"$f":"J4","v":0},null,null,null,null,"[C]","4. If using the 2009 AIA Client and Architects Agreement, this is a CORE activity."]
["CL23k","✔","Confirm availability of specimen trees; reserve as required; advise on digging schedule.",{"$f":"J4","v":0}]
["CL23l","✔","Review and approve landscaping works specification.",{"$f":"J4","v":0}]
["CL23m","✔","Check final landscape plan against civil and architectural drawings and details.",{"$f":"J4","v":0}]
["CL23n","✔","Confirm tagging of trees at nursery to approved schedule; verify delivery with construction schedule.",{"$f":"J4","v":0}]
[]
["© 1986-2017 Building Technology Pty Ltd. All rights reserved."]

{"sheet":"CL24","index":16,"n_rows":22,"n_cols":19,"rows_kept":22,"cut":false,"hidden":false,"merged":[[0,4,0,6],[1,4,1,6],[2,4,2,6],[3,4,3,6]]}
["Type:",null,{"$f":"Planner!B1","v":"CHECKITx All"},null,{"$f":"Planner!D1","v":"Test"}]
["Stage:",null,"2. Schematic Design","PLNR",{"$f":"Planner!D2","v":"Street Address"},null,null,null,"CHECKITx"]
["CL ID:",null,"CL24 Environmental - Siting & Planning",null,{"$f":"Planner!D3","v":"City | State | Postcode"}]
["Project:",null,{"$f":"Planner!B2","v":"Project Number & Name "},"Loc.",{"$f":"Planner!B3","v":"Location of Project "},null,null,null,null,null,"Staff assignment for this checklist - See Guides Sheet Step 4 for instructions"]
[]
["Item No ","Use","Task description","Who?","Checking record - action required if any. When action is completed, Initial & date approval\n","Chk By","Date",null,"Checking record:"]
["CL24a","✔","Refer to and incorporate input from CL13: Environmental Requirements.",{"$f":"J4","v":0},null,null,null,null,null,1,2,3,4,5,6,7,8,9,10]
["CL24b","✔","Prepare/commission energy management study, if required. Submit to client.",{"$f":"J4","v":0},null,null,null,null,"Initials:"]
["CL24c","✔","As appropriate, design to preserve existing vegetation and topsoil.",{"$f":"J4","v":0},null,null,null,null,"Date:"]
["CL24d","✔","Where appropriate, design to maintain, rehabilitate and restore habitat corridors.",{"$f":"J4","v":0},null,null,null,null,"Checklist signoff: I have verified that all tasks for this checklist are complete"]
["CL24e","✔","Where appropriate, design to minimise the need for construction practices that cause erosion.",{"$f":"J4","v":0},null,null,null,null,"By:",null,null,null,null,"Date:"]
["CL24f","✔","Design hard landscape areas to facilitate rainwater absorption and retention.",{"$f":"J4","v":0}]
["CL24g","✔","Site buildings for optimum passive design opportunities – consider prevailing winds, solar access, etc. Where possible, maintain solar access to adjacent sites.",{"$f":"J4","v":0},null,null,null,null,"✔","1. All red-checked Tasks are required for this project by the firm."]
["CL24h","✔","Design to maintain and protect lifestyle and amenities of neighbours. Minimise light pollution.",{"$f":"J4","v":0},null,null,null,null,null,"2. If ISO 9001 is a project requirement, all Tasks with a blue ISO reference must be used."]
["CL24i","✔","Design to reduce heat-island effect through appropriate external material selection.",{"$f":"J4","v":0},null,null,null,null,"✔","3. Select optional Tasks (black check mark) by deleting checkmarks for Tasks not needed."]
["CL24j","✔","Design to reduce development footprint.",{"$f":"J4","v":0}]
["CL24k","✔","If part of the brief, consider proximity to public transport and people as part of site selection.",{"$f":"J4","v":0}]
["CL24l","✔","If appropriate, design in pathways and cycle-ways.",{"$f":"J4","v":0}]
["CL24m","✔","Provide secure storage facilities for transport other than cars eg integrated bicycle parking (public & private). Provide shower and change facilities.",{"$f":"J4","v":0}]
["CL24n","✔","Design to allow for future changes to cars fuelling\ne.g. electric recharging.",{"$f":"J4","v":0}]
[]
["© 1986-2017 Building Technology Pty Ltd. All rights reserved."]

{"sheet":"CL25","index":17,"n_rows":22,"n_cols":19,"rows_kept":22,"cut":false,"hidden":false,"merged":[[0,4,0,6],[1,4,1,6],[2,4,2,6],[3,4,3,6]]}
["Type:",null,{"$f":"Planner!B1","v":"CHECKITx All"},null,{"$f":"Planner!D1","v":"Test"}]
["Stage:",null,"2.  Schematic Design","PLNR",{"$f":"Planner!D2","v":"Street Address"},null,null,null,"CHECKITx"]
["CL ID:",null,"CL25 Risk / WH&S Design",null,{"$f":"Planner!D3","v":"City | State | Postcode"}]
["Project:",null,{"$f":"Planner!B2","v":"Project Number & Name "},"Loc.",{"$f":"Planner!B3","v":"Location of Project "},null,null,null,null,null,"Staff assignment for this checklist - See Guides Sheet Step 4 for instructions"]
[]
["Item No ","Use","Task description","Who?","Checking record - action required if any. When action is completed, Initial & date approval\n","Chk By","Date",null,"Checking record:"]
["CL25a","✔","Risk reduction and Workplace Health & Safety items exist throughout the CHECKIT system. Select RISK in project setup to trigger inclusion of all these items.",{"$f":"J4","v":0},null,null,null,null,null,1,2,3,4,5,6,7,8,9,10]
["CL25b","✔","Set up a Project Risk Log.  Review project brief and list potential safety and other project risks. ISO 9001 cl. 6.1.",{"$f":"J4","v":0},null,null,null,null,"Initials:"]
["CL25c","✔","On major projects, review AS/NZS 4360: Risk Management for applicability to project. ISO 9001 cl. 6.1.",{"$f":"J4","v":0},null,null,null,null,"Date:"]
["CL25d","✔","Review design at each Stage; identify potential risks inherent in design; eliminate where possible. Update Risk Log for remaining items; submit to client. ISO 9001 cl. 8.5.1.",{"$f":"J4","v":0},null,null,null,null,"Checklist signoff: I have verified that all tasks for this checklist are complete"]
["CL25e","✔","Review building survey and other inputs for asbestos contamination, mould, toxic and/or hazardous products on site. ",{"$f":"J4","v":0},null,null,null,null,"By:",null,null,null,null,"Date:"]
["CL25f","✔","Review life cycle issues; discuss with client, consultants and contractor (see also CL26 BIM Project Setup if used for this project).",{"$f":"J4","v":0}]
["CL25g","✔","Review construction methods; discuss with consultants and contractor. Eliminate/minimise any risks. Consider requiring a method statement for construction risks.",{"$f":"J4","v":0},null,null,null,null,"✔","1. All red-checked Tasks are required for this project by the firm.\n"]
["CL25h","✔","Review building maintenance systems; discuss with client, consultants and contractor. ",{"$f":"J4","v":0},null,null,null,null,"ISO","2. If ISO 9001 is a project requirement, all Tasks with a blue ISO reference must be used."]
["CL25i","✔","Consider potential for falling from roofs or windows. Consider ease of servicing rooftop equipment.",{"$f":"J4","v":0},null,null,null,null,"✔","3. Select optional Tasks (black check mark) by deleting checkmarks for Tasks not needed."]
["CL25j","✔","Review adequacy of ventilation systems, especially with regard to Legionella, including the ongoing costs of inspections and treatment.",{"$f":"J4","v":0},null,null,null,null,"[C]","4. If using the 2009 AIA Client and Architects Agreement, this is a CORE activity."]
["CL25k","✔","Agree standards of adequacy for lighting in plantrooms, other service facilities.",{"$f":"J4","v":0}]
["CL25l","✔","Review adequacy of protection for shared pedestrian/vehicular traffic.",{"$f":"J4","v":0}]
["CL25m","✔","Review adequacy of safeguards for security and violence minimisation.",{"$f":"J4","v":0}]
["CL25n","✔","Review design considerations in manual handling of materials and people (hospitals, aged care facilities, receiving areas); design to minimise risk.",{"$f":"J4","v":0}]
[]
["© 1986-2017 Building Technology Pty Ltd. All rights reserved."]

{"sheet":"CL26","index":18,"n_rows":33,"n_cols":19,"rows_kept":33,"cut":false,"hidden":false,"merged":[[0,4,0,6],[1,4,1,6],[2,4,2,6],[3,4,3,6]]}
["Type:",null,{"$f":"Planner!B1","v":"CHECKITx All"},null,{"$f":"Planner!D1","v":"Test"}]
["Stage:",null,"2.  Schematic Design","PLNR",{"$f":"Planner!D2","v":"Street Address"},null,null,null,"CHECKITx"]
["CL ID:",null,"CL26 BIM Project Setup",null,{"$f":"Planner!D3","v":"City | State | Postcode"}]
["Project:",null,{"$f":"Planner!B2","v":"Project Number & Name "},"Loc.",{"$f":"Planner!B3","v":"Location of Project "},null,null,null,null,null,"Staff assignment for this checklist - See Guides Sheet Step 4 for instructions"]
[]
["Item No ","Use","Task description","Who?","Checking record - action required if any. When action is completed, Initial & date approval\n","Chk By","Date",null,"Checking record:"]
["CL26a","✔","Confirm BIM LOD required (Ref CL11n). Note that default level should require  all consultants to provide BIM input. If firm is providing a \"stand alone\" model, costs will be higher.",{"$f":"J4","v":0},null,null,null,null,null,1,2,3,4,5,6,7,8,9,10]
["CL26b","✔","If unfamiliar with BIM-speak terminology, review NATSPEC Project BIM Guidelines Checklist (Ref CL26s)",{"$f":"J4","v":0},null,null,null,null,"Initials:"]
["CL26c","✔","Evaluate consultant experience with BIM and interoperability capabilities of their software prior to confirming project team.",{"$f":"J4","v":0},null,null,null,null,"Date:"]
["CL26d","✔","If preparing BIM tender invitations for other consultants, refer NATSPEC Project Information Proforma and Natspec RFQ or RFP Proforma as guidelines (Ref CL26s)",{"$f":"J4","v":0},null,null,null,null,"Checklist signoff: I have verified that all tasks for this checklist are complete"]
["CL26e","✔","If client is new to BIM, review NATSPEC Client-Lead BIM Adviser Discussion Checklist before discussing it with them. (Ref CL26s)",{"$f":"J4","v":0},null,null,null,null,"By:",null,null,null,null,"Date:"]
["CL26f","✔","Clarify client’s specific requirements for information to be managed after project completion.",{"$f":"J4","v":0}]
["CL26g","✔","If preparing a BIM brief on behalf of client, review NATSPEC Project BIM Brief. Download at: (http://bim.natspec.org/documents/natspec-national-bim-guide)",{"$f":"J4","v":0},null,null,null,null,"✔","1. All red-checked Tasks are required for this project by the firm.\n"]
["CL26h","✔","Conduct first team planning meeting to establish specific, concise  BIM goals for the project; assign actions to research any unclear elements. Review Natspec BIM Use Checklist (Ref CL26s)",{"$f":"J4","v":0},null,null,null,null,"ISO","2. If ISO 9001 is a project requirement, all Tasks with a blue ISO reference must be used."]
["CL26i","✔","Pursuant to CL26h, prepare and circulate a report of the goals and supporting conditions; obtain signoff from entire team including client.",{"$f":"J4","v":0},null,null,null,null,"✔","3. Select optional Tasks (black check mark) by deleting checkmarks for Tasks not needed."]
["CL26j","✔","Establish team-wide communication flow protocols.",{"$f":"J4","v":0},null,null,null,null,"[C]","4. If using the 2009 AIA Client and Architects Agreement, this is a CORE activity."]
["CL26k","✔","Plan risk allocation to optimise risk management; agree with client; record.",{"$f":"J5","v":0}]
["CL26l","✔","Identify potential obstacles to success and determine how to alleviate them; coordinate with risk allocation plan.",{"$f":"J6","v":0}]
["CL26m","✔","Pursuant to CL26f, determine extent of data to be tagged to materials representation; promote team consistency in achieving this level.",{"$f":"J4","v":0}]
["CL26n","✔","Ensure that version control of documentation is rigorous and uniformly adopted by all team members.",{"$f":"J8","v":0}]
["CL26o","✔","Define handoff and control points.",{"$f":"J9","v":0}]
["CL26p","✔","Ensure that graphic/drafting conventions are consistent across the design team.",{"$f":"J10","v":0}]
["CL26q","✔","Discuss & agree modelling standards & model naming conventions across all contributors.",{"$f":"J11","v":0}]
["CL26r","✔","Review web-based collaboration system; ensure  secure accessibility of all files (including prior versions) for project team & client.",{"$f":"J12","v":0}]
["CL2s","✔","Ensure that software products proposed to be used by all contributors are IFC and COBie compliant.",{"$f":"D26+J4","v":0}]
["CL26t","✔","Ensure that known project risks have been discussed and responsibility agreed and documented.",{"$f":"J4","v":0}]
["CL26u","✔","Ensure that quality control plan covers BIM issues including method of clash detection.",{"$f":"J1","v":0}]
["CL26v","✔","Verify that deliverables schedules are coordinated with BIM model stages of development.",{"$f":"J2","v":0}]
["CL26w","✔","Plan accelerated schedules carefully; review integration of milestones, hold points, quality checks and clash detection.",{"$f":"J3","v":0}]
["CL26x","✔","NATSPEC guide documents noted above, except CL26g, can be downloaded at: http://bim.natspec.org/documents/templates-proforma-checklists",{"$f":"J4","v":0}]
["CL26y","✔","Additional BIM guides can be downloaded from: http://bim.natspec.org/resources/bim-guides-by-others",{"$f":"J4","v":0}]
[]
["© 1986-2017 Building Technology Pty Ltd. All rights reserved."]

{"sheet":"CL31","index":19,"n_rows":34,"n_cols":19,"rows_kept":34,"cut":false,"hidden":false,"merged":[[0,4,0,6],[1,4,1,6],[2,4,2,6],[3,4,3,6]]}
["Type:",null,{"$f":"Planner!B1","v":"CHECKITx All"},null,{"$f":"Planner!D1","v":"Test"}]
["Stage:",null,"3. Design Development","PLNR",{"$f":"Planner!D2","v":"Street Address"},null,null,null,"CHECKITx"]
["CL ID:",null,"CL31 Design Development",null,{"$f":"Planner!D3","v":"City | State | Postcode"}]
["Project:",null,{"$f":"Planner!B2","v":"Project Number & Name "},"Loc.",{"$f":"Planner!B3","v":"Location of Project "},null,null,null,null,null,"Staff assignment for this checklist - See Guides Sheet Step 4 for instructions"]
[]
["Item No ","Use","Task description","Who?","Checking record - action required if any. When action is completed, Initial & date approval\n","Chk By","Date",null,"Checking record:"]
["CL31a","✔","Update summary of detailed schematic design brief as required; confirm with client. Distribute. (Refer CL21a.)  ISO 9001: cl. 6.3.",{"$f":"J4","v":0},null,null,null,null,null,1,2,3,4,5,6,7,8,9,10]
["CL31b","✔","Compare each subconsultant's and other consultant's schematics to architectural, verify match.  ISO 9001: cl. 8.4.",{"$f":"J4","v":0},null,null,null,null,"Initials:"]
["CL31c","✔","Verify that all questions from the schematic design brief relating to engineering disciplines have been resolved (CL21b). ISO 9001: cl. 8.4.",{"$f":"J4","v":0},null,null,null,null,"Date:"]
["CL31d","✔","Confirm any revisions to delivery budget. [C]",{"$f":"J4","v":0},null,null,null,null,"Checklist signoff: I have verified that all tasks for this checklist are complete"]
["CL31e ","✔","Check preliminary internal and external Finishes Schedule; revise if necessary. Distribute (CL21o).",{"$f":"J4","v":0},null,null,null,null,"By:",null,null,null,null,"Date:"]
["CL31f","✔","Prepare design development phase work plan, staffing plan and time schedule. Review with PlC.",{"$f":"J4","v":0}]
["CL31g","✔","Verify progress to work plan in current period. Note deficiencies.",{"$f":"J4","v":0},null,null,null,null,"✔","1. All red-checked Tasks are required for this project by the firm.\n"]
["CL31h","✔","Test structural design against other criteria; confirm/amend provisional structural system selection (CL21j). ISO 9001: cl. 8.4.",{"$f":"J4","v":0},null,null,null,null,"ISO","2. If ISO 9001 is a project requirement, all Tasks with a blue ISO reference must be used."]
["CL31i","✔","Confirm lift speeds, door operation, controls, general car interior requirements with client and real estate advisor; advise as to check delivery budget allowances.",{"$f":"J4","v":0},null,null,null,null,"✔","3. Select optional Tasks (black check mark) by deleting checkmarks for Tasks not needed."]
["CL31j","✔","Confirm lift shaft dimensions, overrun and pit requirements, plant room sizes, sheave beam requirements etc.  Confirm final detail requirements for lifts and escalators.",{"$f":"J4","v":0},null,null,null,null,"[C]","4. If using the 2009 AIA Client and Architects Agreement, this is a CORE activity."]
["CL31k","✔","Confirm acceptability of access to fireman's lift and fire control panel.",{"$f":"J4","v":0}]
["CL31l","✔","Confirm typical floor beam depths, maximum duct depth requirements, floor-to-floor heights.",{"$f":"J4","v":0}]
["CL31m","✔","Test mechanical design against other criteria; confirm/amend provisional building services system selections; confirm that sanitary fixture count meets statutory requirements (CL21l).",{"$f":"J4","v":0}]
["CL31n","✔","Establish location and provisional size of electrical substation if required; consult State and local power supply authority.",{"$f":"J4","v":0}]
["CL31o","✔","Confirm provisional dimensions of shafts and duct spaces, all levels; confirm plant room equipment layouts, tanks and other mechanical requirements.",{"$f":"J4","v":0}]
["CL31p","✔","Prepare options complying with reflectance, heat gain/loss requirements, glass shading coefficients; review with client and BSEng. Select.",{"$f":"J4","v":0}]
["CL31q","✔","Prepare options study for building maintenance unit (if required); review with client. Submit for approval.",{"$f":"J4","v":0}]
["CL31r","✔","Verify curtain wall design compatibility with edge beam loading deflections.",{"$f":"J4","v":0}]
["CL31s","✔","Evaluate vertical \"creep\" considerations (for tall structures).",{"$f":"J4","v":0}]
["CL31t","✔","Confirm ceiling module dimensions with client, real estate advisor and BSEng.",{"$f":"J4","v":0}]
["CL31u","✔","Confirm all service utility entry points, sizes, and architectural requirements.",{"$f":"J4","v":0}]
["CL31v","✔","Confirm fire rating requirements for all building elements.",{"$f":"J4","v":0}]
["CL31w","✔","Prepare computer floor options study. Submit to client.",{"$f":"J5","v":0}]
["CL31x","✔","Check design development drawings against all CL15 requirements. [Authority & Planning Approvals] [C] ISO 9001: cl. 8.3.",{"$f":"J6","v":0}]
["CL31y","✔","Submit design development drawings to QS for review of cost plan.",{"$f":"J4","v":0}]
["CL31z","✔","Obtain client's approval of and sign-off on design development, or obtain authority to proceed to next stage. [C]",{"$f":"J8","v":0}]
[]
["© 1986-2017 Building Technology Pty Ltd. All rights reserved."]

{"sheet":"CL32","index":20,"n_rows":14,"n_cols":19,"rows_kept":14,"cut":false,"hidden":false,"merged":[[0,4,0,6],[1,4,1,6],[2,4,2,6],[3,4,3,6]]}
["Type:",null,{"$f":"Planner!B1","v":"CHECKITx All"},null,{"$f":"Planner!D1","v":"Test"}]
["Stage:",null,"3. Design Development","PLNR",{"$f":"Planner!D2","v":"Street Address"},null,null,null,"CHECKITx"]
["CL ID:",null,"CL32 Structural Engineering Input",null,{"$f":"Planner!D3","v":"City | State | Postcode"}]
["Project:",null,{"$f":"Planner!B2","v":"Project Number & Name "},"Loc.",{"$f":"Planner!B3","v":"Location of Project "},null,null,null,null,null,"Staff assignment for this checklist - See Guides Sheet Step 4 for instructions"]
[]
["Item No ","Use","Task description","Who?","Checking record - action required if any. When action is completed, Initial & date approval\n","Chk By","Date",null,"Checking record:"]
["CL32a","✔","Evaluate provisional concepts for accommodation of economic structural systems with structural engineering.",{"$f":"J4","v":0},null,null,null,null,null,1,2,3,4,5,6,7,8,9,10]
["CL32b","✔","Receive structural engineering preliminary report on system options; review with cost consultant/ QS and client. Select provisional system(s).",{"$f":"J4","v":0},null,null,null,null,"Initials:"]
["CL32c","✔","Verify curtain wall design compatibility with edge beam loading deflections.",{"$f":"J4","v":0},null,null,null,null,"Date:"]
["CL32d","✔","Evaluate vertical \"creep\" considerations (for tall structures). ",{"$f":"J4","v":0},null,null,null,null,"Checklist signoff: I have verified that all tasks for this checklist are complete"]
["CL32e","✔","Confirm expansion and control joint details with structural engineer.",{"$f":"J4","v":0},null,null,null,null,"By:",null,null,null,null,"Date:"]
["CL32f","✔"," Verify that precast panel design and jointing conforms to thermal and other movement criteria. ",{"$f":"J4","v":0}]
[]
["© 1986-2017 Building Technology Pty Ltd. All rights reserved."]

{"sheet":"CL33","index":21,"n_rows":26,"n_cols":19,"rows_kept":26,"cut":false,"hidden":false,"merged":[[0,4,0,6],[1,4,1,6],[2,4,2,6],[3,4,3,6]]}
["Type:",null,{"$f":"Planner!B1","v":"CHECKITx All"},null,{"$f":"Planner!D1","v":"Test"}]
["Stage:",null,"3. Design Development","PLNR",{"$f":"Planner!D2","v":"Street Address"},null,null,null,"CHECKITx"]
["CL ID:",null,"CL33 Building Services Engineering Input",null,{"$f":"Planner!D3","v":"City | State | Postcode"}]
["Project:",null,{"$f":"Planner!B2","v":"Project Number & Name "},"Loc.",{"$f":"Planner!B3","v":"Location of Project "},null,null,null,null,null,"Staff assignment for this checklist - See Guides Sheet Step 4 for instructions"]
[]
["Item No ","Use","Task description","Who?","Checking record - action required if any. When action is completed, Initial & date approval\n","Chk By","Date",null,"Checking record:"]
["CL33a","✔","Receive BSEng's preliminary report on services options; review with QS & client. Select provisional systems.",{"$f":"J4","v":0},null,null,null,null,null,1,2,3,4,5,6,7,8,9,10]
["CL33b","✔","Prepare options complying with reflectance, heat gain/loss requirements, glass shading coefficients.",{"$f":"J4","v":0},null,null,null,null,"Initials:"]
["CL33c","✔","Review and select options with client and BSEng. ",{"$f":"J4","v":0},null,null,null,null,"Date:"]
["CL33d","✔","Establish provisional lift shaft sizes, air duct sizes, raised floor requirements, plant room sizes and other mechanical requirements. ",{"$f":"J4","v":0},null,null,null,null,"Checklist signoff: I have verified that all tasks for this checklist are complete"]
["CL33e ","✔","Finalise glazing selection in consultation with BSEng; check against requirements of authorities. ",{"$f":"J4","v":0},null,null,null,null,"By:",null,null,null,null,"Date:"]
["CL33f","✔","Review provisions for PABX with Telstra and client's real estate advisers. ",{"$f":"J4","v":0}]
["CL33g","✔","Review and confirm security system provisions with client and BSEng. ",{"$f":"J4","v":0},null,null,null,null,"✔","1. All red-checked Tasks are required for this project by the firm.\n"]
["CL33h","✔","Review and confirm communications and PA system provisions with client and BSEng. ",{"$f":"J4","v":0},null,null,null,null,"ISO","2. If ISO 9001 is a project requirement, all Tasks with a blue ISO reference must be used."]
["CL33i","✔","Review and confirm cleaning, refuse and waste paper removal system provisions with client and BSEng. ",{"$f":"J4","v":0},null,null,null,null,"✔","3. Select optional Tasks (black check mark) by deleting checkmarks for Tasks not needed."]
["CL33j","✔","Confirm whether energy management system is to be employed; establish brief. ",{"$f":"J4","v":0},null,null,null,null,"[C]","4. If using the 2009 AIA Client and Architects Agreement, this is a CORE activity."]
["CL33k","✔","Confirm final dimensions for all shafts and duct openings. ",{"$f":"J4","v":0}]
["CL33l","✔","Confirm final dimensions for all lifts and escalators.",{"$f":"J4","v":0}]
["CL33m","✔","Confirm location for firehose cabinets, fire extinguishers, sprinkler control valves, pumps and control panels.",{"$f":"J4","v":0}]
["CL33n","✔","Check sizes of all column and beam sections for conflicts with ceilings or other elements, including equipment. ",{"$f":"J4","v":0}]
["CL33o","✔","Confirm design of grilles, diffusers and ducted skirting with BSEng. ",{"$f":"J4","v":0}]
["CL33p","✔","Coordinate lighting details with BSEng. ",{"$f":"J4","v":0}]
["CL33q","✔","Confirm security requirements; check against door and other details. ",{"$f":"J4","v":0}]
["CL33r","✔","Request list of \"contractor’s work\" items from all other consultants; check against architectural design arrangement.",{"$f":"J4","v":0}]
[]
["© 1986-2017 Building Technology Pty Ltd. All rights reserved."]

{"sheet":"CL34","index":22,"n_rows":29,"n_cols":19,"rows_kept":29,"cut":false,"hidden":false,"merged":[[0,4,0,6],[1,4,1,6],[2,4,2,6],[3,4,3,6]]}
["Type:",null,{"$f":"Planner!B1","v":"CHECKITx All"},null,{"$f":"Planner!D1","v":"Test"}]
["Stage:",null,"3. Design Development","PLNR",{"$f":"Planner!D2","v":"Street Address"},null,null,null,"CHECKITx"]
["CL ID:",null,"CL34 Environmental Design",null,{"$f":"Planner!D3","v":"City | State | Postcode"}]
["Project:",null,{"$f":"Planner!B2","v":"Project Number & Name "},"Loc.",{"$f":"Planner!B3","v":"Location of Project "},null,null,null,null,null,"Staff assignment for this checklist - See Guides Sheet Step 4 for instructions"]
[]
["Item No ","Use","Task description","Who?","Checking record - action required if any. When action is completed, Initial & date approval\n","Chk By","Date",null,"Checking record:"]
["CL34a","✔","Consider appropriate building orientation with regard to micro-climate.",{"$f":"J4","v":0},null,null,null,null,null,1,2,3,4,5,6,7,8,9,10]
["CL34b","✔","Consider appropriate orientation for different zones of the building and external areas.",{"$f":"J4","v":0},null,null,null,null,"Initials:"]
["CL34c","✔","Consider how the form of the building will effect the solar access for internal and external areas.",{"$f":"J4","v":0},null,null,null,null,"Date:"]
["CL34d","✔","Design to maximise sun penetration and minimise sun shading in winter (except in tropical climates).",{"$f":"J4","v":0},null,null,null,null,"Checklist signoff: I have verified that all tasks for this checklist are complete"]
["CL34e ","✔","Design to minimise sun penetration and maximise sun shading in summer.",{"$f":"J4","v":0},null,null,null,null,"By:",null,null,null,null,"Date:"]
["CL34f","✔","Design to allow for flexibility during intermediate seasons and unseasonal weather.",{"$f":"J4","v":0}]
["CL34g","✔","Consider window sizes, spacing, details such as light shelves and devices such as atria and courtyards to optimise natural lighting.",{"$f":"J4","v":0},null,null,null,null,"✔","1. All red-checked Tasks are required for this project by the firm."]
["CL34h","✔","Consider building depth and location, operation of openings in external walls to optimise natural ventiliation.",{"$f":"J4","v":0},null,null,null,null,"ISO","2. If ISO 9001 is a project requirement, all Tasks with a blue ISO reference must be used."]
["CL34i","✔","Consider building form and amount of external wall area to optimise thermal performance of the building envelope.",{"$f":"J4","v":0},null,null,null,null,"✔","3. Select optional Tasks (black check mark) by deleting checkmarks for Tasks not needed."]
["CL34j","✔","Consider existing and new landscaping as positive shade & micro-climate devices.",{"$f":"J4","v":0},null,null,null,null,"[C]","4. If using the 2009 AIA Client and Architects Agreement, this is a CORE activity."]
["CL34k","✔","Design for integrated energy, water and waste systems. Consider ‘bi’ and ‘tri’ generation systems.",{"$f":"J4","v":0}]
["CL34l","✔","Design for ease of recycling of all wastes by users.",{"$f":"J4","v":0}]
["CL34m","✔","Ensure that building systems are easily understood and operated, through specification of manuals and training by systems vendors.",{"$f":"J4","v":0}]
["CL34n","✔","Agree on standards of user controls/sensors for indoor climate and lighting, taking building use and costs into account.",{"$f":"J4","v":0}]
["CL34o","✔","Consider the provision of CO2 monitoring for feedback to ventilation performance.",{"$f":"J4","v":0}]
["CL34p","✔","Design to exceed minima.l standards of fresh air in spaces to avoid Sick Building Syndrome.",{"$f":"J4","v":0}]
["CL34q","✔","Design to include high performance filters and bio-filters with HVAC systems.",{"$f":"J4","v":0}]
["CL34r","✔","Locate openings to suit regular room tasks and maintain privacy as appropriate.",{"$f":"J4","v":0}]
["CL34s","✔","Appropriately size, locate and orientate openings to maximise visual connection to external environment where appropriate.",{"$f":"J4","v":0}]
["CL34t","✔","Design to optimise external views from all regularly occupied building spaces.",{"$f":"J4","v":0}]
["CL34u","✔","Where appropriate, design for deconstruction to maximise the re-use of material / systems.",{"$f":"J4","v":0}]
[]
["© 1986-2017 Building Technology Pty Ltd. All rights reserved."]

{"sheet":"CL35","index":23,"n_rows":23,"n_cols":19,"rows_kept":23,"cut":false,"hidden":false,"merged":[[0,4,0,6],[1,4,1,6],[2,4,2,6],[3,4,3,6]]}
["Type:",null,{"$f":"Planner!B1","v":"CHECKITx All"},null,{"$f":"Planner!D1","v":"Test"}]
["Stage:",null,"3. Design Development","PLNR",{"$f":"Planner!D2","v":"Street Address"},null,null,null,"CHECKITx"]
["CL ID:",null,"CL35 Environmental Materials Selection",null,{"$f":"Planner!D3","v":"City | State | Postcode"}]
["Project:",null,{"$f":"Planner!B2","v":"Project Number & Name "},"Loc.",{"$f":"Planner!B3","v":"Location of Project "},null,null,null,null,null,"Staff assignment for this checklist - See Guides Sheet Step 4 for instructions"]
[]
["Item No ","Use","Task description","Who?","Checking record - action required if any. When action is completed, Initial & date approval\n","Chk By","Date",null,"Checking record:"]
["CL35a","✔","Coordinate materials selection and design with specifier to ensure that approach is consistent.",{"$f":"J4","v":0},null,null,null,null,null,1,2,3,4,5,6,7,8,9,10]
["CL35b","✔","Generally, select “socially responsible” materials & products.",{"$f":"J4","v":0},null,null,null,null,"Initials:"]
["CL35c","✔","Design for minimal waste through modularisation and appropriate sizing for specific materials.",{"$f":"J4","v":0},null,null,null,null,"Date:"]
["CL35d","✔","Design for minimal material use through reduction in overall size of building and interior installations.",{"$f":"J4","v":0},null,null,null,null,"Checklist signoff: I have verified that all tasks for this checklist are complete"]
["CL35e ","✔","Where appropriate, discuss with client the concept of ‘loose fit’ to ensure adaptability of buildings over time.",{"$f":"J4","v":0},null,null,null,null,"By:",null,null,null,null,"Date:"]
["CL35f","✔","Use recycled and recyclable building elements and materials where practicable.",{"$f":"J4","v":0}]
["CL35g","✔","Specify low maintenance materials and products.",{"$f":"J4","v":0},null,null,null,null,"✔","1. All red-checked Tasks are required for this project by the firm."]
["CL35h","✔","Recommend the use of materials and equipment with the potential for longer lives and the capacity of reuse or changed use.",{"$f":"J4","v":0},null,null,null,null,"ISO","2. If ISO 9001 is a project requirement, all Tasks with a blue ISO reference must be used."]
["CL35i","✔","Consider thermal mass to moderate temperature variations.",{"$f":"J4","v":0},null,null,null,null,"✔","3. Select optional Tasks (black check mark) by deleting checkmarks for Tasks not needed."]
["CL35j","✔","Design for component update, particularly in areas of rapidly developing technologies and changing environmental standards.",{"$f":"J4","v":0},null,null,null,null,"[C]","4. If using the 2009 AIA Client and Architects Agreement, this is a CORE activity."]
["CL35k","✔","Use life-cycle analysis techniques to evaluate embodied energy.",{"$f":"J4","v":0},null,null,null,null,null,"Abbreviations"]
["CL35l","✔","Consider selection of materials with regard to proximity of site (minimise transportation energy). Consider durability of materials.",{"$f":"J4","v":0},null,null,null,null,null,"VOC","Volatile Organic Compound"]
["CL35m","✔","Consider how size and weight of material components will impact on machinery requirements during construction.",{"$f":"J4","v":0}]
["CL35n","✔","Select materials with characteristics: low absorption, discouragement of micro-organisms, ease of cleaning with benign processes and materials.",{"$f":"J4","v":0}]
["CL35o","✔","Where possible, select non-PVC finishes, glues, adhesives, upholstery & treatments, particle & other board products, carpets & underlays.",{"$f":"J4","v":0}]
["CL35p","✔","If PCV-content finishes, glues, adhesives, upholstery & treatments, particle & other board products, carpets & underlays are required, select products with low VOC.",{"$f":"J4","v":0}]
["© 1986-2017 Building Technology Pty Ltd. All rights reserved."]

{"sheet":"CL36","index":24,"n_rows":29,"n_cols":19,"rows_kept":29,"cut":false,"hidden":false,"merged":[[0,4,0,6],[1,4,1,6],[2,4,2,6],[3,4,3,6]]}
["Type:",null,{"$f":"Planner!B1","v":"CHECKITx All"},null,{"$f":"Planner!D1","v":"Test"}]
["Stage:",null,"3. Design Development","PLNR",{"$f":"Planner!D2","v":"Street Address"},null,null,null,"CHECKITx"]
["CL ID:",null,"CL36 Energy & Water Conservation",null,{"$f":"Planner!D3","v":"City | State | Postcode"}]
["Project:",null,{"$f":"Planner!B2","v":"Project Number & Name "},"Loc.",{"$f":"Planner!B3","v":"Location of Project "},null,null,null,null,null,"Staff assignment for this checklist - See Guides Sheet Step 4 for instructions"]
[]
["Item No ","Use","Task description","Who?","Checking record - action required if any. When action is completed, Initial & date approval\n","Chk By","Date",null,"Checking record:"]
["CL36a","✔","Employ passive solar design techniques.",{"$f":"J4","v":0},null,null,null,null,null,1,2,3,4,5,6,7,8,9,10]
["CL36b","✔","Improve thermal performance of buildings to exceed BCA requirements.",{"$f":"J4","v":0},null,null,null,null,"Initials:"]
["CL36c","✔","Select high efficiency equipment – especially for heating and cooling – throughout eg. ‘Chilled-beam’ AC system.",{"$f":"J4","v":0},null,null,null,null,"Date:"]
["CL36d","✔","Re-evaluate accepted comfort standards. Provide appropriate levels of environmental control to users.",{"$f":"J4","v":0},null,null,null,null,"Checklist signoff: I have verified that all tasks for this checklist are complete"]
["CL36e ","✔","Zone equipment systems for appropriate settings and more responsive occupation usage.",{"$f":"J4","v":0},null,null,null,null,"By:",null,null,null,null,"Date:"]
["CL36f","✔","Employ smart building management systems to minimise energy requirements.",{"$f":"J4","v":0}]
["CL36g","✔","Encourage inclusion of appropriate renewables energy forms: active solar design – solar panels, hot water systems, geothermal, wind power, co-generation, mini hydro.",{"$f":"J4","v":0},null,null,null,null,"✔","1. All red-checked Tasks are required for this project by the firm."]
["CL36h","✔","Select high efficiency lights and sensor systems for operation eg. LED and CFL.",{"$f":"J4","v":0},null,null,null,null,"ISO","2. If ISO 9001 is a project requirement, all Tasks with a blue ISO reference must be used."]
["CL36i","✔","Collect and use rainwater and site run-off (review for bushfire-prone locations).",{"$f":"J4","v":0},null,null,null,null,"✔","3. Select optional Tasks (black check mark) by deleting checkmarks for Tasks not needed."]
["CL36j","✔","Wherer available, encourage use of gas in preference to electricity.",{"$f":"J4","v":0},null,null,null,null,"[C]","4. If using the 2009 AIA Client and Architects Agreement, this is a CORE activity."]
["CL36k","✔","Provide natural clothes drying facilities.",{"$f":"J4","v":0}]
["CL36l","✔","Specify solar water heating and low-flow hot water fixtures.",{"$f":"J4","v":0},null,null,null,null,null,"Abbreviations"]
["CL36m","✔","Use water cycle management techniques; Use grey water reticulation systems.",{"$f":"J4","v":0},null,null,null,null,null,"CFL","Compact Fluorescent Lights"]
["CL36n","✔","Use water efficient appliances. Wherre appropriate, recommend innovative water efficient technologies eg. composting toilets.",{"$f":"J4","v":0},null,null,null,null,null,"LED","Light-Emitting Diode"]
["CL36o","✔","Incorporate landscaping features such as swales and dams to reduce additional water input required.",{"$f":"J4","v":0}]
["CL36p","✔","Select plants appropriate to climate.",{"$f":"J4","v":0}]
["CL36q","✔","Install high-efficiency irrigation and controls.",{"$f":"J4","v":0}]
["CL36r","✔","Where appropriate, recommend building on and rehabilitating already disturbed and degraded land.",{"$f":"J4","v":0}]
["CL36s","✔","Design for easy access to recycling facilities and separation of materials on site.",{"$f":"J4","v":0}]
["CL36t","✔","Allow adequate storage space for recycling materials on-site where possible.",{"$f":"J4","v":0}]
["CL36u","✔","Where appropriate, design for on-site recycling of organic waste.",{"$f":"J4","v":0}]
[]
["© 1986-2017 Building Technology Pty Ltd. All rights reserved."]

{"sheet":"CL37","index":25,"n_rows":26,"n_cols":19,"rows_kept":26,"cut":false,"hidden":false,"merged":[[0,4,0,6],[1,4,1,6],[2,4,2,6],[3,4,3,6],[21,10,21,15]]}
["Type:",null,{"$f":"Planner!B1","v":"CHECKITx All"},null,{"$f":"Planner!D1","v":"Test"}]
["Stage:",null,"3. Design Development","PLNR",{"$f":"Planner!D2","v":"Street Address"},null,null,null,"CHECKITx"]
["CL ID:",null,"CL37 Create BIM Model",null,{"$f":"Planner!D3","v":"City | State | Postcode"}]
["Project:",null,{"$f":"Planner!B2","v":"Project Number & Name "},"Loc.",{"$f":"Planner!B3","v":"Location of Project "},null,null,null,null,null,"Staff assignment for this checklist - See Guides Sheet Step 4 for instructions"]
[]
["Item No ","Use","Task description","Who?","Checking record - action required if any. When action is completed, Initial & date approval\n","Chk By","Date",null,"Checking record:"]
["CL37a","✔","Review results of BIM setup (CL26); determine if any adjustments are needed in scope definition, time or project budget. If there are, prepare Request for Variation.",{"$f":"J4","v":0},null,null,null,null,null,1,2,3,4,5,6,7,8,9,10]
["CL37b","✔","Regularly review and update CL26h BIM action plan.",{"$f":"J4","v":0},null,null,null,null,"Initials:"]
["CL37c","✔","Establish a BIM Management Plan (BMP). A good guide is the NATSPEC BMP Templates suite of documents. (www.bim.natspec.org)",{"$f":"J4","v":0},null,null,null,null,"Date:"]
["CL37d","✔","If lead consultant, Establish Object/Element matrix to be used. Review NATSPEC BIM Object/Element Matrix Manual and/or BIMForum 2015 Level of Development Specification. Ref CL37d.",{"$f":"J4","v":0},null,null,null,null,"Checklist signoff: I have verified that all tasks for this checklist are complete"]
["CL37e","✔","The NATSPEC Manual above can be downloaded at www.bim.natspec.org. The BIMFORUM document can be downloaded at www.bimforum.org/lod.",{"$f":"J4","v":0},null,null,null,null,"By:",null,null,null,null,"Date:"]
["CL37f","✔","If lead consultant, advise other consultants of object/elements matrix details.",{"$f":"J4","v":0}]
["CL37g","✔","Establish milestones for all Stages and key sub-stages & determine critical inputs from other consultants to meet milestones. Track performance internally and externally.",{"$f":"J4","v":0},null,null,null,null,"✔","1. All red-checked Tasks are required for this project by the firm."]
["CL37h","✔","If clash detection is part of the modeling services, establish key dates of detection checking to minimise rework. Coordinate with SEng & MEP.",{"$f":"J4","v":0},null,null,null,null,"ISO","2. If ISO 9001 is a project requirement, all Tasks with a blue ISO reference must be used."]
["CL375i","✔","Confirm client requirements for Contractor BIM services; ensure they are explicit in pre-tender and  tender documents. Ref. CL26c, CL26j.",{"$f":"J4","v":0},null,null,null,null,"✔","3. Select optional Tasks (black check mark) by deleting checkmarks for Tasks not needed."]
["CL37j","✔","Ensure that tender documents require that as-built drawings be uploaded to model by contractor, and that approved shop drawing information is added to the model.",{"$f":"J4","v":0},null,null,null,null,"[C]","4. If using the 2009 AIA Client and Architects Agreement, this is a CORE activity."]
["CL37k","✔","Identify BIM deliverables; unless otherwise req'd by client; assume massing BIM in IFC format & model views in COBie format; site model in 3D DWG format.",{"$f":"J4","v":0}]
["CL37l","✔","Verify that all team members are using compatible software tools.",{"$f":"J4","v":0},null,null,null,null,null,"Abbreviations"]
["CL37m","✔","Confirm client requirements for BIM use eg. Space area calculations, Energy anaysis, Building system coordination, Space & equipment inventories, etc.",{"$f":"J4","v":0},null,null,null,null,null,"BMP","BIM Management Plan"]
["CL37n","✔","Verify that QC provisions are followed by all team members, and that nonconformities are tracked and resolved. Ref. CL26n, CL26p & CL26u",{"$f":"J4","v":0},null,null,null,null,null,"COBie","Construction Operatioins Building Information Exchange"]
["CL37o","✔","Review & regularly update Risk plan; distribute to team members & client. Ref. CL26k & CL26t.",{"$f":"J4","v":0},null,null,null,null,null,"IFC","Information Foundation Classes"]
["CL37p","✔","Review BIM deliverables for conformity to client requirements. Spot check that output information is in the model and has not been added after export.",{"$f":"J4","v":0},null,null,null,null,null,"MEP","Mechanical, Electrical & Plumbing (the 3 engineering disciplines that Revit MEP utilises)"]
["CL37q","✔","Spot check that area and other calculations are being exportedfrom the model and that they match.",{"$f":"J4","v":0},null,null,null,null,null,"DWG",".dwg is a proprietary file format for storing 2D & 3D design data"]
["CL37r","✔","Confirm that all identified interferences (clashes) have been resolved prior to preparation of tender documents.",{"$f":"J4","v":0}]
[]
["© 1986-2017 Building Technology Pty Ltd. All rights reserved."]

{"sheet":"CL39","index":26,"n_rows":18,"n_cols":19,"rows_kept":18,"cut":false,"hidden":false,"merged":[[0,4,0,6],[1,4,1,6],[2,4,2,6],[3,4,3,6]]}
["Type:",null,{"$f":"Planner!B1","v":"CHECKITx All"},null,{"$f":"Planner!D1","v":"Test"}]
["Stage:",null,"3. Design Development","PLNR",{"$f":"Planner!D2","v":"Street Address"},null,null,null,"CHECKITx"]
["CL ID:",null,"CL39 Packaged/Fast-tracked Projects",null,{"$f":"Planner!D3","v":"City | State | Postcode"}]
["Project:",null,{"$f":"Planner!B2","v":"Project Number & Name "},"Loc.",{"$f":"Planner!B3","v":"Location of Project "},null,null,null,null,null,"Staff assignment for this checklist - See Guides Sheet Step 4 for instructions"]
[]
["Item No ","Use","Task description","Who?","Checking record - action required if any. When action is completed, Initial & date approval\n","Chk By","Date",null,"Checking record:"]
["CL39a","✔","Establish, with client or project manager, provisional package groups and package schedule. ",{"$f":"J4","v":0},null,null,null,null,null,1,2,3,4,5,6,7,8,9,10]
["CL39b","✔","Send copies to consultants and subconsultants, requesting response regarding ability to meet schedule, lead times and interface requirements.",{"$f":"J4","v":0},null,null,null,null,"Initials:"]
["CL39c","✔","On receipt of CL39b comments, prepare written report on package grouping and scheduling, high-lighting any interface items requiring resolution.",{"$f":"J4","v":0},null,null,null,null,"Date:"]
["CL39d","✔","If package-based documentation is required, set up procedures to ensure that there is no confusion over allocation of packages in detailing.",{"$f":"J4","v":0},null,null,null,null,"Checklist signoff: I have verified that all tasks for this checklist are complete"]
["CL39e ","✔","Set up specification packages to coordinate with package grouping.",{"$f":"J4","v":0},null,null,null,null,"By:",null,null,null,null,"Date:"]
["CL39f","✔","Coordinate design/documentation to match package requirements.",{"$f":"J4","v":0}]
["CL39g","✔","Request that consultants and subconsultants advise on ability to meet package schedules and critical lead   for ordering equipment.",{"$f":"J4","v":0},null,null,null,null,"✔","1. All red-checked Tasks are required for this project by the firm."]
["CL39h","✔","Request advice on interface requirements e.g. any early-scheduled packages which are dependent on design of later-scheduled packages.",{"$f":"J4","v":0},null,null,null,null,"ISO","2. If ISO 9001 is a project requirement, all Tasks with a blue ISO reference must be used."]
["CL39i","✔","Send copy of the packaging report to client and all affected parties. ",{"$f":"J4","v":0},null,null,null,null,"✔","3. Select optional Tasks (black check mark) by deleting checkmarks for Tasks not needed."]
["CL39j","✔","Arrange meeting to resolve issues and adjust packages/schedules accordingly. ",{"$f":"J4","v":0},null,null,null,null,"[C]","4. If using the 2009 AIA Client and Architects Agreement, this is a CORE activity."]
[]
["© 1986-2017 Building Technology Pty Ltd. All rights reserved."]

{"sheet":"CL41","index":27,"n_rows":20,"n_cols":19,"rows_kept":20,"cut":false,"hidden":false,"merged":[[0,4,0,6],[1,4,1,6],[2,4,2,6],[3,4,3,6]]}
["Type:",null,{"$f":"Planner!B1","v":"CHECKITx All"},null,{"$f":"Planner!D1","v":"Test"}]
["Stage:",null,"4. Coordination","PLNR",{"$f":"Planner!D2","v":"Street Address"},null,null,null,"CHECKITx"]
["CL ID:",null,"CL41 Landscape Architecture Coordination",null,{"$f":"Planner!D3","v":"City | State | Postcode"}]
["Project:",null,{"$f":"Planner!B2","v":"Project Number & Name "},"Loc.",{"$f":"Planner!B3","v":"Location of Project "},null,null,null,null,null,"Staff assignment for this checklist - See Guides Sheet Step 4 for instructions"]
[]
["Item No ","Use","Task description","Who?","Checking record - action required if any. When action is completed, Initial & date approval\n","Chk By","Date",null,"Checking record:"]
["CL41a","✔","Check preliminary landscaping plan and plant materials schedule; distribute for review. ",{"$f":"J4","v":0},null,null,null,null,null,1,2,3,4,5,6,7,8,9,10]
["CL41b","✔","Confirm delivery budget allowances for landscaping. ",{"$f":"J4","v":0},null,null,null,null,"Initials:"]
["CL41c","✔","Confirm coordination of hydrant, irrigation and drainage requirements with BSEng.",{"$f":"J4","v":0},null,null,null,null,"Date:"]
["CL41d","✔","Check final landscaping plan for conformity to brief and architectural design. ",{"$f":"J4","v":0},null,null,null,null,"Checklist signoff: I have verified that all tasks for this checklist are complete"]
["CL41e","✔","Verify that areas of sodding, seeding and mulching are shown and noted.  ",{"$f":"J4","v":0},null,null,null,null,"By:",null,null,null,null,"Date:"]
["CL41f","✔","Check final plant materials schedule. Confirm appropriate planting season limitations. ",{"$f":"J4","v":0}]
["CL41g","✔","Confirm final landscape requirements with QS.",{"$f":"J4","v":0},null,null,null,null,"✔","1. All red-checked Tasks are required for this project by the firm."]
["CL41h","✔","Confirm provision of specification notes to specification writer. ",{"$f":"J4","v":0},null,null,null,null,"ISO","2. If ISO 9001 is a project requirement, all Tasks with a blue ISO reference must be used."]
["CL41i","✔","Confirm availability of specimen trees; reserve as required; advise on digging schedule.",{"$f":"J4","v":0},null,null,null,null,"✔","3. Select optional Tasks (black check mark) by deleting checkmarks for Tasks not needed."]
["CL41j","✔","Review and approve landscaping works specification.",{"$f":"J4","v":0},null,null,null,null,"[C]","4. If using the 2009 AIA Client and Architects Agreement, this is a CORE activity."]
["CL41k","✔","Check final landscape plan against civil and architectural drawings and details. ",{"$f":"J4","v":0}]
["CL41l","✔","Confirm tagging of trees at nursery to approved schedule; verify delivery with construction schedule. ",{"$f":"J4","v":0}]
[]
["© 1986-2017 Building Technology Pty Ltd. All rights reserved."]

{"sheet":"CL42","index":28,"n_rows":20,"n_cols":19,"rows_kept":20,"cut":false,"hidden":false,"merged":[[0,4,0,6],[1,4,1,6],[2,4,2,6],[3,4,3,6]]}
["Type:",null,{"$f":"Planner!B1","v":"CHECKITx All"},null,{"$f":"Planner!D1","v":"Test"}]
["Stage:",null,"4. Coordination","PLNR",{"$f":"Planner!D2","v":"Street Address"},null,null,null,"CHECKITx"]
["CL ID:",null,"CL42 Civil Engineering Coordination",null,{"$f":"Planner!D3","v":"City | State | Postcode"}]
["Project:",null,{"$f":"Planner!B2","v":"Project Number & Name "},"Loc.",{"$f":"Planner!B3","v":"Location of Project "},null,null,null,null,null,"Staff assignment for this checklist - See Guides Sheet Step 4 for instructions"]
[]
["Item No ","Use","Task description","Who?","Checking record - action required if any. When action is completed, Initial & date approval\n","Chk By","Date",null,"Checking record:"]
["CL42a","✔","Verify site dimensions against survey. ",{"$f":"J4","v":0},null,null,null,null,null,1,2,3,4,5,6,7,8,9,10]
["CL42b","✔","Verify easements are indicated. ",{"$f":"J4","v":0},null,null,null,null,"Initials:"]
["CL42c","✔","Verify that proposed and existing grades are shown and keyed. Check against survey. ",{"$f":"J4","v":0},null,null,null,null,"Date:"]
["CL42d","✔","Verify items of demolition, clearing limits and grading limits. ",{"$f":"J4","v":0},null,null,null,null,"Checklist signoff: I have verified that all tasks for this checklist are complete"]
["CL42e","✔","Verify that new site construction does not inter- fere with existing features to remain e.g. poles, pole guys, manholes, drain inlets, valve boxes. ",{"$f":"J4","v":0},null,null,null,null,"By:",null,null,null,null,"Date:"]
["CL42f","✔","Cross check all new utilities for interference; verify invert levels, diameters and clearances at all crossings. ",{"$f":"J4","v":0}]
["CL42g","✔","Verify that underground utilities are shown on ground section drawings. ",{"$f":"J4","v":0},null,null,null,null,"✔","1. All red-checked Tasks are required for this project by the firm."]
["CL42h","✔","Confirm plan dimensions and profile dimensions match scaled dimensions for utility structures. ",{"$f":"J4","v":0},null,null,null,null,"ISO","2. If ISO 9001 is a project requirement, all Tasks with a blue ISO reference must be used."]
["CL42i","✔","Verify that indicated falls match invert levels and distances. ",{"$f":"J4","v":0},null,null,null,null,"✔","3. Select optional Tasks (black check mark) by deleting checkmarks for Tasks not needed."]
["CL42j","✔","Verify hydrant and utility pole locations. ",{"$f":"J4","v":0},null,null,null,null,"[C]","4. If using the 2009 AIA Client and Architects Agreement, this is a CORE activity."]
["CL42k","✔","Verify details for elevation adjustment to finished grades of manhole castings, valve boxes, and other access to underground utilities.",{"$f":"J4","v":0}]
["CL42l","✔","Verify that guard rails are provided where needed.",{"$f":"J4","v":0}]
[]
["© 1986-2017 Building Technology Pty Ltd. All rights reserved."]

{"sheet":"CL43","index":29,"n_rows":30,"n_cols":19,"rows_kept":30,"cut":false,"hidden":false,"merged":[[0,4,0,6],[1,4,1,6],[2,4,2,6],[3,4,3,6]]}
["Type:",null,{"$f":"Planner!B1","v":"CHECKITx All"},null,{"$f":"Planner!D1","v":"Test"}]
["Stage:",null,"4. Coordination","PLNR",{"$f":"Planner!D2","v":"Street Address"},null,null,null,"CHECKITx"]
["CL ID:",null,"CL43 Structural Engineering Coordination",null,{"$f":"Planner!D3","v":"City | State | Postcode"}]
["Project:",null,{"$f":"Planner!B2","v":"Project Number & Name "},"Loc.",{"$f":"Planner!B3","v":"Location of Project "},null,null,null,null,null,"Staff assignment for this checklist - See Guides Sheet Step 4 for instructions"]
[]
["Item No ","Use","Task description","Who?","Checking record - action required if any. When action is completed, Initial & date approval\n","Chk By","Date",null,"Checking record:"]
["CL43a","✔","Confirm that column coordinate numbering on structural matches architectural. ",{"$f":"J4","v":0},null,null,null,null,null,1,2,3,4,5,6,7,8,9,10]
["CL43b","✔","Check set back lines and building location (to roof overhang lines, if so defined). ",{"$f":"J4","v":0},null,null,null,null,"Initials:"]
["CL43c","✔","Compare bottom of footing levels with water table. ",{"$f":"J4","v":0},null,null,null,null,"Date:"]
["CL43d","✔","Verify that all footings are on undisturbed bearing or that areas of compaction are shown; check bottom of footing elevations. ",{"$f":"J4","v":0},null,null,null,null,"Checklist signoff: I have verified that all tasks for this checklist are complete"]
["CL43e","✔","Check perimeter slab dimensions against architectural; check perimeter offset from grid line.",{"$f":"J4","v":0},null,null,null,null,"By:",null,null,null,null,"Date:"]
["CL43f","✔","Verify that all depressed or raised slabs and blockouts are shown. ",{"$f":"J4","v":0}]
["CL43g","✔","Verify all slab profiles; check architectural and civil. ",{"$f":"J4","v":0},null,null,null,null,"✔","1. All red-checked Tasks are required for this project by the firm."]
["CL43h","✔","Check dimensions of all grade beams and piers against architectural. ",{"$f":"J4","v":0},null,null,null,null,"ISO","2. If ISO 9001 is a project requirement, all Tasks with a blue ISO reference must be used."]
["CL43i","✔","Compare roof framing plan dimensions and coordinates against foundation plan coordinates. ",{"$f":"J4","v":0},null,null,null,null,"✔","3. Select optional Tasks (black check mark) by deleting checkmarks for Tasks not needed."]
["CL43j","✔","Check location of rooftop equipment supports against mechanical. ",{"$f":"J4","v":0},null,null,null,null,"[C]","4. If using the 2009 AIA Client and Architects Agreement, this is a CORE activity."]
["CL43k","✔","Check location and sizes of all structural penetrations against building services. ",{"$f":"J4","v":0}]
["CL43l","✔","Check location of roof drains against hydraulics (for interior drains). ",{"$f":"J4","v":0}]
["CL43m","✔","Check location of roof drains against architectural (for external drains).",{"$f":"J4","v":0}]
["CL43n","✔","Confirm that all columns and beams are listed in column and beam schedules.",{"$f":"J4","v":0}]
["CL43o","✔","Confirm length of all columns in column schedule against architectural sections. ",{"$f":"J4","v":0}]
["CL43p","✔","Verify that all structural sections are referenced to plans and elevations.",{"$f":"J4","v":0}]
["CL43q","✔","Verify all movement joint details and locations against architectural.",{"$f":"J4","v":0}]
["CL43r","✔","Check that materials are weldable and that weld symbols are correct.",{"$f":"J4","v":0}]
["CL43s","✔","Check that any details identified as “typical” are in fact typical, with any major exceptions noted.",{"$f":"J4","v":0}]
["CL43t","✔","Confirm that SEng has received final data on equipment weights and has sized footings as required by soil bearing capacity.",{"$f":"J4","v":0}]
["CL43u","✔","Check for missing or incomplete drawing notes.",{"$f":"J4","v":0}]
["CL43v","✔","Confirm that any notes referenced as “see architectural” have been covered by architectural drawings.",{"$f":"J4","v":0}]
["CL43w","✔","Confirm that structural calculations have been submitted where required by authorities.",{"$f":"J5","v":0}]
["© 1986-2017 Building Technology Pty Ltd. All rights reserved."]

{"sheet":"CL44","index":30,"n_rows":25,"n_cols":19,"rows_kept":25,"cut":false,"hidden":false,"merged":[[0,4,0,6],[1,4,1,6],[2,4,2,6],[3,4,3,6]]}
["Type:",null,{"$f":"Planner!B1","v":"CHECKITx All"},null,"Test"]
["Stage:",null,"4. Coordination","PLNR",{"$f":"Planner!D2","v":"Street Address"},null,null,null,"CHECKITx"]
["CL ID:",null,"CL44 Fire Protection & Hydraulic Engineering",null,{"$f":"Planner!D3","v":"City | State | Postcode"}]
["Project:",null,{"$f":"Planner!B2","v":"Project Number & Name "},"Loc.","Location of Project ",null,null,null,null,null,"Staff assignment for this checklist - See Guides Sheet Step 4 for instructions"]
[]
["Item No ","Use","Task description","Who?","Checking record - action required if any. When action is completed, Initial & date approval\n","Chk By","Date",null,"Checking record:"]
["CL44a","✔","Confirm size and location of fire service and other utilities connections. ",{"$f":"J4","v":0},null,null,null,null,null,1,2,3,4,5,6,7,8,9,10]
["CL44b","✔","Confirm that all conditions of the fire brigade approval are met by the building and fire systems design. ",{"$f":"J4","v":0},null,null,null,null,"Initials:"]
["CL44c","✔","Obtain consultant's written certification that the sprinkler system design has been checked for and is in compliance with both statutory and insurer's requirements. ",{"$f":"J4","v":0},null,null,null,null,"Date:"]
["CL44d","✔","Confirm that no wet piping is run in unheated spaces (freezing climate only). ",{"$f":"J4","v":0},null,null,null,null,"Checklist signoff: I have verified that all tasks for this checklist are complete"]
["CL44e","✔","Check that drain has been provided for the fire sprinkler control valve set. ",{"$f":"J4","v":0},null,null,null,null,"By:",null,null,null,null,"Date:"]
["CL44f","✔","Check fire protection hydraulics specification against fire protection and hydraulics drawings. ",{"$f":"J4","v":0}]
["CL44g","✔","Check coordination of sprinkler heads/detectors with lighting and mechanical air diffusers on reflected ceiling plans.",{"$f":"J4","v":0},null,null,null,null,"✔","1. All red-checked Tasks are required for this project by the firm."]
["CL44h","✔","Check that provision (drain or openable window) has been made for performance testing of hydraulically least favourable hydrant or hose reel.",{"$f":"J4","v":0},null,null,null,null,"ISO","2. If ISO 9001 is a project requirement, all Tasks with a blue ISO reference must be used."]
["CL44i","✔","Confirm that plumbing fixture, supply, sanitary and stormwater drain locations match architectural.",{"$f":"J4","v":0},null,null,null,null,"✔","3. Select optional Tasks (black check mark) by deleting checkmarks for Tasks not needed."]
["CL44j","✔","Check perimeter foundation drainage against architectural.",{"$f":"J4","v":0},null,null,null,null,"[C]","4. If using the 2009 AIA Client and Architects Agreement, this is a CORE activity."]
["CL44k","✔","Confirm supply size of any fixtures requiring special volume supply, such as hot tubs and large spas.",{"$f":"J4","v":0}]
["CL44l","✔","Verify wall chases, recesses and ducts on architectural at vertical piping locations.",{"$f":"J4","v":0}]
["CL44m","✔","Confirm that all vents are shown on roof plan.",{"$f":"J4","v":0}]
["CL44n","✔","Confirm that access panels are provided for all concealed valves.",{"$f":"J4","v":0}]
["CL44o","✔","Confirm that materials descriptions are in specification and not on drawings. Check for missing or incomplete drawing notes.",{"$f":"J4","v":0}]
["CL44p","✔","Confirm that equipment items requiring electrical connections, e.g. pumps, spa baths and drinking fountains, are shown on electrical drawings.",{"$f":"J4","v":0}]
["CL44q","✔","Check all plumbing fixtures, taps and fittings against fixture schedule and specification.",{"$f":"J4","v":0}]
[]
["© 1986-2017 Building Technology Pty Ltd. All rights reserved."]

{"sheet":"CL45","index":31,"n_rows":28,"n_cols":19,"rows_kept":28,"cut":false,"hidden":false,"merged":[[0,4,0,6],[1,4,1,6],[2,4,2,6],[3,4,3,6]]}
["Type:",null,{"$f":"Planner!B1","v":"CHECKITx All"},null,{"$f":"Planner!D1","v":"Test"}]
["Stage:",null,"4. Coordination","PLNR",{"$f":"Planner!D2","v":"Street Address"},null,null,null,"CHECKITx"]
["CL ID:",null,"CL45 Mechanical Services Coordination",null,{"$f":"Planner!D3","v":"City | State | Postcode"}]
["Project:",null,{"$f":"Planner!B2","v":"Project Number & Name "},"Loc.",{"$f":"Planner!B3","v":"Location of Project "},null,null,null,null,null,"Staff assignment for this checklist - See Guides Sheet Step 4 for instructions"]
[]
["Item No ","Use","Task description","Who?","Checking record - action required if any. When action is completed, Initial & date approval\n","Chk By","Date",null,"Checking record:"]
["CL45a","✔","Check all documents against site check and verification of dimensions report. Check any discrepancies. ",{"$f":"J4","v":0},null,null,null,null,null,1,2,3,4,5,6,7,8,9,10]
["CL45b","✔","Verify that all sections and floor-to-floor heights match architectural and structural. ",{"$f":"J4","v":0},null,null,null,null,"Initials:"]
["CL45c","✔","Confirm that adequate ceiling height clearances exist at intersections of largest ducts, including construction tolerances. ",{"$f":"J4","v":0},null,null,null,null,"Date:"]
["CL45d","✔","Confirm that largest ducts fit within clear height at raised floors. ",{"$f":"J4","v":0},null,null,null,null,"Checklist signoff: I have verified that all tasks for this checklist are complete"]
["CL45e","✔","Check duct clearances at all deep beams. ",{"$f":"J4","v":0},null,null,null,null,"By:",null,null,null,null,"Date:"]
["CL45f","✔","Verify locations of structural supports at all items of mechanical equipment; compare with structural. ",{"$f":"J4","v":0}]
["CL45g","✔","Verify that smoke and fire dampers are indicated where required. ",{"$f":"J4","v":0},null,null,null,null,"✔","1. All red-checked Tasks are required for this project by the firm."]
["CL45h","✔","Check grilles and diffusers against reflected ceiling plans. ",{"$f":"J4","v":0},null,null,null,null,"ISO","2. If ISO 9001 is a project requirement, all Tasks with a blue ISO reference must be used."]
["CL45i","✔","Verify that all exhaust fans and relief vents are shown on roof plan. ",{"$f":"J4","v":0},null,null,null,null,"✔","3. Select optional Tasks (black check mark) by deleting checkmarks for Tasks not needed."]
["CL45j","✔","Verify that all wall air conditioners, fans, grilles and louvres are shown on elevations. ",{"$f":"J4","v":0},null,null,null,null,"[C]","4. If using the 2009 AIA Client and Architects Agreement, this is a CORE activity."]
["CL45k","✔","Verify that all equipment will fit in space provided; check service clearances. ",{"$f":"J4","v":0}]
["CL45l","✔","Check that necessary guards are provided on rotating equipment.",{"$f":"J4","v":0}]
["CL45m","✔","Verify clearance of installation path for equipment installed after walls are up.",{"$f":"J6","v":0}]
["CL45n","✔","Verify door undercuts and door grilles against door schedule.",{"$f":"J6","v":0}]
["CL45o","✔","Verify that material descriptions are in specification and not on drawings. Check for missing or incomplete drawing notes.",{"$f":"J4","v":0}]
["CL45p","✔","Check all equipment items on plans against mechanical schedules.",{"$f":"J8","v":0}]
["CL45q","✔","Verify that electrical connections are shown on electrical plans and schedules for all items requiring power connections.",{"$f":"J9","v":0}]
["CL45r","✔","Verify locations of condensate drains on architectural.",{"$f":"J10","v":0}]
["CL45s","✔","Check mechanical specification against mechanical drawings. ",{"$f":"J11","v":0}]
["CL45t","✔","Confirm sizes and locations of all equipment plinths to be supplied by builder.",{"$f":"J12","v":0}]
["CL45u","✔","Check and confirm that “contractor’s' work” items required by mechanical services installation are included in architectural specification.",{"$f":"J4","v":0}]
["© 1986-2017 Building Technology Pty Ltd. All rights reserved."]

{"sheet":"CL46","index":32,"n_rows":21,"n_cols":19,"rows_kept":21,"cut":false,"hidden":false,"merged":[[0,4,0,6],[1,4,1,6],[2,4,2,6],[3,4,3,6]]}
["Type:",null,{"$f":"Planner!B1","v":"CHECKITx All"},null,{"$f":"Planner!D1","v":"Test"}]
["Stage:",null,"4. Coordination","PLNR",{"$f":"Planner!D2","v":"Street Address"},null,null,null,"CHECKITx"]
["CL ID:",null,"CL46 Lifts & Escalators Coordination",null,{"$f":"Planner!D3","v":"City | State | Postcode"}]
["Project:",null,{"$f":"Planner!B2","v":"Project Number & Name "},"Loc.",{"$f":"Planner!B3","v":"Location of Project "},null,null,null,null,null,"Staff assignment for this checklist - See Guides Sheet Step 4 for instructions"]
[]
["Item No ","Use","Task description","Who?","Checking record - action required if any. When action is completed, Initial & date approval\n","Chk By","Date",null,"Checking record:"]
["CL46a","✔","Request feasibility analysis of options e.g. cost options in lift design; speeds, capacities, waiting times and express arrangements from engineer. ",{"$f":"J4","v":0},null,null,null,null,null,1,2,3,4,5,6,7,8,9,10]
["CL46b","✔","Verify areas and unit costs for car interiors  carried in delivery budget with QS.",{"$f":"J4","v":0},null,null,null,null,"Initials:"]
["CL46c","✔","Request list from engineer of critical decisions and deadlines, to be made by others, in order to meet the schedule for the lift & escalator design. ",{"$f":"J4","v":0},null,null,null,null,"Date:"]
["CL46d","✔","Request list from engineer of all approvals needed for lift and escalator work, with probable review time required for each.  ",{"$f":"J4","v":0},null,null,null,null,"Checklist signoff: I have verified that all tasks for this checklist are complete"]
["CL46e","✔","Confirm that all required applications for approval have been filed. Confirm that fireman's lift complies with fire brigade requirements. ",{"$f":"J4","v":0},null,null,null,null,"By:",null,null,null,null,"Date:"]
["CL46f","✔","Verify that QS has been advised of the provisional sum for lifts etc. ",{"$f":"J4","v":0}]
["CL46g","✔","Check lift and escalator details against structural drawings. ",{"$f":"J4","v":0},null,null,null,null,"✔","1. All red-checked Tasks are required for this project by the firm."]
["CL46h","✔","Confirm deadline for completion of lift car design with subcontractor.",{"$f":"J4","v":0},null,null,null,null,"ISO","2. If ISO 9001 is a project requirement, all Tasks with a blue ISO reference must be used."]
["CL46i","✔","Check sizes and heights of motor rooms and overruns against architectural. Verify shaftway sizes, at all levels. ",{"$f":"J4","v":0},null,null,null,null,"✔","3. Select optional Tasks (black check mark) by deleting checkmarks for Tasks not needed."]
["CL46j","✔","Confirm lead times for ordering of cars and equipment against construction schedule, including installation, availability of permanent power and testing. ",{"$f":"J4","v":0},null,null,null,null,"[C]","4. If using the 2009 AIA Client and Architects Agreement, this is a CORE activity."]
["CL46k","✔","Check standard lift door opening details against architectural details. ",{"$f":"J4","v":0}]
["CL46l","✔","Obtain sample service agreements, review for conformity with spec. and submit to client. ",{"$f":"J4","v":0}]
["CL46m","✔","Confirm security requirements for lifts (eg. after-hours use) and coordinate with communication system. ",{"$f":"J4","v":0}]
[]
["© 1986-2017 Building Technology Pty Ltd. All rights reserved."]

{"sheet":"CL47","index":33,"n_rows":32,"n_cols":19,"rows_kept":32,"cut":false,"hidden":false,"merged":[[0,4,0,6],[1,4,1,6],[2,4,2,6],[3,4,3,6]]}
["Type:",null,{"$f":"Planner!B1","v":"CHECKITx All"},null,{"$f":"Planner!D1","v":"Test"}]
["Stage:",null,"4. Coordination","PLNR",{"$f":"Planner!D2","v":"Street Address"},null,null,null,"CHECKITx"]
["CL ID:",null,"CL47 Electrical Services Coordination",null,{"$f":"Planner!D3","v":"City | State | Postcode"}]
["Project:",null,{"$f":"Planner!B2","v":"Project Number & Name "},"Loc.",{"$f":"Planner!B3","v":"Location of Project "},null,null,null,null,null,"Staff assignment for this checklist - See Guides Sheet Step 4 for instructions"]
[]
["Item No ","Use","Task description","Who?","Checking record - action required if any. When action is completed, Initial & date approval\n","Chk By","Date",null,"Checking record:"]
["CL47a","✔","Confirm location, size, access and other details of substation, vault rooms, or other provision for power supply against architectural. ",{"$f":"J4","v":0},null,null,null,null,null,1,2,3,4,5,6,7,8,9,10]
["CL47b","✔","Confirm power authority approval of power supply provisions. ",{"$f":"J4","v":0},null,null,null,null,"Initials:"]
["CL47c","✔","Verify electrical floor plans and dimensions against architectural. ",{"$f":"J4","v":0},null,null,null,null,"Date:"]
["CL47d","✔","Confirm that all light fixtures are shown on architectural reflected ceiling plans. ",{"$f":"J4","v":0},null,null,null,null,"Checklist signoff: I have verified that all tasks for this checklist are complete"]
["CL47e","✔","Verify that sufficient height exists for all recessed fixtures. Confirm that recessed fixtures are not in conflict with beams and ducts. ",{"$f":"J4","v":0},null,null,null,null,"By:",null,null,null,null,"Date:"]
["CL47f","✔","Verify that all equipment items are connected. ",{"$f":"J4","v":0}]
["CL47g","✔","Verify location and space requirements of  elec- trical and telephone panel boards; check require- ments for radius dimensions of large conduits. ",{"$f":"J4","v":0},null,null,null,null,"✔","1. All red-checked Tasks are required for this project by the firm."]
["CL47h","✔","Check that electrical panels are not recessed in fire rated walls.",{"$f":"J4","v":0},null,null,null,null,"ISO","2. If ISO 9001 is a project requirement, all Tasks with a blue ISO reference must be used."]
["CL47i","✔","Verify that material descriptions are in specification and not on drawings. Check for missing or incomplete drawing notes.",{"$f":"J4","v":0},null,null,null,null,"✔","3. Select optional Tasks (black check mark) by deleting checkmarks for Tasks not needed."]
["CL47j","✔","Check lighting fixture schedule against drawings and specification.",{"$f":"J4","v":0},null,null,null,null,"[C]","4. If using the 2009 AIA Client and Architects Agreement, this is a CORE activity."]
["CL47k","✔","Verify power connections for sprinkler system equipment. ",{"$f":"J4","v":0}]
["CL47l","✔","Verify provision of sleeves for telephone conduits with telco and client.",{"$f":"J4","v":0}]
["CL47m","✔","Confirm space and equipment allocation for relevant telco.",{"$f":"J4","v":0}]
["CL47n","✔","Verify provision of sleeves and conduits for intercom/computer with client.",{"$f":"J4","v":0}]
["CL47o","✔","Verify electric strike releases, hold open devices and security switches with door schedule. ",{"$f":"J4","v":0}]
["CL47p","✔","Confirm provision for all other required security systems.",{"$f":"J4","v":0}]
["CL47q","✔","Verify that suspended exit signs are clear of full height doors.",{"$f":"J4","v":0}]
["CL47r","✔","Verify underground external wiring provision for building lighting is shown on sitework drawings.",{"$f":"J4","v":0}]
["CL47s","✔","Verify light switch positions against door swings.",{"$f":"J4","v":0}]
["CL47t","✔","Verify that under-slab conduits for floor outlets are dimensioned to coordinates.",{"$f":"J4","v":0}]
["CL47u","✔","Verify power wiring and provision for security systems; coordinate with client and real estate adviser - if any.",{"$f":"J5","v":0}]
["CL47v","✔","Verify power wiring and provision for communications system; coordinate with client and real estate adviser - if any.",{"$f":"J6","v":0}]
["CL47w","✔","Verify power wiring and provision for energy management systems; coordinate with client and real estate adviser - if any.",{"$f":"J4","v":0}]
["CL47x","✔","Confirm emergency power provisions.",{"$f":"J5","v":0}]
[]
["© 1986-2017 Building Technology Pty Ltd. All rights reserved."]

{"sheet":"CL48","index":34,"n_rows":20,"n_cols":19,"rows_kept":20,"cut":false,"hidden":false,"merged":[[0,4,0,6],[1,4,1,6],[2,4,2,6],[3,4,3,6]]}
["Type:",null,{"$f":"Planner!B1","v":"CHECKITx All"},null,{"$f":"Planner!D1","v":"Test"}]
["Stage:",null,"4. Coordination","PLNR",{"$f":"Planner!D2","v":"Street Address"},null,null,null,"CHECKITx"]
["CL ID:",null,"CL48 Communications Coordination",null,{"$f":"Planner!D3","v":"City | State | Postcode"}]
["Project:",null,{"$f":"Planner!B2","v":"Project Number & Name "},"Loc.",{"$f":"Planner!B3","v":"Location of Project "},null,null,null,null,null,"Staff assignment for this checklist - See Guides Sheet Step 4 for instructions"]
[]
["Item No ","Use","Task description","Who?","Checking record - action required if any. When action is completed, Initial & date approval\n","Chk By","Date",null,"Checking record:"]
["CL48a","✔","Review system operation with consultant. Obtain complete and clear description of system operation, and effects on other building systems.",{"$f":"J4","v":0},null,null,null,null,null,1,2,3,4,5,6,7,8,9,10]
["CL48b","✔","Review system for operating costs and savings, as reported by consultant. Resolve any ambiguities with consultant. ",{"$f":"J4","v":0},null,null,null,null,"Initials:"]
["CL48c","✔","Check features and operation of system against project brief. ",{"$f":"J4","v":0},null,null,null,null,"Date:"]
["CL48d","✔","Review system with client. Ensure that client understands any differences in operation of proposed system from that stated in brief. ",{"$f":"J4","v":0},null,null,null,null,"Checklist signoff: I have verified that all tasks for this checklist are complete"]
["CL48e","✔","Obtain client's sign-off on system design. ",{"$f":"J4","v":0},null,null,null,null,"By:",null,null,null,null,"Date:"]
["CL48f","✔","Check that security door monitoring systems and details are coordinated with communications system. ",{"$f":"J4","v":0}]
["CL48g","✔","Check door frame details for security wiring.",{"$f":"J4","v":0},null,null,null,null,"✔","1. All red-checked Tasks are required for this project by the firm."]
["CL48h","✔","Check that locations for cast-in conduits, if required, are shown on structural drawings or shop drawings.",{"$f":"J4","v":0},null,null,null,null,"ISO","2. If ISO 9001 is a project requirement, all Tasks with a blue ISO reference must be used."]
["CL48i","✔","Check all exposed features of system; coordinate with architectural and ensure there is adequate headroom for equipment proposed. ",{"$f":"J4","v":0},null,null,null,null,"✔","3. Select optional Tasks (black check mark) by deleting checkmarks for Tasks not needed."]
["CL48j","✔","Check swings of full-height doors near cameras.",{"$f":"J4","v":0},null,null,null,null,"[C]","4. If using the 2009 AIA Client and Architects Agreement, this is a CORE activity."]
["CL48k","✔","If applicable, check provisions for communications (computer cabling and other system functions) with real estate adviser for marketability.",{"$f":"J4","v":0}]
["CL48l","✔","Confirm with other consultants that their system design takes communications system design into account; resolve any uncertainties.",{"$f":"J4","v":0}]
[]
["© 1986-2017 Building Technology Pty Ltd. All rights reserved."]

{"sheet":"CL49","index":35,"n_rows":21,"n_cols":19,"rows_kept":21,"cut":false,"hidden":false,"merged":[[0,4,0,6],[1,4,1,6],[2,4,2,6],[3,4,3,6]]}
["Type:",null,{"$f":"Planner!B1","v":"CHECKITx All"},null,{"$f":"Planner!D1","v":"Test"}]
["Stage:",null,"4. Coordination","PLNR",{"$f":"Planner!D2","v":"Street Address"},null,null,null,"CHECKITx"]
["CL ID:",null,"CL49 Kitchen Equipment Coordination ",null,{"$f":"Planner!D3","v":"City | State | Postcode"}]
["Project:",null,{"$f":"Planner!B2","v":"Project Number & Name "},"Loc.",{"$f":"Planner!B3","v":"Location of Project "},null,null,null,null,null,"Staff assignment for this checklist - See Guides Sheet Step 4 for instructions"]
[]
["Item No ","Use","Task description","Who?","Checking record - action required if any. When action is completed, Initial & date approval\n","Chk By","Date",null,"Checking record:"]
["CL49a","✔","Prepare preliminary schedule of all anticipated equipment; review with client. ",{"$f":"J4","v":0},null,null,null,null,null,1,2,3,4,5,6,7,8,9,10]
["CL49b","✔","Inspect and prepare schedule of any existing equipment scheduled for re-use. Note any renovation or repair needed to existing equipment. ",{"$f":"J4","v":0},null,null,null,null,"Initials:"]
["CL49c","✔","Measure existing equipment to be re-used; note supply and drain sizes and locations and power requirements. ",{"$f":"J4","v":0},null,null,null,null,"Date:"]
["CL49d","✔","Prepare preliminary equipment layout plan; review with client. Submit to BSEng. ",{"$f":"J4","v":0},null,null,null,null,"Checklist signoff: I have verified that all tasks for this checklist are complete"]
["CL49e","✔","Prepare preliminary equipment schedule, noting all connection requirements. Submit to BSEng. ",{"$f":"J4","v":0},null,null,null,null,"By:",null,null,null,null,"Date:"]
["CL49f","✔","Confirm whether any items of equipment are to be included under nominated subcontracts or separate contracts. ",{"$f":"J4","v":0}]
["CL49g","✔","Confirm whether any items of equipment are to be separately purchased by client or tenants.",{"$f":"J4","v":0},null,null,null,null,"✔","1. All red-checked Tasks are required for this project by the firm."]
["CL49h","✔","Update equipment plan as necessary; confirm allowances with QS.",{"$f":"J4","v":0},null,null,null,null,"ISO","2. If ISO 9001 is a project requirement, all Tasks with a blue ISO reference must be used."]
["CL49i","✔","Prepare and distribute final equipment plan and schedule. ",{"$f":"J4","v":0},null,null,null,null,"✔","3. Select optional Tasks (black check mark) by deleting checkmarks for Tasks not needed."]
["CL49j","✔","Provide specification notes and product literature to specification writer and BSEng.",{"$f":"J4","v":0},null,null,null,null,"[C]","4. If using the 2009 AIA Client and Architects Agreement, this is a CORE activity."]
["CL49k","✔","Determine lead times for order of custom- fabricated or imported equipment. Advise client and builder (if appointed). ",{"$f":"J4","v":0}]
["CL49l","✔","Obtain client's approval and sign-off on equipment plan and schedule. ",{"$f":"J4","v":0}]
["CL49m","✔","Final check architectural and engineering drawings and specifications for accommodation of equipment requirements. ",{"$f":"J4","v":0}]
[]
["© 1986-2017 Building Technology Pty Ltd. All rights reserved."]

{"sheet":"CL51","index":36,"n_rows":34,"n_cols":19,"rows_kept":34,"cut":false,"hidden":false,"merged":[[0,4,0,6],[1,4,1,6],[2,4,2,6],[3,4,3,6]]}
["Type:",null,{"$f":"Planner!B1","v":"CHECKITx All"},null,{"$f":"Planner!D1","v":"Test"}]
["Stage:",null,"5. Documentation","PLNR",{"$f":"Planner!D2","v":"Street Address"},null,null,null,"CHECKITx"]
["CL ID:",null,"CL51 Documentation – General",null,{"$f":"Planner!D3","v":"City | State | Postcode"}]
["Project:",null,{"$f":"Planner!B2","v":"Project Number & Name "},"Loc.",{"$f":"Planner!B3","v":"Location of Project "},null,null,null,null,null,"Staff assignment for this checklist - See Guides Sheet Step 4 for instructions"]
[]
["Item No ","Use","Task description","Who?","Checking record - action required if any. When action is completed, Initial & date approval\n","Chk By","Date",null,"Checking record:"]
["CL51a","✔","Establish/distribute project drawing standards, preliminary schedule of drawings, numbering system & title information.",{"$f":"J4","v":0},null,null,null,null,null,1,2,3,4,5,6,7,8,9,10]
["CL51b","✔","Prepare documentation work and staffing plan and time schedule; review with PlC; verify against programmer's schedule (if any). ISO 9001: cl. 7.1.",{"$f":"J4","v":0},null,null,null,null,"Initials:"]
["CL51c","✔","Check progress to work plan in current reporting period. Note deficiencies.",{"$f":"J4","v":0},null,null,null,null,"Date:"]
["CL51d","✔","Establish documentation coordination procedures with all consultants, set regular meeting times, agenda format and minuting procedure. ISO 9001: cl. 8.4.",{"$f":"J4","v":0},null,null,null,null,"Checklist signoff: I have verified that all tasks for this checklist are complete"]
["CL51e","✔","Compare each subconsultant's and other consultant's design development drawings to architectural. Verify match.",{"$f":"J4","v":0},null,null,null,null,"By:",null,null,null,null,"Date:"]
["CL51f","✔","Confirm any revisions to project delivery budget.",{"$f":"J4","v":0}]
["CL51g","✔","Finalise glazing selection in consultation with BSEng; confirm against requirements of authorities.",{"$f":"J4","v":0},null,null,null,null,"✔","1. All red-checked Tasks are required for this project by the firm.\n"]
["CL51h","✔","Review provisions for telephone system with telco and client's real estate advisers. Review and confirm communications and PA system provisions with client and BSEng.",{"$f":"J4","v":0},null,null,null,null,"ISO","2. If ISO 9001 is a project requirement, all Tasks with a blue ISO reference must be used."]
["CL51i","✔","Review and confirm security system provisions with client and BSEng.",{"$f":"J4","v":0},null,null,null,null,"✔","3. Select optional Tasks (black check mark) by deleting checkmarks for Tasks not needed."]
["CL51j","✔","Review and confirm cleaning, refuse and waste paper removal system provisions with client and BSEng.",{"$f":"J4","v":0},null,null,null,null,"[C]","4. If using the 2009 AIA Client and Architects Agreement, this is a CORE activity."]
["CL51k","✔","Confirm if energy management system is to be employed; establish brief. ",{"$f":"J4","v":0}]
["CL51l","✔","Confirm final dimensions for all shafts and duct openings.",{"$f":"J4","v":0}]
["CL51m","✔","Confirm final dimensions for all lifts and escalators.",{"$f":"J4","v":0}]
["CL51n","✔","Confirm locations for firehose cabinets, fire extinguishers, sprinkler control valves, pumps and control panel.",{"$f":"J4","v":0}]
["Cl51o","✔","Confirm weights of all heavy equipment and special floor loading requirements; advise SEng.",{"$f":"J4","v":0}]
["CL51p","✔","Obtain BSEng's report on acoustic and vibration characteristics of mechanical system, review with client.",{"$f":"J4","v":0}]
["CL51q","✔","Establish size and locations of slab and beam penetrations (from BSEng) and confirm with SEng.",{"$f":"J4","v":0}]
["CL51r","✔","Identify all non-conforming elements of the building design; eliminate or seek modification for non-conforming items. ISO 9001: cl. 8.7, 10.2.",{"$f":"J4","v":0}]
["CL51s","✔","Confirm grades at all building entry points with civil drawings; check disabled access requirements.",{"$f":"J4","v":0}]
["CL51t","✔","Verify limits of site if required; compare property line dimensions on architectural against survey plan.",{"$f":"J4","v":0}]
["CL51u","✔","Confirm overall thermal and other movement coefficients; check against movement joint provisions.",{"$f":"J4","v":0}]
["CL51v","✔","Verify that all details are referenced to general documents.  ISO 9001: cl. 8.7.",{"$f":"J4","v":0}]
["CL51w","✔","Submit drawings to QS for possible adjustment to project delivery budget.",{"$f":"J5","v":0}]
["CL51x","✔","Submit drawings, specification notes and product literature to specification writer.",{"$f":"J6","v":0}]
["CL51y","✔","Submit complete set of drawings to all other consultants and subconsultants for checking and comparison.  ISO 9001: cl. 8.7, 10.2",{"$f":"J4","v":0}]
["CL51z","✔","Obtain client's approval and sign off for completed drawings and related documents at same time as detail documentation (CL52x).",{"$f":"J8","v":0}]
[]
["© 1986-2017 Building Technology Pty Ltd. All rights reserved."]

{"sheet":"CL52","index":37,"n_rows":34,"n_cols":19,"rows_kept":34,"cut":false,"hidden":false,"merged":[[0,4,0,6],[1,4,1,6],[2,4,2,6],[3,4,3,6]]}
["Type:",null,{"$f":"Planner!B1","v":"CHECKITx All"},null,{"$f":"Planner!D1","v":"Test"}]
["Stage:",null,"5. Documentation","PLNR",{"$f":"Planner!D2","v":"Street Address"},null,null,null,"CHECKITx"]
["CL ID:",null,"CL52 Documentation – Detail",null,{"$f":"Planner!D3","v":"City | State | Postcode"}]
["Project:",null,{"$f":"Planner!B2","v":"Project Number & Name "},"Loc.",{"$f":"Planner!B3","v":"Location of Project "},null,null,null,null,null,"Staff assignment for this checklist - See Guides Sheet Step 4 for instructions"]
[]
["Item No ","Use","Task description","Who?","Checking record - action required if any. When action is completed, Initial & date approval\n","Chk By","Date",null,"Checking record:"]
["CL52a","✔","Establish/distribute detail project standards: size, title, numbering system & uniform reference system.",{"$f":"J4","v":0},null,null,null,null,null,1,2,3,4,5,6,7,8,9,10]
["CL52b","✔","Review all plans, elevations and sections; determine sections still needed to be prepared. Advise PlC.",{"$f":"J4","v":0},null,null,null,null,"Initials:"]
["CL52c","✔","Mark up complete set of general documents to show all locations where details are required. (Not applicable for BIM projects.)",{"$f":"J4","v":0},null,null,null,null,"Date:"]
["CL52d","✔","Assign number and sequence schedule for all details; confirm reference system is understood by general documenters.",{"$f":"J4","v":0},null,null,null,null,"Checklist signoff: I have verified that all tasks for this checklist are complete"]
["CL52e ","✔","Prepare detail work and staff plan and time schedule. Review with PlC.",{"$f":"J4","v":0},null,null,null,null,"By:",null,null,null,null,"Date:"]
["CL52f","✔","Check progress to work plan in current reporting period. Note deficiencies.",{"$f":"J4","v":0}]
["CL52g","✔","Prepare detail \"library\" of typical details from other projects anticipated to apply to this project. Provide to team.",{"$f":"J4","v":0},null,null,null,null,"✔","1. All red-checked Tasks are required for this project by the firm.\n"]
["CL52h","✔","Request list of architectural detail information needed from each subconsultant; revise work plan as necessary.",{"$f":"J4","v":0},null,null,null,null,"ISO","2. If ISO 9001 is a project requirement, all Tasks with a blue ISO reference must be used."]
["CL52i","✔","Check sizes of all column and beam sections for conflicts with ceilings or other elements, including equipment.",{"$f":"J4","v":0},null,null,null,null,"✔","3. Select optional Tasks (black check mark) by deleting checkmarks for Tasks not needed."]
["CL52j","✔","Confirm design of grilles, diffusers and ducted skirting with BSEng.  Coordinate lighting details with BSEng.",{"$f":"J4","v":0},null,null,null,null,"[C]","4. If using the 2009 AIA Client and Architects Agreement, this is a CORE activity."]
["CL52k","✔","Each team member: collect product literature; make notes on all discussions with suppliers; give to TL to hold for spec writer.",{"$f":"J4","v":0}]
["CL52l ","✔","Confirm security requirements; check against door and other details.",{"$f":"J4","v":0}]
["CL52m","✔","Confirm requirements for attaching of cladding systems to edge beams; check details, including fire rating requirements.",{"$f":"J4","v":0}]
["CL52n","✔","Obtain standard or preliminary shop drawings on lifts and escalators; confirm detail provisions.",{"$f":"J4","v":0}]
["CL52o","✔","Confirm expansion and control joint details with SEng; verify that precast panel design and jointing conforms to thermal and other movement criteria (CL51u).",{"$f":"J4","v":0}]
["CL52p","✔","Verify that details are prepared for all general document reference points (per CL52h).",{"$f":"J4","v":0}]
["CL52q","✔","Request list of \"builders work\" items from all other consultants; verify against architectural details.",{"$f":"J4","v":0}]
["CL52r","✔","Eliminate all references as \"by others\"; determine and note responsible party.",{"$f":"J4","v":0}]
["CL52s","✔","Periodically check detailing to ensure that materials descriptions are reserved for specifications and not on drawings.",{"$f":"J4","v":0}]
["CL52t","✔","Verify that document package meets all requirements for submission to authorities for statutory approval. [C]  ISO 9001: cl. 8.7, 10.2.",{"$f":"J4","v":0}]
["CL52u","✔","Prepare pre-tender estimate of cost of construction; review with client, and make adjustments as required. See CL61. [C]",{"$f":"J4","v":0}]
["CL52v","✔","Submit drawings, specification notes and product literature to specification writer.",{"$f":"J4","v":0}]
["CL52w","✔","Confirm that provisional Bills of Quantities have been prepared, if required.",{"$f":"J4","v":0}]
["CL52x","✔","Obtain client's approval and sign off for completed drawings and related documents, at same time as general documentation (CL51z). [C]",{"$f":"J4","v":0}]
["CL52y","✔","Obtain client's written approval to submit for stutory approval.  [C]",{"$f":"J4","v":0}]
["CL52z","✔","Obtain client's written approval to proceed with contractor selection, if appropriate. [C]",{"$f":"J5","v":0}]
[]
["© 1986-2017 Building Technology Pty Ltd. All rights reserved."]

{"sheet":"CL53","index":38,"n_rows":34,"n_cols":19,"rows_kept":34,"cut":false,"hidden":false,"merged":[[0,4,0,6],[1,4,1,6],[2,4,2,6],[3,4,3,6]]}
["Type:",null,{"$f":"Planner!B1","v":"CHECKITx All"},null,{"$f":"Planner!D1","v":"Test"}]
["Stage:",null,"5. Documentation","PLNR",{"$f":"Planner!D2","v":"Street Address"},null,null,null,"CHECKITx"]
["CL ID:",null,"CL53 Specification Production",null,{"$f":"Planner!D3","v":"City | State | Postcode"}]
["Project:",null,{"$f":"Planner!B2","v":"Project Number & Name "},"Loc.",{"$f":"Planner!B3","v":"Location of Project "},null,null,null,null,null,"Staff assignment for this checklist - See Guides Sheet Step 4 for instructions"]
[]
["Item No ","Use","Task description","Who?","Checking record - action required if any. When action is completed, Initial & date approval\n","Chk By","Date",null,"Checking record:"]
["CL53a","✔","Determine form of conditions of contact or obtain copy of conditions of contract.",{"$f":"J4","v":0},null,null,null,null,null,1,2,3,4,5,6,7,8,9,10]
["CL53b","✔","Review project file and meet with PlC to determine any special conditions.",{"$f":"J4","v":0},null,null,null,null,"Initials:"]
["CL53c","✔","Write preliminaries; check for compatibility with other parts of contract.",{"$f":"J4","v":0},null,null,null,null,"Date:"]
["CL53d","✔","Circulate proposed conditions of contract and preliminaries to client for review.",{"$f":"J4","v":0},null,null,null,null,"Checklist signoff: I have verified that all tasks for this checklist are complete"]
["CL53e","✔","Confirm whether QS will issue Bill of Quantities or Specified BOQ. Confirm basis of pricing (CL61f) and insurance requirements (CL61m).",{"$f":"J4","v":0},null,null,null,null,"By:",null,null,null,null,"Date:"]
["Cl53f","✔","Review progress drawings and compile draft list of all specification sections and subsections likely to be required.",{"$f":"J4","v":0}]
["CL53g","✔","Confirm specification sections titles with PlC and TL.  Confirm specification format and style with PlC.",{"$f":"J4","v":0},null,null,null,null,"✔","1. All red-checked Tasks are required for this project by the firm.\n"]
["CL53h","✔","Obtain SEng's specification sections, review and put into approved format.",{"$f":"J4","v":0},null,null,null,null,"ISO","2. If ISO 9001 is a project requirement, all Tasks with a blue ISO reference must be used."]
["CL53i","✔","Send draft of structural sections to SEng for review and approval.",{"$f":"J4","v":0},null,null,null,null,"✔","3. Select optional Tasks (black check mark) by deleting checkmarks for Tasks not needed."]
["CL53j","✔","Request list of all \"contractor’s work\" items from all other consultants.",{"$f":"J4","v":0},null,null,null,null,"[C]","4. If using the 2009 AIA Client and Architects Agreement, this is a CORE activity."]
["CL53k","✔","Determine if any sections are likely to require performance specifications; confirm with PlC. If affirmative, agree on method of performance testing.",{"$f":"J4","v":0}]
["CL53l","✔","Prepare draft list of Australian Standards likely to be needed for reference; obtain those not in library.",{"$f":"J4","v":0}]
["CL53m","✔","Issue draft preliminaries to BSEng; request text of any additions required by Building Services specifications.",{"$f":"J4","v":0}]
["CL53n","✔","If BSEng presents \"special conditions\" specification, review for clauses to be added to preliminaries and advise that remainder be added to technical sections.",{"$f":"J4","v":0}]
["CL53o","✔","Provide specification data request list to PlC to discuss with architectural team members.",{"$f":"J4","v":0}]
["CL53p","✔","Confirm completion schedule for specification sections and related drawing groups.",{"$f":"J4","v":0}]
["CL53q","✔","Develop suggested list of alternatives, confirm with TL and PlC. Review with client.",{"$f":"J4","v":0}]
["CL53r","✔","Review drawings as completed; mark for deletion material descriptions and proprietary names found.",{"$f":"J4","v":0}]
["CL53s","✔","Confirm specification of any required staging of construction; check against preliminary construction schedule.",{"$f":"J4","v":0}]
["CL53t","✔","Check finishes schedule against specification index; confirm all finish materials are included.",{"$f":"J4","v":0}]
["CL53u","✔","Confirm that final issue of drawings matches specified Schedule of Drawings exactly.  Verify all specification cross-referencing.",{"$f":"J4","v":0}]
["CL53v","✔","Eliminate all references as \"by others\"; determine and note responsible party. ",{"$f":"J4","v":0}]
["CL53w","✔","Check all specification references to drawings (''as indicated\", \"as shown\") and verify they are so indicated, and that drawing references to specifications are covered.",{"$f":"J4","v":0}]
["CL53x","✔","Check major equipment listings against drawings; verify motor ratings and voltages against electrical.",{"$f":"J5","v":0}]
["CL53y","✔","Confirm schedule of monetary provisions.",{"$f":"J6","v":0}]
["CL53z","✔","Obtain client agreement on contingency sum allowance and authority for expenditure.",0]
[]
["© 1986-2017 Building Technology Pty Ltd. All rights reserved."]

{"sheet":"CL54","index":39,"n_rows":20,"n_cols":19,"rows_kept":20,"cut":false,"hidden":false,"merged":[[0,4,0,6],[1,4,1,6],[2,4,2,6],[3,4,3,6]]}
["Type:",null,{"$f":"Planner!B1","v":"CHECKITx All"},null,{"$f":"Planner!D1","v":"Test"}]
["Stage:",null,"5. Documentation","PLNR",{"$f":"Planner!D2","v":"Street Address"},null,null,null,"CHECKITx"]
["CL ID:",null,"CL54 Environmental Specification",null,{"$f":"Planner!D3","v":"City | State | Postcode"}]
["Project:",null,{"$f":"Planner!B2","v":"Project Number & Name "},"Loc.",{"$f":"Planner!B3","v":"Location of Project "},null,null,null,null,null,"Staff assignment for this checklist - See Guides Sheet Step 4 for instructions"]
[]
["Item No ","Use","Task description","Who?","Checking record - action required if any. When action is completed, Initial & date approval\n","Chk By","Date",null,"Checking record:"]
["CL54a","✔","Generally, use ‘green’ specifications. Refer to appropriate standards and procedures.",{"$f":"J4","v":0},null,null,null,null,null,1,2,3,4,5,6,7,8,9,10]
["CL54b","✔","Avoid specifying water-hungry construction techniques.",{"$f":"J4","v":0},null,null,null,null,"Initials:"]
["CL54c","✔","Specify for stormwater run-off controls.",{"$f":"J4","v":0},null,null,null,null,"Date:"]
["CL54d","✔","Specify staging of work and employment of appropriate site management techniques to preserve top soil, flora and fauna.",{"$f":"J4","v":0},null,null,null,null,"Checklist signoff: I have verified that all tasks for this checklist are complete"]
["CL54e ","✔","Require all contractors and subcontractors to engage in non-polluting construction techniques.",{"$f":"J4","v":0},null,null,null,null,"By:",null,null,null,null,"Date:"]
["CL54f","✔","Require demolition material to be recycled.",{"$f":"J4","v":0}]
["CL54g","✔","Provide for inspection of contractors’ and subcontractors’ sorting of onsite waste for recycling.",{"$f":"J4","v":0},null,null,null,null,"✔","1. All red-checked Tasks are required for this projec by the firm.\n"]
["CL54h","✔","Specify that Building Operations Manual is to be included as part of the settlement documents if the building is sold.",{"$f":"J4","v":0},null,null,null,null,"ISO","2. If ISO 9001 is a project requirement, all Tasks with a blue ISO reference must be used."]
["CL54i","✔","Specify protection and covering of air handling system components during construction;  specify a ‘flush-out’ of the systems after all construction is complete.",{"$f":"J4","v":0},null,null,null,null,"✔","3. Select optional Tasks (black check mark) by deleting checkmarks for Tasks not needed."]
["CL54j","✔","Specify CFC/HCFC and Halon-free air handling equipment.",{"$f":"J4","v":0},null,null,null,null,"[C]","4. If using the 2009 AIA Client and Architects Agreement, this is a CORE activity."]
["CL54k","✔","Specifiy to support agro-forestry timber forestry and milling techniques. Avoid specifying old growth timbers; check timber sources to protect old growth forests.",{"$f":"J4","v":0}]
["CL54l ","✔","Specify appropriate levels of insulation – meet & exceed BCA requirements.",{"$f":"J4","v":0}]
[]
["© 1986-2017 Building Technology Pty Ltd. All rights reserved."]

{"sheet":"CL55","index":40,"n_rows":34,"n_cols":19,"rows_kept":34,"cut":false,"hidden":false,"merged":[[0,4,0,6],[1,4,1,6],[2,4,2,6],[3,4,3,6]]}
["Type:",null,{"$f":"Planner!B1","v":"CHECKITx All"},null,{"$f":"Planner!D1","v":"Test"}]
["Stage:",null,"5. Documentation","PLNR",{"$f":"Planner!D2","v":"Street Address"},null,null,null,"CHECKITx"]
["CL ID:",null,"CL55 Architectural Check",null,{"$f":"Planner!D3","v":"City | State | Postcode"}]
["Project:",null,{"$f":"Planner!B2","v":"Project Number & Name "},"Loc.",{"$f":"Planner!B3","v":"Location of Project "},null,null,null,null,null,"Staff assignment for this checklist - See Guides Sheet Step 4 for instructions"]
[]
["Item No ","Use","Task description","Who?","Checking record - action required if any. When action is completed, Initial & date approval\n","Chk By","Date",null,"Checking record:"]
["CL55a","✔","Verify that limits of existing and new work are clearly shown (additions and renovations only).",{"$f":"J4","v":0},null,null,null,null,null,1,2,3,4,5,6,7,8,9,10]
["CL55b","✔","Verify all structural elements and dimensions against structural drawings.",{"$f":"J4","v":0},null,null,null,null,"Initials:"]
["CL55c","✔","Compare elevations to floor plans; check all features shown on both.",{"$f":"J4","v":0},null,null,null,null,"Date:"]
["CL55d","✔","Compare building sections to elevations and plans; check all features on both.",{"$f":"J4","v":0},null,null,null,null,"Checklist signoff: I have verified that all tasks for this checklist are complete"]
["CL55e","✔","Compare detail wall sections with building sections.",{"$f":"J4","v":0},null,null,null,null,"By:",null,null,null,null,"Date:"]
["CL55f","✔","Verify that all details referenced on plans, elevations and sections exist and are properly keyed.",{"$f":"J4","v":0}]
["CL55g","✔","Verify that all details are referenced at least once to plans, elevations and sections.",{"$f":"J4","v":0},null,null,null,null,"✔","1. All red-checked Tasks are required for this project by the firm.\n"]
["CL55h","✔","Verify rough openings for doors and windows against schedule and structural.",{"$f":"J4","v":0},null,null,null,null,"ISO","2. If ISO 9001 is a project requirement, all Tasks with a blue ISO reference must be used."]
["CL55i","✔","Verify movement joint locations and cross-check with SEng requirements.",{"$f":"J4","v":0},null,null,null,null,"✔","3. Select optional Tasks (black check mark) by deleting checkmarks for Tasks not needed."]
["CL55j","✔","Compare finish schedule with ceiling and wall finish notes.",{"$f":"J4","v":0},null,null,null,null,"[C]","4. If using the 2009 AIA Client and Architects Agreement, this is a CORE activity."]
["CL55k","✔","Check lighting fixture layout against electrical plan and schedules.",{"$f":"J4","v":0}]
["CL55l","✔","Check diffusers, grilles and registers against mechanical plans.",{"$f":"J4","v":0}]
["CL55m","✔","Check vent locations against reflected ceiling plans and elevations.",{"$f":"J4","v":0}]
["CL55n","✔","Verify door schedule data including sizes, types, frame conditions and fire ratings etc.",{"$f":"J4","v":0}]
["CL55o","✔","Verify hardware and door furniture schedule against door schedule and specification.",{"$f":"J4","v":0}]
["CL55p","✔","Compare door swings with electrical switch locations.",{"$f":"J4","v":0}]
["CL55q","✔","Verify fire rated wall locations and details.",{"$f":"J4","v":0}]
["CL55r","✔","Verify ratings of doors in fire rated walls.",{"$f":"J4","v":0}]
["CL55s","✔","Check all dimension strings and totals.",{"$f":"J4","v":0}]
["CL55t","✔","Verify fit of cabinets and items of equipment.",{"$f":"J4","v":0}]
["CL55u","✔","Verify that material descriptions are in specification and not on drawings.",{"$f":"J4","v":0}]
["CL55v","✔","Verify data on room finish schedule against all other drawings; check room names and numbers, ceiling heights and finishes.",{"$f":"J4","v":0}]
["CL55w","✔","Check detail of plan enlargements against small scale plans.",{"$f":"J4","v":0}]
["CL55x","✔","Where plan of one floor is on more than one drawing, check match of all meeting lines.",{"$f":"J5","v":0}]
["CL55y","✔","Submit completed documents for building approval where required pursuant to CL52y.",{"$f":"J5","v":0}]
["CL55z","✔","NOTE: All clauses in this checklist are relevant to ISO 9001: cl. 8.6, 8.7 and 10.2. Report any recurring patterns of nonconformity to top management.",{"$f":"J6","v":0}]
[]
["© 1986-2017 Building Technology Pty Ltd. All rights reserved."]

{"sheet":"CL56","index":41,"n_rows":25,"n_cols":19,"rows_kept":25,"cut":false,"hidden":false,"merged":[[0,4,0,6],[1,4,1,6],[2,4,2,6],[3,4,3,6]]}
["Type:",null,{"$f":"Planner!B1","v":"CHECKITx All"},null,{"$f":"Planner!D1","v":"Test"}]
["Stage:",null,"5. Documentation","PLNR",{"$f":"Planner!D2","v":"Street Address"},null,null,null,"CHECKITx"]
["CL ID:",null,"CL56 Renovations Check",null,{"$f":"Planner!D3","v":"City | State | Postcode"}]
["Project:",null,{"$f":"Planner!B2","v":"Project Number & Name "},"Loc.",{"$f":"Planner!B3","v":"Location of Project "},null,null,null,null,null,"Staff assignment for this checklist - See Guides Sheet Step 4 for instructions"]
[]
["Item No ","Use","Task description","Who?","Checking record - action required if any. When action is completed, Initial & date approval\n","Chk By","Date",null,"Checking record:"]
["CL56a","✔","Check all documents against site check and verification of dimensions report (CL17s). Site-check any discrepancies.",{"$f":"J4","v":0},null,null,null,null,null,1,2,3,4,5,6,7,8,9,10]
["CL56b","✔","Check for details at all locations where new construction meets existing.",{"$f":"J4","v":0},null,null,null,null,"Initials:"]
["CL56c","✔","Where appropriate, verify that all known services required to remain are shown on drawings.",{"$f":"J4","v":0},null,null,null,null,"Date:"]
["CL56d","✔","Verify that all remedial/repair work called for in complete site survey report is covered (CL17t).",{"$f":"J4","v":0},null,null,null,null,"Checklist signoff: I have verified that all tasks for this checklist are complete"]
["CL56e ","✔","Check for any new piping and conduit to be run in solid walls; check for sufficient furring.",{"$f":"J4","v":0},null,null,null,null,"By:",null,null,null,null,"Date:"]
["CL56f","✔","Verify that chases in solid walls do not go through structural beams.",{"$f":"J4","v":0}]
["CL56g","✔","Verify that \"make good\" notes are sufficiently precise to make clear the intended scope.",{"$f":"J4","v":0},null,null,null,null,"✔","1. All red-checked Tasks are required for this project by the firm."]
["CL56h","✔","Verify that historic/important detail to be conserved is properly identified and protection called for.",{"$f":"J4","v":0},null,null,null,null,"ISO","2. If ISO 9001 is a project requirement, all Tasks with a blue ISO reference must be used."]
["CL56i","✔","Verify structural drawings resolve all known structural deficiencies.",{"$f":"J4","v":0},null,null,null,null,"✔","3. Select optional Tasks (black check mark) by deleting checkmarks for Tasks not needed."]
["CL56j","✔","Verify that access exists to run ducts and piping above suspended ceilings.",{"$f":"J4","v":0},null,null,null,null,"[C]","4. If using the 2009 AIA Client and Architects Agreement, this is a CORE activity."]
["CL56k","✔","Verify that vertical shafts on different floors actually line up.",{"$f":"J4","v":0}]
["CL56l","✔","Verify that all cabinet details permit site adjustment for sloping floors, walls and ceilings. Cabinet bases to be supplied loose.",{"$f":"J4","v":0}]
["CL56m","✔","Confirm continuity of any required fire separation.",{"$f":"J4","v":0}]
["CL56n","✔","Check specification carefully against all restoration detail.",{"$f":"J4","v":0}]
["CL56o","✔","Check hardware back sets and thickness limits against actual door stiles.",{"$f":"J4","v":0}]
["CL56p","✔","Verify provision for treatment where door hardware is to be removed/replaced.",{"$f":"J4","v":0}]
["CL56q","✔","Check door and window schedules for remedial work required, against each door and window on site.",{"$f":"J4","v":0}]
[]
["© 1986-2017 Building Technology Pty Ltd. All rights reserved."]

{"sheet":"CL57","index":42,"n_rows":23,"n_cols":19,"rows_kept":23,"cut":false,"hidden":false,"merged":[[0,4,0,6],[1,4,1,6],[2,4,2,6],[3,4,3,6]]}
["Type:",null,{"$f":"Planner!B1","v":"CHECKITx All"},null,{"$f":"Planner!D1","v":"Test"}]
["Stage:",null,"5. Documentation","PLNR",{"$f":"Planner!D2","v":"Street Address"},null,null,null,"CHECKITx"]
["CL ID:",null,"CL57 Furnishings & Fittings",null,{"$f":"Planner!D3","v":"City | State | Postcode"}]
["Project:",null,{"$f":"Planner!B2","v":"Project Number & Name "},"Loc.",{"$f":"Planner!B3","v":"Location of Project "},null,null,null,null,null,"Staff assignment for this checklist - See Guides Sheet Step 4 for instructions"]
[]
["Item No ","Use","Task description","Who?","Checking record - action required if any. When action is completed, Initial & date approval\n","Chk By","Date",null,"Checking record:"]
["CL57a","✔","Reconfirm design development phase Finishes Schedule with client and amend Schedule if any changes (CL31e).",{"$f":"J4","v":0},null,null,null,null,null,1,2,3,4,5,6,7,8,9,10]
["CL57b","✔","Compare confirmed Schedule with Architectural Drawings.",{"$f":"J4","v":0},null,null,null,null,"Initials:"]
["CL57c","✔","Develop preliminary materials selection and review with PlC and client.",{"$f":"J4","v":0},null,null,null,null,"Date:"]
["CL57d","✔","Verify with QS areas and unit costs for interiors treatment carried in Cost Plan.",{"$f":"J4","v":0},null,null,null,null,"Checklist signoff: I have verified that all tasks for this checklist are complete"]
["CL57e ","✔","Confirm compatibility of interior design module with ceiling module, window module, column module etc.",{"$f":"J4","v":0},null,null,null,null,"By:",null,null,null,null,"Date:"]
["CL57f","✔","Confirm fire resistance characteristics required of all proposed materials.",{"$f":"J4","v":0}]
["CL57g","✔","Obtain and check specification sections written for all finish materials already specified.",{"$f":"J4","v":0},null,null,null,null,"✔","1. All red-checked Tasks are required for this project by the firm."]
["CL57h","✔","Provide specification writer with descriptions of all proposed finish materials.",{"$f":"J4","v":0},null,null,null,null,"ISO","2. If ISO 9001 is a project requirement, all Tasks with a blue ISO reference must be used."]
["CL57i","✔","Determine lead times for all custom-made and imported materials; advise PlC and contractor if appointed.",{"$f":"J4","v":0},null,null,null,null,"✔","3. Select optional Tasks (black check mark) by deleting checkmarks for Tasks not needed."]
["CL57j","✔","Confirm deadline for completion of lift car design with subcontractor. See CL46.",{"$f":"J4","v":0},null,null,null,null,"[C]","4. If using the 2009 AIA Client and Architects Agreement, this is a CORE activity."]
["CL57k","✔","Confirm with BSEng lighting type, location and level in all significant spaces.",{"$f":"J4","v":0}]
["CL57l ","✔","Confirm with BSEng supply air flow patterns at draped walls.",{"$f":"J4","v":0}]
["CL57m","✔","Verify power supply and telephone systems locations for office partitions and means of housing same.",{"$f":"J4","v":0}]
["CL57n","✔","Prepare final Finish Materials Schedule; review with PlC and client.",{"$f":"J4","v":0}]
["CL57o","✔","Final check schedule against final architectural drawings and specifications.",{"$f":"J4","v":0}]
[]
["© 1986-2017 Building Technology Pty Ltd. All rights reserved."]

{"sheet":"CL58","index":43,"n_rows":25,"n_cols":19,"rows_kept":25,"cut":false,"hidden":false,"merged":[[0,4,0,6],[1,4,1,6],[2,4,2,6],[3,4,3,6]]}
["Type:",null,{"$f":"Planner!B1","v":"CHECKITx All"},null,{"$f":"Planner!D1","v":"Test"}]
["Stage:",null,"5. Documentation","PLNR",{"$f":"Planner!D2","v":"Street Address"},null,null,null,"CHECKITx"]
["CL ID:",null,"CL58 Equipment",null,{"$f":"Planner!D3","v":"City | State | Postcode"}]
["Project:",null,{"$f":"Planner!B2","v":"Project Number & Name "},"Loc.",{"$f":"Planner!B3","v":"Location of Project "},null,null,null,null,null,"Staff assignment for this checklist - See Guides Sheet Step 4 for instructions"]
[]
["Item No ","Use","Task description","Who?","Checking record - action required if any. When action is completed, Initial & date approval\n","Chk By","Date",null,"Checking record:"]
["CL58a","✔","Prepare preliminary schedule of all anticipated equipment; review with PlC and client.",{"$f":"J4","v":0},null,null,null,null,null,1,2,3,4,5,6,7,8,9,10]
["CL58b","✔","Inspect and prepare schedule of any existing equipment scheduled for re-use.",{"$f":"J4","v":0},null,null,null,null,"Initials:"]
["CL58c","✔","Measure existing equipment to be re-used; note supply and drain sizes and locations and power requirements.",{"$f":"J4","v":0},null,null,null,null,"Date:"]
["CL58d","✔","Note any renovation or repair needed to existing equipment.",{"$f":"J4","v":0},null,null,null,null,"Checklist signoff: I have verified that all tasks for this checklist are complete"]
["CL58e ","✔","Prepare preliminary schedule of all anticipated equipment; review with PlC and client.",{"$f":"J4","v":0},null,null,null,null,"By:",null,null,null,null,"Date:"]
["CL58f","✔","Prepare preliminary equipment schedule, noting all connection requirements. Submit to BSEng.",{"$f":"J4","v":0}]
["CL58g","✔","Confirm whether any items of equipment are to be included under nominated subcontracts or separate contracts.",{"$f":"J4","v":0},null,null,null,null,"✔","1. All red-checked Tasks are required for this project by the firm."]
["CL58h","✔","Confirm whether any items of equipment are to be separate purchase by client or tenants.",{"$f":"J4","v":0},null,null,null,null,"ISO","2. If ISO 9001 is a project requirement, all Tasks with a blue ISO reference must be used."]
["CL58i","✔","Update equipment plan as necessary; confirm allowances with QS.",{"$f":"J4","v":0},null,null,null,null,"✔","3. Select optional Tasks (black check mark) by deleting checkmarks for Tasks not needed."]
["CL58j","✔","Prepare final equipment plan and schedule. Distribute.",{"$f":"J4","v":0},null,null,null,null,"[C]","4. If using the 2009 AIA Client and Architects Agreement, this is a CORE activity."]
["CL58k","✔","Submit specification notes and product literature to specification writer and BSEng.",{"$f":"J4","v":0}]
["CL58l","✔","Confirm access path clearances for large items of equipment.",{"$f":"J4","v":0}]
["CL58m","✔","Determine lead times for order of custom-fabricated or imported equipment. Advise client and contractor (if appointed).",{"$f":"J4","v":0}]
["CL58n","✔","Obtain client's approval and sign-off on equipment plan and schedule.",{"$f":"J4","v":0}]
["CL58o","✔","Final check architectural and engineering drawings and specifications for accommodation of equipment requirements.",{"$f":"J4","v":0}]
["CL58p","✔","Check provisions for central vacuum cleaning system (where required).",{"$f":"J4","v":0}]
["CL58q","✔","Confirm that all necessary documents related to the approval of building maintenance units have been submitted to the appropriate authority.",{"$f":"J4","v":0}]
[]
["© 1986-2017 Building Technology Pty Ltd. All rights reserved."]

{"sheet":"CL61","index":44,"n_rows":31,"n_cols":19,"rows_kept":31,"cut":false,"hidden":false,"merged":[[0,4,0,6],[1,4,1,6],[2,4,2,6],[3,4,3,6]]}
["Type:",null,{"$f":"Planner!B1","v":"CHECKITx All"},null,{"$f":"Planner!D1","v":"Test"}]
["Stage:",null,"6. Procurement","PLNR",{"$f":"Planner!D2","v":"Street Address"},null,null,null,"CHECKITx"]
["CL ID:",null,"CL61 Tendering/Bidding",null,{"$f":"Planner!D3","v":"City | State | Postcode"}]
["Project:",null,{"$f":"Planner!B2","v":"Project Number & Name "},"Loc.",{"$f":"Planner!B3","v":"Location of Project "},null,null,null,null,null,"Staff assignment for this checklist - See Guides Sheet Step 4 for instructions"]
[]
["Item No ","Use","Task description","Who?","Checking record - action required if any. When action is completed, Initial & date approval\n","Chk By","Date",null,"Checking record:"]
["CL61a","✔","Confirm method of tendering (public advertisement, private invitation or by registration of interest). ",{"$f":"J4","v":0},null,null,null,null,null,1,2,3,4,5,6,7,8,9,10]
["CL61b","✔","Determine if AS 4120 Code of Tendering applies to project. If so, obtain and review. Ref AS 4120 Section 5. If a State Government code applies, review tendering requirements.",{"$f":"J4","v":0},null,null,null,null,"Initials:"]
["CL61c","✔","Ensure that tendering procedures comply with relevant clauses of the applicable code.",{"$f":"J4","v":0},null,null,null,null,"Date:"]
["CL61d","✔","Confirm all alternatives and monetary allowances.",{"$f":"J4","v":0},null,null,null,null,"Checklist signoff: I have verified that all tasks for this checklist are complete"]
["CL61e","✔","Verify that preliminaries/general requirements of specifications correlate with contract conditions.",{"$f":"J4","v":0},null,null,null,null,"By:",null,null,null,null,"Date:"]
["CL61f","✔","Confirm authority to tender on behalf of client, unless already provided under architect-client agreement. [C]",{"$f":"J4","v":0}]
["CL61g","✔","Obtain client's nominations of tenderers (if any).  Review all tender procedures with client. [C]",{"$f":"J4","v":0},null,null,null,null,"✔","1. All red-checked Tasks are required for this project by the firm.\n"]
["CL61h","✔","Determine basis of pricing (rise and fall, firm price, either, or both).",{"$f":"J4","v":0},null,null,null,null,"ISO","2. If ISO 9001 is a project requirement, all Tasks with a blue ISO reference must be used."]
["CL61i","✔","Determine limitations to conforming tender and procedures for non-conforming tenders.",{"$f":"J4","v":0},null,null,null,null,"✔","3. Select optional Tasks (black check mark) by deleting checkmarks for Tasks not needed."]
["CL61j","✔","Final check tender documents against Guide letters 24 to 28.",{"$f":"J4","v":0},null,null,null,null,"[C]","4. If using the 2009 AIA Client and Architects Agreement, this is a CORE activity."]
["CL61k","✔","Prepare tenderer list; confirm with client (invited tenders only).",{"$f":"J4","v":0}]
["CL61l","✔","Prepare tender advertisements for registration of interest (publicly tendered contracts only).",{"$f":"J4","v":0}]
["CL61m","✔","Complete proposed form of contract insofar as possible and include in tender documents. Complete all items that relate to money or time. Note that changes can still be made later.",{"$f":"J4","v":0}]
["CL61n","✔","Review proposed conditions of contract, amendments to the standard form of contract and special conditions. Seek legal advice before making amendments.  ",{"$f":"J4","v":0}]
["CL61o","✔","Ensure that details of exclusions, conditions and excesses of client's insurance are included in tender documents.",{"$f":"J4","v":0}]
["CL61p","✔","Ensure that the details of any provisional contracts the contractor is to take over are included in tender documents.",{"$f":"J4","v":0}]
["CL61q","✔","If client has paid any fees before tenders are called, ensure details are included in tender documents. ",{"$f":"J4","v":0}]
["CL61r","✔","Check that client has obtained permission for work on adjoining properties if any, and that contract documents describe conditions of work.",{"$f":"J4","v":0}]
["CL61s","✔","If existing contracts are to be novated into the general contract, ensure that tender documents include copies of the deed of novation.",{"$f":"J4","v":0}]
["CL61t","✔","Print plans and specifications; issue tender documents. Arrange documents in order of precedence if required by construction contract.",{"$f":"J4","v":0}]
["CL61u","✔","Obtain pre-tender information from potential tenderers; forward to client. ",{"$f":"J4","v":0}]
["CL61v","✔","Assess qualifications of tenderers registering interest, as appropriate (where necessary).",{"$f":"J5","v":0}]
["CL61w","✔","Review all tender inquiries; issue clarifications and addenda as necessary.",{"$f":"J6","v":0}]
[]
["© 1986-2017 Building Technology Pty Ltd. All rights reserved."]

{"sheet":"CL62","index":45,"n_rows":33,"n_cols":19,"rows_kept":33,"cut":false,"hidden":false,"merged":[[0,4,0,6],[1,4,1,6],[2,4,2,6],[3,4,3,6]]}
["Type:",null,{"$f":"Planner!B1","v":"CHECKITx All"},null,{"$f":"Planner!D1","v":"Test"}]
["Stage:",null,"6. Procurement","PLNR",{"$f":"Planner!D2","v":"Street Address"},null,null,null,"CHECKITx"]
["CL ID:",null,"CL62 Evaluation & Negotiation of Tender/Bid",null,{"$f":"Planner!D3","v":"City | State | Postcode"}]
["Project:",null,{"$f":"Planner!B2","v":"Project Number & Name "},"Loc.",{"$f":"Planner!B3","v":"Location of Project "},null,null,null,null,null,"Staff assignment for this checklist - See Guides Sheet Step 4 for instructions"]
[]
["Item No ","Use","Task description","Who?","Checking record - action required if any. When action is completed, Initial & date approval\n","Chk By","Date",null,"Checking record:"]
["CL62a","✔","Open tenders with client or client's representatives.",{"$f":"J4","v":0},null,null,null,null,null,1,2,3,4,5,6,7,8,9,10]
["CL62b","✔","Check tenders for completeness and conformity with tender documents; request submission of all outstanding items; follow up.",{"$f":"J4","v":0},null,null,null,null,"Initials:"]
["CL62c","✔","Review and ensure clarifications issued during tender period have been incorporated into the contract documents. ",{"$f":"J4","v":0},null,null,null,null,"Date:"]
["CL62d","✔","Confirm with tenderer(s) that alternatives requested and/or alternatives proposed by tenderer(s) include all associated costs.",{"$f":"J4","v":0},null,null,null,null,"Checklist signoff: I have verified that all tasks for this checklist are complete"]
["CL62e","✔","If tender documents require submission of draft quality assurance manual, check submission for compliance with specification.",{"$f":"J4","v":0},null,null,null,null,"By:",null,null,null,null,"Date:"]
["CL62f","✔","Prepare preliminary tender report. Identify preferred tenderer(s).  Advise client of preferred tenderer's offer(s) and recommend further investigation. ",{"$f":"J4","v":0}]
["CL62g","✔","Investigate preferred tenderer's(s') references, qualifications, etc. Prepare summary report for client. ",{"$f":"J4","v":0},null,null,null,null,"✔","1. All red-checked Tasks are required for this project by the firm.\n"]
["CL62h","✔","If preferred tender exceeds project delivery budget, review options for cost savings with tenderer(s) and client. ",{"$f":"J4","v":0},null,null,null,null,"ISO","2. If ISO 9001 is a project requirement, all Tasks with a blue ISO reference must be used."]
["CL62i","✔","Confirm that the tender sum(s) include(s) site allowances if applicable. ",{"$f":"J4","v":0},null,null,null,null,"✔","3. Select optional Tasks (black check mark) by deleting checkmarks for Tasks not needed."]
["CL62j","✔","Review preferred tenderer's(s') outline work program with client.",{"$f":"J4","v":0},null,null,null,null,"[C]","4. If using the 2009 AIA Client and Architects Agreement, this is a CORE activity."]
["CL62k","✔","Prepare list of questions for interviews with preferred tenderer(s). Include tender exclusions and conditions. Schedule interview(s).",{"$f":"J4","v":0}]
["CL62l","✔","Check nominated subcontract tenders/ subcontracts for changes to specified 'contractor’s work'. Adjust 'contractor’s work' accordingly. ",{"$f":"J4","v":0}]
["CL62m","✔","Resolve all alternatives. Confirm with client.",{"$f":"J4","v":0}]
["CL62n","✔","If possible, resolve tender nonconformities, conditions and exclusions in the interview(s). If necessary arrange for further submissions, with time limit.",{"$f":"J4","v":0}]
["CL62o","✔","Confirm resolution of nonconformities in writing to tenderer(s). Advise client.",{"$f":"J4","v":0}]
["CL62p","✔","Advise, in writing, QS and other consultants of changes resulting from tender negotiations.",{"$f":"J4","v":0}]
["CL62q","✔","Prepare final tender report including recommendation to client. ",{"$f":"J4","v":0}]
["CL62r","✔","Obtain client's written approval to award contract to selected tenderer (proposed contractor). ",{"$f":"J4","v":0}]
["CL62s","✔","Advise proposed contractor of client’s approval and schedule signing of contract. See also CL63 & CL64 for additional requirements.",{"$f":"J4","v":0}]
["CL62t","✔","Request additional information from tenderer if needed. ",{"$f":"J4","v":0}]
["CL62u","✔","If it is not possible to sign the contract prior to commencement of the works, discuss the issue of a Letter of Intent with client. ",{"$f":"J4","v":0}]
["CL62v","✔","If agreed with client, prepare draft Letter of Intent,  adding relevant items required under the contract.",{"$f":"J5","v":0}]
["CL62w","✔","Obtain client's written approval of Letter of Intent prior to sending or alternatively prepare draft Letter of Intent for client's signature.",{"$f":"J6","v":0}]
["CL62x","✔","Advise QS on project costs at conclusion of tender stage, and of any exclusions to contract from that specified.",{"$f":"J4","v":0}]
["CL62y","✔","Notify winning tenderer and other tenderers; return tender security to unsuccessful tenderers.",{"$f":"J4","v":0}]
[]
["© 1986-2017 Building Technology Pty Ltd. All rights reserved."]

{"sheet":"CL63","index":46,"n_rows":32,"n_cols":19,"rows_kept":32,"cut":false,"hidden":false,"merged":[[0,4,0,6],[1,4,1,6],[2,4,2,6],[3,4,3,6]]}
["Type:",null,{"$f":"Planner!B1","v":"CHECKITx All"},null,{"$f":"Planner!D1","v":"Test"}]
["Stage:",null,"6. Procurement","PLNR",{"$f":"Planner!D2","v":"Street Address"},null,null,null,"CHECKITx"]
["CL ID:",null,"CL63 Award Contract – General",null,{"$f":"Planner!D3","v":"City | State | Postcode"}]
["Project:",null,{"$f":"Planner!B2","v":"Project Number & Name "},"Loc.",{"$f":"Planner!B3","v":"Location of Project "},null,null,null,null,null,"Staff assignment for this checklist - See Guides Sheet Step 4 for instructions"]
[]
["Item No ","Use","Task description","Who?","Checking record - action required if any. When action is completed, Initial & date approval\n","Chk By","Date",null,"Checking record:"]
["CL63a","✔","Review relevant Acumen guide documents if not familiar with them.",{"$f":"J4","v":0},null,null,null,null,null,1,2,3,4,5,6,7,8,9,10]
["CL63b","✔","Prepare contract drawings and specifications incorporating amendments required, if any, as a result of tender negotiations. ISO 9001: cl. 8.5.6.",{"$f":"J4","v":0},null,null,null,null,"Initials:"]
["CL63c","✔","Ensure that other consultants have prepared contract drawings and specifications incorporating amendments required as a result of tender negotiations.  ISO 9001: cl. 8.4. ",{"$f":"J4","v":0},null,null,null,null,"Date:"]
["CL63d","✔","Cross-check all contract documents to ensure that amendments, if any, are coordinated. Ensure that special conditions do not conflict with standard conditions.  ISO 9001: cl. 8.5.6.",{"$f":"J4","v":0},null,null,null,null,"Checklist signoff: I have verified that all tasks for this checklist are complete"]
["CL63e","✔","Ensure that each page/sheet of contract documents, including drawings and specifications, is initialled by both parties to the contract.",{"$f":"J4","v":0},null,null,null,null,"By:",null,null,null,null,"Date:"]
["CL63f","✔","Ensure that strikings out, special conditions, alterations and additions and all items of the Appendix of the printed contracts are initialled by both parties to the contract.",{"$f":"J4","v":0}]
["CL63g","✔","Ensure that strikings out, special conditions, alterations and additions to drawings and specifications are initialled by both parties to the contract.",{"$f":"J4","v":0},null,null,null,null,"✔","1. All red-checked Tasks are required for this project by the firm.\n"]
["CL63h","✔","Advise client to inspect contractor’s insurance policies; review coverage with client (or broker) to ensure that client’s interests are protected. ",{"$f":"J4","v":0},null,null,null,null,"ISO","2. If ISO 9001 is a project requirement, all Tasks with a blue ISO reference must be used."]
["CL63i","✔","DO NOT ATTEMPT TO GIVE INSURANCE ADVICE! Refer insurance questions to client’s insurance broker.",{"$f":"J4","v":0},null,null,null,null,"✔","3. Select optional Tasks (black check mark) by deleting checkmarks for Tasks not needed."]
["CL63j","✔","Avoid inclusion of qualifying letters in the contract. ",{"$f":"J4","v":0},null,null,null,null,"[C]","4. If using the 2009 AIA Client and Architects Agreement, this is a CORE activity."]
["CL63k","✔","If there is a bill of quantities, check that quantity surveyor has prepared amendments to BoQ reflecting contract amendments. ",{"$f":"J4","v":0}]
["CL63l","✔","Prepare 2 original sets of contract documents for execution, or 3 if client wishes to hold an original set. Follow guide notes interleaved with appropriate AIA sample contracts.",{"$f":"J4","v":0}]
["CL63m","✔","Securely bind drawings consecutively and write or stamp on both copies of the drawings: \"These are the drawings numbered ... to ... referred to in the contract dated ...\".",{"$f":"J4","v":0}]
["CL63n","✔","If retaining an original set of signed contract documents, mark \"RETAIN - Original signed contract documents\", date, note project name, and store in a secure, fireproof location.",{"$f":"J4","v":0}]
["CL63o","✔","Establish signatory to sign contract for each party and confirm their authority in law to do so. ",{"$f":"J4","v":0}]
["CL63p","✔","Arrange a witness to signatures of both parties on each set of the contract documents.",{"$f":"J4","v":0}]
["CL63q","✔","Ensure that each page/sheet of contract documents, including drawings and specifications, is initialled by both parties to the contract.",{"$f":"J4","v":0}]
["CL63r","✔","Ensure that strikings out, special conditions, alterations and additions and all items of the Appendix of the printed contracts are initialled by both parties to the contract.",{"$f":"J4","v":0}]
["CL63s","✔","Ensure that strikings out, special conditions, alterations and additions to drawings and specifications are initialled by both parties to the contract.",{"$f":"J4","v":0}]
["CL63t","✔","Check current requirements for stamp duty in relevant jurisdiction. NB: some clients may be exempt from stamp duty. Stamp documents appropriately. ",{"$f":"J4","v":0}]
["CL63u","✔","Supply an original set of signed contract documents to contractor. Obtain receipt.",{"$f":"J5","v":0}]
["CL63v","✔","Supply an original set of signed contract documents to client if requested by client. (Refer CL63b) If only 2 original sets were prepared, retain a marked copy of the original.",{"$f":"J6","v":0}]
["CL63w","✔","If retaining an original set of signed contract documents, mark \"RETAIN - Original signed contract documents\", date, note project name, and store in a secure, fireproof location.",{"$f":"J8","v":0}]
["CL63x","✔","Make a working copy of original signed contract documents for administration.",{"$f":"J4","v":0}]
[]
["© 1986-2017 Building Technology Pty Ltd. All rights reserved."]

{"sheet":"CL64","index":47,"n_rows":18,"n_cols":19,"rows_kept":18,"cut":false,"hidden":false,"merged":[[0,4,0,6],[1,4,1,6],[2,4,2,6],[3,4,3,6]]}
["Type:",null,{"$f":"Planner!B1","v":"CHECKITx All"},null,{"$f":"Planner!D1","v":"Test"}]
["Stage:",null,"6 Procurement","PLNR",{"$f":"Planner!D2","v":"Street Address"},null,null,null,"CHECKITx"]
["CL ID:",null,"CL64 Award Contract: AS 2124 ",null,{"$f":"Planner!D3","v":"City | State | Postcode"}]
["Project:",null,{"$f":"Planner!B2","v":"Project Number & Name "},"Loc.",{"$f":"Planner!B3","v":"Location of Project "},null,null,null,null,null,"Staff assignment for this checklist - See Guides Sheet Step 4 for instructions"]
[]
["Item No ","Use","Task description","Who?","Checking record - action required if any. When action is completed, Initial & date approval\n","Chk By","Date",null,"Checking record:"]
["CL64a","✔","This checklist is for projects using the AS 2124 Contract for Construction. Clause numbers refer to AS 2124 clauses. Use in conjunction with CL61, CL62, CL63, CL76 & CL86.",{"$f":"J4","v":0},null,null,null,null,null,1,2,3,4,5,6,7,8,9,10]
["CL64b","✔","If appointed as Superintendent, ensure appointment is in writing from Principal. (Section 2)",{"$f":"J4","v":0},null,null,null,null,"Initials:"]
["CL64c","✔","Review terms of appointment as Superintendent to verify that terms do not extend scope or liability beyond that descibed in AS 2124; if they do, seek appropriate compensation.",{"$f":"J4","v":0},null,null,null,null,"Date:"]
["CL64d","✔","Complete Annexures to Contract, Parts A and B.",{"$f":"J4","v":0},null,null,null,null,"Checklist signoff: I have verified that all tasks for this checklist are complete"]
["CL64e","✔","If there is a BoQ, direct lodgement, extend time if required, and receive and review in accordance with cl. 4.2.",{"$f":"J4","v":0},null,null,null,null,"By:",null,null,null,null,"Date:"]
["CL64f","✔","Where necessary, extend the period of time for the Principal and/or the Contractor to execute the agreement. (cl. 6.2)",{"$f":"J4","v":0}]
["CL64g","✔","If circumstances warrant it, reduce the period for commencement of work on site (cl. 35.1)",{"$f":"J3","v":0},null,null,null,null,"✔","1. All red-checked Tasks are required for this project by the firm."]
["CL64h","✔","Direct contractor to provide construction program in accordance with cl. 33.2.",{"$f":"J4","v":0},null,null,null,null,"ISO","2. If ISO 9001 is a project requirement, all Tasks with a blue ISO reference must be used."]
["CL64i","✔","If project is in Victoria, review the VCCI Best Practice Guide for Tendering and Contract Management. If in other states, review corresponding guides if they exist.",{"$f":"J5","v":0},null,null,null,null,"✔","3. Select optional Tasks (black check mark) by deleting checkmarks for Tasks not needed."]
[null,null,null,null,null,null,null,null,"[C]","4. If using the 2009 AIA Client and Architects Agreement, this is a CORE activity."]
[]
["© 1986-2017 Building Technology Pty Ltd. All rights reserved."]

{"sheet":"CL65","index":48,"n_rows":18,"n_cols":19,"rows_kept":18,"cut":false,"hidden":false,"merged":[[0,4,0,6],[1,4,1,6],[2,4,2,6],[3,4,3,6]]}
["Type:",null,{"$f":"Planner!B1","v":"CHECKITx All"},null,{"$f":"Planner!D1","v":"Test"}]
["Stage:",null,"6 Procurement","PLNR",{"$f":"Planner!D2","v":"Street Address"},null,null,null,"CHECKITx"]
["CL ID:",null,"CL65 Award Contract: AS 4000",null,{"$f":"Planner!D3","v":"City | State | Postcode"}]
["Project:",null,{"$f":"Planner!B2","v":"Project Number & Name "},"Loc.",{"$f":"Planner!B3","v":"Location of Project "},null,null,null,null,null,"Staff assignment for this checklist - See Guides Sheet Step 4 for instructions"]
[]
["Item No ","Use","Task description","Who?","Checking record - action required if any. When action is completed, Initial & date approval\n","Chk By","Date",null,"Checking record:"]
["CL65a","✔","This checklist is for projects using the AS 4000 Contract for Construction. Clause numbers refer to AS 4000 clauses. Use in conjunction with CL61, CL62, CL63, CL77 & CL87.",{"$f":"J4","v":0},null,null,null,null,null,1,2,3,4,5,6,7,8,9,10]
["CL65b","✔","If appointed as Superintendent, ensure appointment is in writing from Principal. (Section 2)",{"$f":"J4","v":0},null,null,null,null,"Initials:"]
["CL65c","✔","Review terms of appointment as Superintendent to verify that terms do not extend scope or liability beyond that descibed in AS 4000; if they do, seek appropriate compensation.",{"$f":"J4","v":0},null,null,null,null,"Date:"]
["CL65d","✔","Complete Annexures to Contract, Parts A, B and C.",{"$f":"J4","v":0},null,null,null,null,"Checklist signoff: I have verified that all tasks for this checklist are complete"]
["CL65e","✔","Where necessary, extend the period of time for the Principal and/or the Contractor to execute the agreement. (Section. 6)",{"$f":"J4","v":0},null,null,null,null,"By:",null,null,null,null,"Date:"]
["CL65f","✔","Direct contractor to provide construction program in accordance with Section. 32.",{"$f":"J4","v":0}]
["CL65g","✔","If project is in Victoria, review the VCCI Best Practice Guide for Tendering and Contract Management. If in other states, review corresponding guides if they exist.",{"$f":"J5","v":0},null,null,null,null,"✔","1. All red-checked Tasks are required for this project by the firm."]
[null,null,null,null,null,null,null,null,"ISO","2. If ISO 9001 is a project requirement, all Tasks with a blue ISO reference must be used."]
[null,null,null,null,null,null,null,null,"✔","3. Select optional Tasks (black check mark) by deleting checkmarks for Tasks not needed."]
[null,null,null,null,null,null,null,null,"[C]","4. If using the 2009 AIA Client and Architects Agreement, this is a CORE activity."]
[]
["© 1986-2017 Building Technology Pty Ltd. All rights reserved."]

{"sheet":"CL66","index":49,"n_rows":26,"n_cols":19,"rows_kept":26,"cut":false,"hidden":false,"merged":[[0,4,0,6],[1,4,1,6],[2,4,2,6],[3,4,3,6]]}
["Type:",null,{"$f":"Planner!B1","v":"CHECKITx All"},null,{"$f":"Planner!D1","v":"Test"}]
["Stage:",null,"6 Procurement","PLNR",{"$f":"Planner!D2","v":"Street Address"},null,null,null,"CHECKITx"]
["CL ID:",null,"CL66 Award Contract: ABIC",null,{"$f":"Planner!D3","v":"City | State | Postcode"}]
["Project:",null,{"$f":"Planner!B2","v":"Project Number & Name "},"Loc.",{"$f":"Planner!B3","v":"Location of Project "},null,null,null,null,null,"Staff assignment for this checklist - See Guides Sheet Step 4 for instructions"]
[]
["Item No ","Use","Task description","Who?","Checking record - action required if any. When action is completed, Initial & date approval\n","Chk By","Date",null,"Checking record:"]
["CL66a","✔","This checklist is for projects using the ABIC Contract for Construction. Clause numbers refer to ABIC clauses. Use in conjunction with CL61, CL62,  CL63, CL78 & CL88.",{"$f":"J4","v":0},null,null,null,null,null,1,2,3,4,5,6,7,8,9,10]
["CL66b","✔","If not already familiar with it, review the User Guide to the ABIC CP-2014 C contract. Note that this contract is cost-plus, and is not authorised for use on domestic projects.",{"$f":"J4","v":0},null,null,null,null,"Initials:"]
["CL66c","✔","Ensure that appointment to administer the contract is in writing and consistent with cl. A6.",{"$f":"J4","v":0},null,null,null,null,"Date:"]
["CL66d","✔","Note particularly the time limits applicable to various contract administration functions, set out in the table on pp 4-9 of the User Guide.",{"$f":"J4","v":0},null,null,null,null,"Checklist signoff: I have verified that all tasks for this checklist are complete"]
["CL66e","✔","Avoid alterations to the contract. Instead, treat changes as special conditions in Schedule 2a; and ensure that both parties sign Item 3 in Schedule 1.",{"$f":"J4","v":0},null,null,null,null,"By:",null,null,null,null,"Date:"]
["CL66f","✔","Do not reference qualifying letters in the contract without obtaining legal approval to do so.",{"$f":"J5","v":0}]
["CL66g","✔","Ensure that any changes to the contract, drawings and specifications, are initialled by both parties.",{"$f":"J6","v":0},null,null,null,null,"✔","1. All red-checked Tasks are required for this project by the firm."]
["CL66h","✔","Note that the preferred order of precedence of documents is specifications before drawings. If you don't change the precedence, be 100% sure you've checked the specs against drawing notes.",0,null,null,null,null,"ISO","2. If ISO 9001 is a project requirement, all Tasks with a blue ISO reference must be used."]
["CL66i","✔","Ensure that site information (Schedule 4) is based on and references a current land survey.",{"$f":"J8","v":0},null,null,null,null,"✔","3. Select optional Tasks (black check mark) by deleting checkmarks for Tasks not needed."]
["CL66j","✔","Note the requirements for form of guarantee in the User Guide, Schedule 5.",{"$f":"J4","v":0},null,null,null,null,"[C]","4. If using the 2009 AIA Client and Architects Agreement, this is a CORE activity."]
["CL66k","✔","If provisional sums are to be included in the contract (Schedule 6) complete the schedule in accordance with the User Guide Schedule 6.",{"$f":"J10","v":0}]
["CL66l","✔","If prime cost sums are to be included in the contract (Schedule 7) complete the schedule in accordance with the User Guide Schedule 7.",{"$f":"J11","v":0}]
["CL66m","✔","Review the contractor's contract price estimate for any errors or ambiguities (cl. B4). If issues are found, resolve them with the contractor prior to acceptance. Note related clauses in cl. B4.4.",{"$f":"J12","v":0}]
["CL66n","✔","Complete the contract, inserting the appropriate information in all locations framed by brackets      eg. [...].",{"$f":"J4","v":0}]
["CL66o","✔","Note: owner is not obligated to give contractor possession of the site until  contract is executed, insurances are in place, and other required documents have been supplied. (cl. F1, F2)",{"$f":"J5","v":0}]
["CL66p","✔","Prepare 2 original copies of the contract, including Schedules 1 through 8, for owner and contractor. Keep a copy for admin. purposes.",{"$f":"J6","v":0}]
["CL66q","✔","Arrange for execution of the contract and ensure that all required pages, schedules, and documents are signed or initialed as specified.",{"$f":"J4","v":0}]
["CL66r","✔","If project is in Victoria, review the VCCI Best Practice Guide for Tendering and Contract Management. If in other states, review corresponding guides if they exist.",{"$f":"J8","v":0}]
[]
["© 1986-2017 Building Technology Pty Ltd. All rights reserved."]

{"sheet":"CL67","index":50,"n_rows":21,"n_cols":19,"rows_kept":21,"cut":false,"hidden":false,"merged":[[0,4,0,6],[1,4,1,6],[2,4,2,6],[3,4,3,6]]}
["Type:",null,{"$f":"Planner!B1","v":"CHECKITx All"},null,{"$f":"Planner!D1","v":"Test"}]
["Stage:",null,"6 Procurement","PLNR",{"$f":"Planner!D2","v":"Street Address"},null,null,null,"CHECKITx"]
["CL ID:",null,"CL67 Tendering: NZS 3910",null,{"$f":"Planner!D3","v":"City | State | Postcode"}]
["Project:",null,{"$f":"Planner!B2","v":"Project Number & Name "},"Loc.",{"$f":"Planner!B3","v":"Location of Project "},null,null,null,null,null,"Staff assignment for this checklist - See Guides Sheet Step 4 for instructions"]
[]
["Item No ","Use","Task description","Who?","Checking record - action required if any. When action is completed, Initial & date approval\n","Chk By","Date",null,"Checking record:"]
["CL67a","✔","This checklist is for use with New Zealand Standard NZS 3910. If not familiar with this form of contract, review it carefully. All clause references in this checklist refer to NZS 3910.",{"$f":"J4","v":0},null,null,null,null,null,1,2,3,4,5,6,7,8,9,10]
["CL67b","✔","Before preparing Tender Documents, review NZS 3910 Conditions of Tendering (pp 132-134). Review with client. Review relevant clauses in CL61.",{"$f":"J4","v":0},null,null,null,null,"Initials:"]
["CL67c","✔","If client has a prescribed tender submission form, check against cl 105 and note any variance in the Special Conditions Schedule.",{"$f":"J4","v":0},null,null,null,null,"Date:"]
["CL67d","✔","Determine (in consultation with client) the type of contract in accordance with cl. 2.1 – 2.4; identify in Special Conditions of Tendering.",{"$f":"J4","v":0},null,null,null,null,"Checklist signoff: I have verified that all tasks for this checklist are complete"]
["CL67e","✔","If there are nominated subcontractors (cl. 4) or separate contractors (cl. 5.5), identify them in the Special Conditions.",{"$f":"J4","v":0},null,null,null,null,"By:",null,null,null,null,"Date:"]
["CL67f","✔","Except as otherwise required pursuant to CL65c, prepare Schedule to Conditions of Tendering (pp 135-136) Ensure that cl 105.3(c) lists all required supplementary information. ",{"$f":"J5","v":0}]
["CL67g","✔","Issue Tender documents. If tenderers raise questions about ambiguities in tender documents, respond as per cl. 104.",0,null,null,null,null,"✔","1. All red-checked Tasks are required for this project by the firm."]
["CL67h","✔","Set up and maintain a Tender log as per cl. 105. Include provision for recording any exceptions, exclusions, unwarranted assumptions, missing documents or nonconforming tenders.",{"$f":"J4","v":0},null,null,null,null,"ISO","2. If ISO 9001 is a project requirement, all Tasks with a blue ISO reference must be used."]
["CL67i","✔","Log in tenders, noting any received after close of tenders.",0,null,null,null,null,"✔","3. Select optional Tasks (black check mark) by deleting checkmarks for Tasks not needed."]
["CL67j","✔","Check tenders for errors, exclusions, conditions, exceptions, etc. and prepare a list of any items to be resolved prior to award. Advise tenderer(s) via the Principal, as per cl. 105.6.",0,null,null,null,null,"[C]","4. If using the 2009 AIA Client and Architects Agreement, this is a CORE activity."]
["CL67k","✔","Return tender deposits (if any) in accordance with cl. 102.2.",0]
["CL67l","✔","Notify tenderers, via the Principal, of acceptance, or not, in accordance with cl. 108.",0]
["CL67m","✔","Proceed to Award of Contract using CL68 and relevant clauses of CL62 and CL63.",0]
[]
["© 1986-2017 Building Technology Pty Ltd. All rights reserved."]

{"sheet":"CL68","index":51,"n_rows":19,"n_cols":19,"rows_kept":19,"cut":false,"hidden":false,"merged":[[0,4,0,6],[1,4,1,6],[2,4,2,6],[3,4,3,6]]}
["Type:",null,{"$f":"Planner!B1","v":"CHECKITx All"},null,{"$f":"Planner!D1","v":"Test"}]
["Stage:",null,"6 Procurement","PLNR",{"$f":"Planner!D2","v":"Street Address"},null,null,null,"CHECKITx"]
["CL ID:",null,"CL68 Award Contract: NZS 3910",null,{"$f":"Planner!D3","v":"City | State | Postcode"}]
["Project:",null,{"$f":"Planner!B2","v":"Project Number & Name "},"Loc.",{"$f":"Planner!B3","v":"Location of Project "},null,null,null,null,null,"Staff assignment for this checklist - See Guides Sheet Step 4 for instructions"]
[]
["Item No ","Use","Task description","Who?","Checking record - action required if any. When action is completed, Initial & date approval\n","Chk By","Date",null,"Checking record:"]
["CL68a","✔","This checklist is for use with New Zealand Standard NZS 3910. All clause references in this checklist refer to NZS 3910.",{"$f":"J4","v":0},null,null,null,null,null,1,2,3,4,5,6,7,8,9,10]
["CL68b","✔","If not familiar with them, review the NZS 3910 Guidelines (pp 137-166).",{"$f":"J4","v":0},null,null,null,null,"Initials:"]
["CL68c","✔","Note the requirements of cl. 2.6 with regard to evidence of contract, and the time limits therein.",{"$f":"J4","v":0},null,null,null,null,"Date:"]
["CL68d","✔","Review carefully cl. 15 Service of Notices. Determine if Notices and other communications are to be delivered in writing (cl. 15.1.1). Complete cl. 15 of General Conditions.",{"$f":"J4","v":0},null,null,null,null,"Checklist signoff: I have verified that all tasks for this checklist are complete"]
["CL68e","✔","Review Appendix A - Cost Fluctuation Adjustment with client. If alternative methods are to be used, describe in Special Conditions  (Schedule 2).",{"$f":"J4","v":0},null,null,null,null,"By:",null,null,null,null,"Date:"]
["CL68f","✔","Ensure that Schedules to be prepared and submitted by the contractor (Schedules 3, 5 if applicable, 6, 7, 8, 9, 10, 11 and 13 are complete and in conformity with Conditions of Tender.",{"$f":"J5","v":0}]
["CL68g","✔","Ensure that Schedules to be prepared by the Principal (Schedules 4 and 12 are completed and available for inclusion in the Contract.",0,null,null,null,null,"✔","1. All red-checked Tasks are required for this project by the firm."]
["CL68h","✔","Prepare Schedule 14 – Agreement for off-site materials for inclusion in the Contract.",{"$f":"J4","v":0},null,null,null,null,"ISO","2. If ISO 9001 is a project requirement, all Tasks with a blue ISO reference must be used."]
["CL68i","✔","Where required by the Special Conditions, verify that the Principal has prepared the Principal’s Bond for delivery with execution of the contract.",0,null,null,null,null,"✔","3. Select optional Tasks (black check mark) by deleting checkmarks for Tasks not needed."]
["CL68j","✔","After all negotiations are complete, including those that affect any of the Schedules, prepare Contract for signature.",0,null,null,null,null,"[C]","4. If using the 2009 AIA Client and Architects Agreement, this is a CORE activity."]
["CL68k","✔","Final check all contract documents; issue to Principal and contractor for execution.",0]
[]
["© 1986-2017 Building Technology Pty Ltd. All rights reserved."]

{"sheet":"CL71","index":52,"n_rows":30,"n_cols":19,"rows_kept":30,"cut":false,"hidden":false,"merged":[[0,4,0,6],[1,4,1,6],[2,4,2,6],[3,4,3,6]]}
["Type:",null,{"$f":"Planner!B1","v":"CHECKITx All"},null,{"$f":"Planner!D1","v":"Test"}]
["Stage:",null,"7. Delivery","PLNR",{"$f":"Planner!D2","v":"Street Address"},null,null,null,"CHECKITx"]
["CL ID:",null,"CL71 Admin Set-up",null,{"$f":"Planner!D3","v":"City | State | Postcode"}]
["Project:",null,{"$f":"Planner!B2","v":"Project Number & Name "},"Loc.",{"$f":"Planner!B3","v":"Location of Project "},null,null,null,null,null,"Staff assignment for this checklist - See Guides Sheet Step 4 for instructions"]
[]
["Item No ","Use","Task description","Who?","Checking record - action required if any. When action is completed, Initial & date approval\n","Chk By","Date",null,"Checking record:"]
["CL71a","✔","Be familiar with all contract documents.  Highlight required submissions, testing and prototypes.  ",{"$f":"J4","v":0},null,null,null,null,null,1,2,3,4,5,6,7,8,9,10]
["CL71b","✔","Read architect/client agreement.  Note alterations to standard text affecting contract administration responsibilities.",{"$f":"J4","v":0},null,null,null,null,"Initials:"]
["CL71c","✔","Review adequacy of contract administration filing system and extend as required.",{"$f":"J4","v":0},null,null,null,null,"Date:"]
["CL71d","✔","Confirm contract administration responsibilties with consultants.",{"$f":"J4","v":0},null,null,null,null,"Checklist signoff: I have verified that all tasks for this checklist are complete"]
["CL71e","✔","Advise contractor and client of approved signatories for instructions, variations, certificates, etc.  ",{"$f":"J4","v":0},null,null,null,null,"By:",null,null,null,null,"Date:"]
["CL71f","✔","Prepare and distribute list of authorised person-nel and respresentatives of client, contractor and consultants.  Ensure list contains contact tele-phone numbers, FAX numbers and addresses.",{"$f":"J4","v":0}]
["CL71g","✔","Confirm that contractor has provided the required amount of security for the due performance of its obligations.",{"$f":"J4","v":0},null,null,null,null,"✔","1. All red-checked Tasks are required for this project by the firm.\n"]
["CL71h","✔","Check certificates of insurance against contract requirements.  (Refer CL73)",{"$f":"J4","v":0},null,null,null,null,"ISO","2. If ISO 9001 is a project requirement, all Tasks with a blue ISO reference must be used."]
["CL71i","✔","Confirm responsibility for obtaining outstanding permits and approvals and assess impact on builder's program.  Keep client informed.",{"$f":"J4","v":0},null,null,null,null,"✔","3. Select optional Tasks (black check mark) by deleting checkmarks for Tasks not needed."]
["CL71j","✔","Resolve conflicts (if any) between authority approvals/permits/requirements and contract documents.  Issue instructions if necessary.",{"$f":"J4","v":0},null,null,null,null,"[C]","4. If using the 2009 AIA Client and Architects Agreement, this is a CORE activity."]
["CL71k","✔","Confirm that required applications for permanent gas, electricity, water, telephone and other services have been made.  Advise client of further actions required, if any.",{"$f":"J4","v":0}]
["CL71l","✔","Verify provision for treatment where door hardware is to be removed/replaced.",{"$f":"J4","v":0}]
["CL71m","✔","Go through CL71-CL85 lists and identify tasks which are not the responsibility of the architect under the contract.  Establish with client who is responsible for these tasks.  Confirm in writing.",{"$f":"J4","v":0}]
["CL71n","✔","Obtain, review, and seek client's approval, if appropriate, of contractor’s program, except where already approved under CL62j.",{"$f":"J4","v":0}]
["CL71o","✔","Establish procedure for receipt, examination, recording and return of shop drawings, coordination drawings and other submissions. ",{"$f":"J4","v":0}]
["CL71p","✔","Note the role of the architect as assessor, valuer and certifier relating to value, time and quality.",{"$f":"J4","v":0}]
["CL71q","✔","Note that architect's instructions must be given promptly, in writing and, if requested or appro- priate, shall state provisions under which given.  ",{"$f":"J4","v":0}]
["CL71r","✔","If a clerk of works is engaged, confirm conditions and duties.  ",{"$f":"J4","v":0}]
["CL71s","✔","If contractor is required to prepare or supply quality assurance documents, check for compliance with specification. (Refer CL62f)",{"$f":"J4","v":0}]
["CL71t","✔","Establish set of standard forms for use throughout contract administration.",{"$f":"J4","v":0}]
["CL71u","✔","Prepare a list of specified items requiring inspection prior to covering.  Establish procedure for notification of intent to cover work requiring checking.",{"$f":"J4","v":0}]
["CL71v","✔","Establish procedure for receipt, examination, recording and return of shop drawings, coordination drawings and other submissions. ",{"$f":"J4","v":0}]
[]
["© 1986-2017 Building Technology Pty Ltd. All rights reserved."]

{"sheet":"CL72","index":53,"n_rows":29,"n_cols":19,"rows_kept":29,"cut":false,"hidden":false,"merged":[[0,4,0,6],[1,4,1,6],[2,4,2,6],[3,4,3,6]]}
["Type:",null,{"$f":"Planner!B1","v":"CHECKITx All"},null,{"$f":"Planner!D1","v":"Test"}]
["Stage:",null,"7. Delivery","PLNR",{"$f":"Planner!D2","v":"Street Address"},null,null,null,"CHECKITx"]
["CL ID:",null,"CL72 Documents & Site Conditions",null,{"$f":"Planner!D3","v":"City | State | Postcode"}]
["Project:",null,{"$f":"Planner!B2","v":"Project Number & Name "},"Loc.",{"$f":"Planner!B3","v":"Location of Project "},null,null,null,null,null,"Staff assignment for this checklist - See Guides Sheet Step 4 for instructions"]
[]
["Item No ","Use","Task description","Who?","Checking record - action required if any. When action is completed, Initial & date approval\n","Chk By","Date",null,"Checking record:"]
["CL72a","✔","Establish recording and distribution system for revisions to drawings, specifications,  bills of quantities and  other contract documents.  Advise consultants of procedures.",{"$f":"J4","v":0},null,null,null,null,null,1,2,3,4,5,6,7,8,9,10]
["CL72b","✔","Ensure that contractor is provided with numbers of sets of documents as required by the contract. ",{"$f":"J4","v":0},null,null,null,null,"Initials:"]
["CL72c","✔","Arrange for client to supply contractor with copies of  relevant documents, e.g. site survey, copy of title, town planning permit, fire brigade reports, adjoining owners' agreements. ",{"$f":"J4","v":0},null,null,null,null,"Date:"]
["CL72d","✔","Instruct contractor promptly in writing regarding any discrepancies or errors found in contract documents. ",{"$f":"J4","v":0},null,null,null,null,"Checklist signoff: I have verified that all tasks for this checklist are complete"]
["CL72e","✔","Check that a complete copy set of  documents and instructions is kept on Site and is marked by contractor to show where superseded or modified.  ",{"$f":"J4","v":0},null,null,null,null,"By:",null,null,null,null,"Date:"]
["CL72f","✔","Confirm Australian Standards specified to be kept on Site are provided.",{"$f":"J4","v":0}]
["CL72g","✔","If more copies of contract documents are requested by contractor than are provided for in the contract, determine responsibility for payment prior to issue.",{"$f":"J4","v":0},null,null,null,null,"✔","1. All red-checked Tasks are required for this project by the firm.\n"]
["CL72h","✔","Confirm consultants' advisory role in preparation of contractor’s coordination drawings.  Provide coordination between design team members and those producing coordination drawings.",{"$f":"J4","v":0},null,null,null,null,"ISO","2. If ISO 9001 is a project requirement, all Tasks with a blue ISO reference must be used."]
["CL72i","✔","Provide overview of contractor’s services coordination drawings to ensure consistency with architectural and services layout drawings and compliance with design intent.",{"$f":"J4","v":0},null,null,null,null,"✔","3. Select optional Tasks (black check mark) by deleting checkmarks for Tasks not needed."]
["CL72j","✔","Promptly investigate and issue instructions to contractor if unexpected site conditions are reported. ",{"$f":"J4","v":0},null,null,null,null,"[C]","4. If using the 2009 AIA Client and Architects Agreement, this is a CORE activity."]
["CL72k","✔","Refer to site survey and note any easements and covenants and the location(s) of any public services on the site.",{"$f":"J4","v":0}]
["CL72l","✔","Provide information and survey marks as required to set out the Works. Ensure that client/architect agreement covers these costs as a reimbursable expense.",{"$f":"J4","v":0}]
["CL72m","✔","Ensure that found site conditions differing from site survey are recorded.  Copy to client.  ",{"$f":"J4","v":0}]
["CL72n","✔","If not already specified, agree procedure for recording and measuring over-excavation, rock and other obstructions.",{"$f":"J4","v":0}]
["CL72o","✔","Should work to an adjoining property be required, ensure that permission has been obtained by the client prior to commencement. ",{"$f":"J4","v":0}]
["CL72p","✔","Check requirements of adjoining owners and ensure that contractor receives copies of relevant documents.  (Refer CL72o)",{"$f":"J4","v":0}]
["CL72q","✔","Establish procedure for reporting found conditions, eg materials requiring special handling under environmental regulations, artifacts, antiquities, underground services, obstructions.",{"$f":"J4","v":0}]
["CL72r","✔","Upon discovery of latent conditions, valuable minerals or antiquities, consult client and instruct contractor accordingly.  ",{"$f":"J4","v":0}]
["CL72s","✔","Check which landscape features, including trees, are to be protected.  Check contractor’s provision for their protection.",{"$f":"J4","v":0}]
["CL72t","✔","Direct contractor’s attention to contract requirements with respect to noise, dust, toxic waste disposal, site security, and the like.  Advise client of any problems.",{"$f":"J4","v":0}]
["CL72u","✔","Direct contractor’s attention to contract requirements with respect to site signage, information boards, restrictions on signs, and the like. ",{"$f":"J4","v":0}]
[]
["© 1986-2016 Building Technology Pty Ltd. All rights reserved.",null,null,null,null,null,"Licensed exclusively to Australian Instituteof Architects"]

{"sheet":"CL73","index":54,"n_rows":29,"n_cols":19,"rows_kept":29,"cut":false,"hidden":false,"merged":[[0,4,0,6],[1,4,1,6],[2,4,2,6],[3,4,3,6]]}
["Type:",null,{"$f":"Planner!B1","v":"CHECKITx All"},null,{"$f":"Planner!D1","v":"Test"}]
["Stage:",null,"7. Delivery","PLNR",{"$f":"Planner!D2","v":"Street Address"},null,null,null,"CHECKITx"]
["CL ID:",null,"CL73 Indemnities, Insurances & Time",null,{"$f":"Planner!D3","v":"City | State | Postcode"}]
["Project:",null,{"$f":"Planner!B2","v":"Project Number & Name "},"Loc.",{"$f":"Planner!B3","v":"Location of Project "},null,null,null,null,null,"Staff assignment for this checklist - See Guides Sheet Step 4 for instructions"]
[]
["Item No ","Use","Task description","Who?","Checking record - action required if any. When action is completed, Initial & date approval\n","Chk By","Date",null,"Checking record:"]
["CL73a","✔","Review insurance advice in Acumen if you are a subscriber.",{"$f":"J4","v":0},null,null,null,null,null,1,2,3,4,5,6,7,8,9,10]
["CL73b","✔","If insurance is provided by contractor, obtain evidence of contractor’s insurance.  Check against contract requirements. Prepare & submit report.",{"$f":"J4","v":0},null,null,null,null,"Initials:"]
["CL73c","✔","Obtain copies of policies, premium receipts, certificates of currency or other evidence of current coverage if not submitted under CL73b.  ",{"$f":"J4","v":0},null,null,null,null,"Date:"]
["CL73d","✔","If insurance provisions do not appear to conform to requirements, advise contractor and request resubmission.  Copy to client.",{"$f":"J4","v":0},null,null,null,null,"Checklist signoff: I have verified that all tasks for this checklist are complete"]
["CL73e","✔","If insurance provisions appear to conform to requirements, forward submissions to client with CL73b report. Advise client to have documents reviewed by client’s insurer.\n",{"$f":"J4","v":0},null,null,null,null,"By:",null,null,null,null,"Date:"]
["CL73f","✔","Obtain client's written confirmation that contractor’s insurances are acceptable prior to Date for Possession of Site. Copy to contractor.\n",{"$f":"J4","v":0}]
["CL73g","✔","If client has accepted cover notes as a temporary measure, obtain CL73c evidence as soon as possible and forward to client.",{"$f":"J4","v":0},null,null,null,null,"✔","1. All red-checked Tasks are required for this project by the firm.\n"]
["CL73h","✔","If building is occupied without contractor’s consent, prior to Practical Completion, advise client of insurance liability and risks.",{"$f":"J4","v":0},null,null,null,null,"ISO","2. If ISO 9001 is a project requirement, all Tasks with a blue ISO reference must be used."]
["CL73i","✔","Check insurance provisions of contract and advise client of client’s obligations at Practical Completion. ",{"$f":"J4","v":0},null,null,null,null,"✔","3. Select optional Tasks (black check mark) by deleting checkmarks for Tasks not needed."]
["CL73j","✔","If notice is received from contractor of any occurrence likely to give rise to a claim, notify client and/or your insurer as appropriate. ",{"$f":"J4","v":0},null,null,null,null,"[C]","4. If using the 2009 AIA Client and Architects Agreement, this is a CORE activity."]
["CL73k","✔","Seek indemnity from client against future claims as a consequence of client’s accepting noncon- forming work contrary to architect's recommen- dation.  ",{"$f":"J8","v":0}]
["CL73l","✔","On settlement of claims for damages, resolve total reinstatement costs before reinstatement is commenced. ",{"$f":"J8","v":0}]
["CL73m","✔","Insurance for staged completion is “very tricky” and must be given detailed consideration by client’s insurance broker. Confirm that client has arranged same.",{"$f":"J8","v":0}]
["CL73n","✔","Review contractor's program with client.  Forward comments to contractor. ",{"$f":"J8","v":0}]
["CL73o","✔","Maintain schedule of critical deadlines and decision points; record actual dates of achievement.  ",{"$f":"J2","v":0}]
["CL73p","✔","Monitor contractor's performance against program.  Direct contractor’s attention to areas where performance is falling behind program.  ",{"$f":"J3","v":0}]
["CL73q","✔","Keep client informed of progress and how program may be affected by potential delays (if any). ",{"$f":"J1","v":0}]
["CL73r","✔","Act promptly and within 20 days on claims by contractor for extensions of time, unless a shorter period of time is required by the contract for construction.",{"$f":"J1","v":0}]
["CL73s","✔","Check reasons for contractor’s claims for delay as soon as possible, particularly those which may be difficult to check later, e.g. wet weather.  ",{"$f":"J2","v":0}]
["CL73t","✔","Consider effect on critical path in assessment of claims for time extensions.",{"$f":"J4","v":0}]
["CL73u","✔","If owner or contractor take out insurance, are not  nominated party, and wish to recover cost from nominated party, consider claim in preparing the next certificate;  adjust contract price accordingly.",{"$f":"J4","v":0}]
[]
["© 1986-2017 Building Technology Pty Ltd. All rights reserved."]

{"sheet":"CL74","index":55,"n_rows":34,"n_cols":19,"rows_kept":34,"cut":false,"hidden":false,"merged":[[0,4,0,6],[1,4,1,6],[2,4,2,6],[3,4,3,6]]}
["Type:",null,{"$f":"Planner!B1","v":"CHECKITx All"},null,{"$f":"Planner!D1","v":"Test"}]
["Stage:",null,"7. Delivery","PLNR",{"$f":"Planner!D2","v":"Street Address"},null,null,null,"CHECKITx"]
["CL ID:",null,"CL74 Administration",null,{"$f":"Planner!D3","v":"City | State | Postcode"}]
["Project:",null,{"$f":"Planner!B2","v":"Project Number & Name "},"Loc.",{"$f":"Planner!B3","v":"Location of Project "},null,null,null,null,null,"Staff assignment for this checklist - See Guides Sheet Step 4 for instructions"]
[]
["Item No ","Use","Task description","Who?","Checking record - action required if any. When action is completed, Initial & date approval\n","Chk By","Date",null,"Checking record:"]
["CL74a","✔","Clarify responsibility of architect's site staff (if any) to client and contractor. ",{"$f":"J4","v":0},null,null,null,null,null,1,2,3,4,5,6,7,8,9,10]
["CL74b","✔","Ensure that provisional sums are committed.  Schedule dates and responsibility for finalisation. (Refer also CL73o)  ",{"$f":"J4","v":0},null,null,null,null,"Initials:"]
["CL74c","✔","Pursuant to CL74b, check for items with critical ordering or delivery lead times.  Circulate to consultants with information for comment.",{"$f":"J4","v":0},null,null,null,null,"Date:"]
["CL74d","✔","Take care not to direct work on site.  Do NOT tell contractor how to do contractor’s work.  In discussing work, avoid suggestions about construction methods. ",{"$f":"J4","v":0},null,null,null,null,"Checklist signoff: I have verified that all tasks for this checklist are complete"]
["CL74e","✔","Issue instructions to contractor in writing.  Ensure that instructions refer to the Works.  ",{"$f":"J4","v":0},null,null,null,null,"By:",null,null,null,null,"Date:"]
["CL74f","✔","When instructions which involve or may involve variations are given, ensure that contract requirements with respect to variations are met. (Refer also CL75n)",{"$f":"J4","v":0}]
["CL74g","✔","In case of site conditions which could cause physical danger, advise contractor at once of condition and direct that it be rectified.  DO NOT describe method. ",{"$f":"J4","v":0},null,null,null,null,"✔","1. All red-checked Tasks are required for this project by the firm.\n"]
["CL74h","✔","Pursuant to CL74g, promptly notify professional indemnity insurer and client.",{"$f":"J4","v":0},null,null,null,null,"ISO","2. If ISO 9001 is a project requirement, all Tasks with a blue ISO reference must be used."]
["CL74i","✔","If client intends to appoint a clerk of works, notify contractor of identity of person proposed.  (Refer    CL71r)",{"$f":"J4","v":0},null,null,null,null,"✔","3. Select optional Tasks (black check mark) by deleting checkmarks for Tasks not needed."]
["CL74j","✔","Respond to contractor’s requests for additional information promptly.  Be alert for, and record details of, situations which may lead to cost or time extension claims.",{"$f":"J4","v":0},null,null,null,null,"[C]","4. If using the 2009 AIA Client and Architects Agreement, this is a CORE activity."]
["CL74k","✔","Issue notice of compliance to contractor if contractor does not comply with an instruction.  Copy to client. ",{"$f":"J4","v":0}]
["CL74l","✔","Promptly assess claims. Note that many contracts require action within a specified time.",{"$f":"J4","v":0}]
["CL74m","✔","Provide promt decisions on contract adjustment. within 20 working days of claim. Note that many contracts require action within a specified time.",{"$f":"J4","v":0}]
["CL74n","✔","Promptly request further information regarding a progress claim if needed. ",{"$f":"J4","v":0}]
["CL74o","✔","Pursuant to CL74j, beware of lack of information becoming the basis for a time extension claim.  Record times of receipt and reply.\n\n",{"$f":"J4","v":0}]
["CL74p","✔","If it becomes necessary pursuant to instruct the builder to remove any employee or subcontractor from the site, do so in writing, stating reasons. Copy client. Exercise caution!",{"$f":"J4","v":0}]
["CL74q","✔","Report industrial relations problems or potential problems to client.",{"$f":"J4","v":0}]
["CL74r","✔","If a project quality plan is required, monitor contractor’s quality control procedures and advise contractor in writing of observed deficiencies; copy to client. ",{"$f":"J4","v":0}]
["CL74s","✔","Issue instructions regarding provisional sums.  ",{"$f":"J4","v":0}]
["CL74t","✔","Check that the contractor has no reasonable objection to nominated subcontractors and suppliers, if any. ",{"$f":"J4","v":0}]
["CL74u","✔","Check nominated subcontract documentation received after signing of contract for changes to specified 'contractor’s work'.  Instruct contractor.",{"$f":"J4","v":0}]
["CL74v","✔","If contractor terminates a nominated subcontractor, make a further nomination or issue instruction to contractor to omit or execute the work.",{"$f":"J5","v":0}]
["CL74w","✔","Advise contractor that nominated subcontracts and supply contracts shall be consistent with conditions of the head contract.",{"$f":"J6","v":0}]
["CL74x","✔","Arrange for separate contractors to comply with contractor’s requirements.",{"$f":"J4","v":0}]
["CL74y","✔","Request list of contractor’s subcontractors and suppliers and circulate to consultants and clients for comments.",{"$f":"J8","v":0}]
["CL74z","✔","Provide information to contractor regarding client's separate contractors as appropriate to contract.",{"$f":"J4","v":0}]
[]
["© 1986-2017 Building Technology Pty Ltd. All rights reserved."]

{"sheet":"CL75","index":56,"n_rows":32,"n_cols":19,"rows_kept":32,"cut":false,"hidden":false,"merged":[[0,4,0,6],[1,4,1,6],[2,4,2,6],[3,4,3,6]]}
["Type:",null,{"$f":"Planner!B1","v":"CHECKITx All"},null,{"$f":"Planner!D1","v":"Test"}]
["Stage:",null,"7. Delivery","PLNR",{"$f":"Planner!D2","v":"Street Address"},null,null,null,"CHECKITx"]
["CL ID:",null,"CL75 Submissions, Inspections & Execution",null,{"$f":"Planner!D3","v":"City | State | Postcode"}]
["Project:",null,{"$f":"Planner!B2","v":"Project Number & Name "},"Loc.",{"$f":"Planner!B3","v":"Location of Project "},null,null,null,null,null,"Staff assignment for this checklist - See Guides Sheet Step 4 for instructions"]
[]
["Item No ","Use","Task description","Who?","Checking record - action required if any. When action is completed, Initial & date approval\n","Chk By","Date",null,"Checking record:"]
["CL75a","✔","Confirm arrangements for meetings including site meetings. Check responsibility for calling meetings, setting agendas, issuing minutes etc. [C]",{"$f":"J4","v":0},null,null,null,null,null,1,2,3,4,5,6,7,8,9,10]
["CL75b","✔","Keep record notes of each meeting attended as an aid to checking the correctness of meeting minutes. Be alert for omissions.",{"$f":"J4","v":0},null,null,null,null,"Initials:"]
["CL75c","✔","Establish a regular procedure for site inspections. ",{"$f":"J4","v":0},null,null,null,null,"Date:"]
["CL75d","✔","Check contractor’s list of required submissions if prepared by builder; if not, prepare list of required submissions with key dates and issue to builder.",{"$f":"J4","v":0},null,null,null,null,"Checklist signoff: I have verified that all tasks for this checklist are complete"]
["CL75e","✔","Review specification for off-site inspection requirements. Agree arrangements for inspec- tions with builder. Prepare and issue record of results of inspections.",{"$f":"J4","v":0},null,null,null,null,"By:",null,null,null,null,"Date:"]
["CL75f","✔","Confirm that procedures for shop drawings and other submissions have been satisfactorily completed prior to fabrication or delivery of items to site.",{"$f":"J4","v":0}]
["CL75g","✔","Determine from specification if contractor has obligation to provide schedule of required submissions.  If so, request and review; if not, provide one.",{"$f":"J4","v":0},null,null,null,null,"✔","1. All red-checked Tasks are required for this project by the firm.\n"]
["CL75h","✔","Review contractor’s submission program for shop drawings.",{"$f":"J4","v":0},null,null,null,null,"ISO","2. If ISO 9001 is a project requirement, all Tasks with a blue ISO reference must be used."]
["CL75i","✔","Check schedules of materials submissions, samples, prototypes, performance tests, etc. and review with contractor.  Keep submissions schedule up to date.  ",{"$f":"J4","v":0},null,null,null,null,"✔","3. Select optional Tasks (black check mark) by deleting checkmarks for Tasks not needed."]
["CL75j","✔","Check that prototypes comply with specification; approve as appropriate. Confirm that specified testing is to schedule and that test results are satisfactory.",{"$f":"J4","v":0},null,null,null,null,"[C]","4. If using the 2009 AIA Client and Architects Agreement, this is a CORE activity."]
["CL75k","✔","Confirm that materials on site are of quality and manufacture specified and are undamaged. Instruct contractor to remove unsatisfactory materials.",{"$f":"J4","v":0}]
["CL75l","✔","Reject substandard work. Issue contractor with written instructions promptly. Cite specification clauses as appropriate. (Refer CL75k)",{"$f":"J4","v":0}]
["CL75m","✔","Maintain written record of inspections and circulate as required. Note progress, delays and causes, defects notes, information required, instruction confirmation, etc.",{"$f":"J4","v":0}]
["CL75n","✔","Before issuing an instruction, check if cost or time adjustments are involved. Obtain client's authorisation for any changes.",{"$f":"J4","v":0}]
["CL75o","✔","Check that specified protection requirements, if any, are followed. Check that finished work is adequately protected.",{"$f":"J4","v":0}]
["CL75p","✔","Carry out specific trade checks appropriate to the stage of the project. Review site reports for the period since last inspection; take action on items outstanding.",{"$f":"J4","v":0}]
["CL75q","✔","Provide evidence to contractor of notices given, fees paid and permits obtained by or on behalf of client. ",{"$f":"J4","v":0}]
["CL75r","✔","Request that contractor provide copies of required approvals from authorities.  ",{"$f":"J4","v":0}]
["CL75s","✔","Check that contractor submits a certificate from a licensed surveyor confirming setting out and levels, if required by contract. ",{"$f":"J4","v":0}]
["CL75t","✔","Respond promptly in writing to requests from contractor as to availability of specified materials.  Copy to client if appropriate.  ",{"$f":"J4","v":0}]
["CL75u","✔","Request notification of intent to cover work requiring checking.  Refer CL71u.",{"$f":"J5","v":0}]
["CL75v","✔","If any CL71u  items have been covered without being checked, determine whether uncovering is required.  Advise contractor. ",{"$f":"J6","v":0}]
["CL75w","✔","Report, promptly to client, work requested to be uncovered, and the result of the subsequent checking. If covered work is not defective, contractor can claim costs.",{"$f":"J8","v":0}]
["CL75x","✔","Check quality of work installed.  If such work does not comply with requirements, instruct contractor.",{"$f":"J4","v":0}]
[]
["© 1986-2017 Building Technology Pty Ltd. All rights reserved."]

{"sheet":"CL76","index":57,"n_rows":34,"n_cols":19,"rows_kept":34,"cut":false,"hidden":false,"merged":[[0,4,0,6],[1,4,1,6],[2,4,2,6],[3,4,3,6]]}
["Type:",null,{"$f":"Planner!B1","v":"CHECKITx All"},null,{"$f":"Planner!D1","v":"Test"}]
["Stage:",null,"7. Delivery ","PLNR",{"$f":"Planner!D2","v":"Street Address"},null,null,null,"CHECKITx"]
["CL ID:",null,"CL76 Delivery: AS 2124",null,{"$f":"Planner!D3","v":"City | State | Postcode"}]
["Project:",null,{"$f":"Planner!B2","v":"Project Number & Name "},"Loc.",{"$f":"Planner!B3","v":"Location of Project "},null,null,null,null,null,"Staff assignment for this checklist - See Guides Sheet Step 4 for instructions"]
[]
["Item No ","Use","Task description","Who?","Checking record - action required if any. When action is completed, Initial & date approval\n","Chk By","Date",null,"Checking record:"]
["CL76a","✔","This checklist is for projects using the AS 2124 Contract for Construction. Clause numbers refer to AS 2124 clauses. Use in conjunction with CL64, CL71-CL75 inclusive and CL86.",{"$f":"J4","v":0},null,null,null,null,null,1,2,3,4,5,6,7,8,9,10]
["CL76b","✔","Promptly resolve any discrepancies discovered or brought to your attention and advise contractor in writing. (cl 8.1, 8.2)",{"$f":"J4","v":0},null,null,null,null,"Initials:"]
["CL76c","✔","Coordinate supply of construction documents in accordance with cl. 8.4 & 8.5.",{"$f":"J4","v":0},null,null,null,null,"Date:"]
["CL76d","✔","Manage issues relating to latent conditions in accordance with Section 12.",{"$f":"J4","v":0},null,null,null,null,"Checklist signoff: I have verified that all tasks for this checklist are complete"]
["CL76e","✔","Supply information and survey marks as required for setting out by the contractor in accordance with Section 28.",{"$f":"J4","v":0},null,null,null,null,"By:",null,null,null,null,"Date:"]
["CL76f","✔","If and as required, instruct the contractor to remove materials from the site in accordance with cl. 29.2.",{"$f":"J4","v":0}]
["CL76g","✔","Manage the contractor's engagement of subcontractors in accordance with cl. 9.2.",{"$f":"J4","v":0},null,null,null,null,"✔","1. All red-checked Tasks are required for this project by the firm."]
["CL76h","✔","Manage the contractor's appointment of nominated and selected subcontractors in accordance with Section 10.",{"$f":"J4","v":0},null,null,null,null,"ISO","2. If ISO 9001 is a project requirement, all Tasks with a blue ISO reference must be used."]
["CL76i","✔","Adjust terms of the contract for actual quantities in accordance with cl. 3.3.",{"$f":"J4","v":0},null,null,null,null,"✔","3. Select optional Tasks (black check mark) by deleting checkmarks for Tasks not needed."]
["CL76j","✔","Manage errors in pricing or BoQ  in accordance with cl. 4.3 & 4.4.",{"$f":"J4","v":0},null,null,null,null,"[C]","4. If using the 2009 AIA Client and Architects Agreement, this is a CORE activity."]
["CL76k","✔","Manage provisional sums in accordance with Section 11.",{"$f":"J4","v":0}]
["CL76l","✔","Resolve any differences between the contract & statutory requirements  in accordance with Section 14.",{"$f":"J4","v":0}]
["CL76m","✔","Certify payments in accordance with cl. 21.5.",{"$f":"J4","v":0}]
["CL76n","✔","Notify contractor in writing of any appointed Clerk of the Works or inspector per Section 22.",{"$f":"J4","v":0}]
["CL76o","✔","Perform duties of the Superintendent or Superintendent's representative in accordance with Sections 23 & 24.",{"$f":"J4","v":0}]
["CL76p","✔","Where necessary, make objection to the contractor's representative in accordance with Section 25.",{"$f":"J4","v":0}]
["CL76q","✔","Where necessary, direct removal from the site of any person employed by the the contractor  in accordance with Section 26.",{"$f":"J4","v":0}]
["CL76r","✔","Direct contractor to supply information on materials in accordance with cl. 29.3.",{"$f":"J5","v":0}]
["CL76s","✔","Manage variations and valuations in accordance with Section 40.",{"$f":"J6","v":0}]
["CL76t","✔","Authorise daywork as necessary in accordance with Section 41.",{"$f":"J4","v":0}]
["CL76u","✔","Manage certifications and authorise payments in acccordance with Sections 42 & 43.",{"$f":"J8","v":0}]
["CL76v","✔","Reject defective or not-as--specified materials (cl. 30.3) OR issue variation OR accept work as installed (cl. 30.3, 30.4, 30.5 & 30.6).",{"$f":"J9","v":0}]
["CL76w","✔","Manage examination & testing in accordance with Section 31.",{"$f":"J4","v":0}]
["CL76x","✔","Provide notices to insurer as necessary in accordance with Section 19 and cl. 21.3.",{"$f":"J4","v":0}]
["CL76y","✔","Provide direction as to progress of the work (cl. 33.1).",{"$f":"J3","v":0}]
["CL76z","✔","Arrange for urgent protection where necessary. (Section 30)",{"$f":"J4","v":0}]
[]
["© 1986-2017 Building Technology Pty Ltd. All rights reserved."]

{"sheet":"CL77","index":58,"n_rows":66,"n_cols":19,"rows_kept":66,"cut":false,"hidden":false,"merged":[[0,4,0,6],[1,4,1,6],[2,4,2,6],[3,4,3,6]]}
["Type:",null,{"$f":"Planner!B1","v":"CHECKITx All"},null,{"$f":"Planner!D1","v":"Test"}]
["Stage:",null,"7. Delivery ","PLNR",{"$f":"Planner!D2","v":"Street Address"},null,null,null,"CHECKITx"]
["CL ID:",null,"CL77 Delivery: AS 4000",null,{"$f":"Planner!D3","v":"City | State | Postcode"}]
["Project:",null,{"$f":"Planner!B2","v":"Project Number & Name "},"Loc.",{"$f":"Planner!B3","v":"Location of Project "},null,null,null,null,null,"Staff assignment for this checklist - See Guides Sheet Step 4 for instructions"]
[]
["Item No ","Use","Task description","Who?","Checking record - action required if any. When action is completed, Initial & date approval\n","Chk By","Date",null,"Checking record:"]
["CL77a","✔","This checklist is for projects using the AS 4000 Contract for Construction. Clause numbers refer to AS 4000 clauses. Use in conjunction with CL65, CL71-CL75 inclusive & CL87.",{"$f":"J4","v":0},null,null,null,null,null,1,2,3,4,5,6,7,8,9,10]
["CL77b","✔","Promptly resolve any discrepancies discovered or brought to your attention and advise contractor in writing. (cl 8.1)",{"$f":"J4","v":0},null,null,null,null,"Initials:"]
["CL77c","✔","Coordinate supply of construction documents in accordance with cl. 8.3, 8.4 & 8.5.",{"$f":"J4","v":0},null,null,null,null,"Date:"]
["CL77d","✔","Manage issues relating to latent conditions in accordance with Section 25.",{"$f":"J4","v":0},null,null,null,null,"Checklist signoff: I have verified that all tasks for this checklist are complete"]
["CL77e","✔","Supply information and survey marks as required for setting out by the contractor in accordance with Section 26.",{"$f":"J4","v":0},null,null,null,null,"By:",null,null,null,null,"Date:"]
["CL77f","✔","If and as required, instruct the contractor to remove materials from the site in accordance with Section 28.",{"$f":"J4","v":0}]
["CL77g","✔","Manage the contractor's engagement of subcontractors in accordance with cl. 9.2 & 9.3.",{"$f":"J4","v":0},null,null,null,null,"✔","1. All red-checked Tasks are required for this project by the firm."]
["CL77h","✔","Manage provisional sums in accordance with Section 3.",{"$f":"J4","v":0},null,null,null,null,"ISO","2. If ISO 9001 is a project requirement, all Tasks with a blue ISO reference must be used."]
["CL77i","✔","Resolve any differences between the contract & legislative requirements  in accordance with Section 11.",{"$f":"J4","v":0},null,null,null,null,"✔","3. Select optional Tasks (black check mark) by deleting checkmarks for Tasks not needed."]
["CL77j","✔","Where necessary, take action to protect people and property in accordance with Section 12.",{"$f":"J4","v":0},null,null,null,null,"[C]","4. If using the 2009 AIA Client and Architects Agreement, this is a CORE activity."]
["CL77k","✔","Perform duties of the Superintendent or Superintendent's representative in accordance with Sections 20 & 21.",{"$f":"J4","v":0}]
["CL77l","✔","Where necessary, make objection to the contractor's representative in accordance with Section 22.",{"$f":"J4","v":0}]
["CL77m","✔","Where necessary, direct removal from the site of any person employed by the the contractor  in accordance with Section 23.",{"$f":"J4","v":0}]
["CL77n","✔","Certify payments in accordance with cl. 37.2 & 37.3.",{"$f":"J4","v":0}]
["CL77o","✔","Manage variations and valuations in accordance with Section 36.",{"$f":"J4","v":0}]
["CL77p","✔","Assess costs with respect to minerals, fossils & relics, if found, per cl. 24.3",{"$f":"J4","v":0}]
["CL77q","✔","Manage & communication of claims per cl. 41. Note there are time limits in which the Superindent must take action.",{"$f":"J4","v":0}]
["CL77r","✔","Direct reinstatement of works where damaged per cl. 14.2.",{"$f":"J5","v":0}]
["CL77s","✔","Reject defective or not-as--specified materials per cl. 29.3 OR issue variation OR accept per cl. 29.4",{"$f":"J6","v":0}]
["CL77t","✔","Manage examination & testing in accordance with Section 30.",{"$f":"J4","v":0}]
["CL77u","✔","Arrange for urgent protection where necessary. (Section 30)",{"$f":"J8","v":0}]
["CL77v","✔","Certify claims & costs if contractor fails to provide insurance in accordance with cl. 19.2, 19.3 & 19.5.",{"$f":"J9","v":0}]
["CL77w","✔","If required, provide direction regarding working hours per cl. 31.",{"$f":"J4","v":0}]
["CL77x","✔","Provide direction and assessment as to progress of the work per Section 34.",{"$f":"J4","v":0}]
[]
["© 1986-2017 Building Technology Pty Ltd. All rights reserved."]
[]
[]
[]
[]
[]
[]
[]
[]
[]
[]
[]
[]
[]
[]
[]
[]
[]
[]
[]
[]
[]
[]
[]
[]
[]
[]
[]
[]
[]
[]
[]
[]
[]
[null,null,null,null,"s"]

{"sheet":"CL78","index":59,"n_rows":28,"n_cols":19,"rows_kept":28,"cut":false,"hidden":false,"merged":[[0,4,0,6],[1,4,1,6],[2,4,2,6],[3,4,3,6]]}
["Type:",null,{"$f":"Planner!B1","v":"CHECKITx All"},null,{"$f":"Planner!D1","v":"Test"}]
["Stage:",null,"7. Delivery ","PLNR",{"$f":"Planner!D2","v":"Street Address"},null,null,null,"CHECKITx"]
["CL ID:",null,"CL78 Delivery: ABIC",null,{"$f":"Planner!D3","v":"City | State | Postcode"}]
["Project:",null,{"$f":"Planner!B2","v":"Project Number & Name "},"Loc.",{"$f":"Planner!B3","v":"Location of Project "},null,null,null,null,null,"Staff assignment for this checklist - See Guides Sheet Step 4 for instructions"]
[]
["Item No ","Use","Task description","Who?","Checking record - action required if any. When action is completed, Initial & date approval\n","Chk By","Date",null,"Checking record:"]
["CL78a","✔","This checklist is for projects using the ABIC Contract for Construction. Clause numbers refer to ABIC clauses. Use in conjunction with CL66, CL71-CL75 inclusive & CL88.",{"$f":"J4","v":0},null,null,null,null,null,1,2,3,4,5,6,7,8,9,10]
["CL78b","✔","If not already familiar with it, review the User Guide to the ABIC CP-2014 C contract. Note time limits applicable to various contract administration functions, set out in the table on pp 4-9.",{"$f":"J4","v":0},null,null,null,null,"Initials:"]
["CL78c","✔","Issue instructiions in writing & accordance with cl. A7 & R1. If an instruction or decision is disputed, you must respond within 10 working days of the date of the dispute notice (cl. A8).",{"$f":"J4","v":0},null,null,null,null,"Date:"]
["CL78d","✔","If discrepancies or omissions are discovered or reported by the contractor, respond promptly with a clarifying instruction (cl.B2). Be wary of nuisance or malicious Requests for Information.",{"$f":"J4","v":0},null,null,null,null,"Checklist signoff: I have verified that all tasks for this checklist are complete"]
["CL78e","✔","Receive and promptly forward copies of official documents per cl. B3.",{"$f":"J4","v":0},null,null,null,null,"By:",null,null,null,null,"Date:"]
["CL78f","✔","Ensure that contractor's security obligations to owner are met (Section C). ",{"$f":"J4","v":0}]
["CL78g","✔","Carry out architect's security administration obligations as required in C4, C5, C6, C7, C10, C11, C13, C15, C16.",{"$f":"J4","v":0},null,null,null,null,"✔","1. All red-checked Tasks are required for this project by the firm."]
["CL78h","✔","If either party seeks to recover insured costs from the other party, administer the claim in accordance with cl. E5.2 or cl. E8.3 as appropriate.",{"$f":"J4","v":0},null,null,null,null,"ISO","2. If ISO 9001 is a project requirement, all Tasks with a blue ISO reference must be used."]
["CL78i","✔","Act promptly on any report from the contractor with respect to latent conditions, valuable items, dangerous/contaminated materials or encroachments (cl. F6, F7 & F8).",{"$f":"J4","v":0},null,null,null,null,"✔","3. Select optional Tasks (black check mark) by deleting checkmarks for Tasks not needed."]
["CL78j","✔","Require opening up or testing if there is reasonable concern about defective work. Note that contractor can claim costs if no defective work is discovered. (cl. G5, G6 & Section N)",{"$f":"J4","v":0},null,null,null,null,"[C]","4. If using the 2009 AIA Client and Architects Agreement, this is a CORE activity."]
["CL78k","✔","Refer cl. N1 for a description of items to be included in the contract price.",{"$f":"J4","v":0}]
["CL78l","✔","Assess progress claims pursuant to cl. N5 within 5 business days of receiving claim. See also cl. N7.",{"$f":"J4","v":0}]
["CL78m","✔","Understand the consequences of failing to act promptly on progress claims - see cl. N9.",{"$f":"J4","v":0}]
["CL78n","✔","On instruction from the owner, instruct contractor to suspend work, and, on further instruction, to recommence work. (c. G8, G9) See also cl. Q12 & Q13.",{"$f":"J4","v":0}]
["CL78o","✔","Report, in writing, to owner & contractor, on the progress of the work, within 21 working days after receiving progress claim from contractor (cl. H1 & H2).",{"$f":"J4","v":0}]
["CL78p","✔","Administer general changes to scope of work in accordance with cl. I2, I3, J1, J2, and  J3.",{"$f":"J4","v":0}]
["CL78q","✔","Administer changes to scope of work, resulting from receipt of official documents, in accordance with cl. J4 and J5.",{"$f":"J4","v":0}]
["CL78r","✔","Administer urgent changes, or changes due to dangerous or contaminated materials, to scope of work in accordance with cl. J6 or J7.",{"$f":"J5","v":0}]
["CL78s","✔","Instruct contractor to use particular persons or firms for execution of work under provisional or prime cost sums in contract, per cl. K2.",{"$f":"J6","v":0}]
["CL78t","✔","In the event of a change in legislation that affects the scope of the work, promptly issue and instruction to the contractor pursuant to cl. R10.",{"$f":"J4","v":0}]
[]
["© 1986-2017 Building Technology Pty Ltd. All rights reserved."]

{"sheet":"CL79","index":60,"n_rows":24,"n_cols":19,"rows_kept":24,"cut":false,"hidden":false,"merged":[[0,4,0,6],[1,4,1,6],[2,4,2,6],[3,4,3,6]]}
["Type:",null,{"$f":"Planner!B1","v":"CHECKITx All"},null,{"$f":"Planner!D1","v":"Test"}]
["Stage:",null,"7. Delivery ","PLNR",{"$f":"Planner!D2","v":"Street Address"},null,null,null,"CHECKITx"]
["CL ID:",null,"CL79 Delivery: NZS 3910",null,{"$f":"Planner!D3","v":"City | State | Postcode"}]
["Project:",null,{"$f":"Planner!B2","v":"Project Number & Name "},"Loc.",{"$f":"Planner!B3","v":"Location of Project "},null,null,null,null,null,"Staff assignment for this checklist - See Guides Sheet Step 4 for instructions"]
[]
["Item No ","Use","Task description","Who?","Checking record - action required if any. When action is completed, Initial & date approval\n","Chk By","Date",null,"Checking record:"]
["CL79a","✔","This checklist is for use with NZS 3910, and relies on prior implementation of CL65 and CL66. All references are to NZS 3910. Review relevant clauses in CL 71 - CL75 inclusive.",{"$f":"J4","v":0},null,null,null,null,null,1,2,3,4,5,6,7,8,9,10]
["CL79b","✔","Carry out the duties and responsibilities of the Engineer in accordance with NZS 3910 Section 6.",{"$f":"J4","v":0},null,null,null,null,"Initials:"]
["CL79c","✔","Issue construction documents in accordance with cl. 2.7. Note conditions relevant to time or cost change in cl. 2.7.4 – 2.7.7 inclusive.",{"$f":"J4","v":0},null,null,null,null,"Date:"]
["CL79d","✔","Set up a shop drawing log for contractor’s documents. Review cl. 2.8.",{"$f":"J4","v":0},null,null,null,null,"Checklist signoff: I have verified that all tasks for this checklist are complete"]
["CL79e","✔","Where a safety plan is required, it must be approved before commencing work on site. The Engineer must act on the safety plan within 5 days of receipt. See cl. 5.17.",{"$f":"J4","v":0},null,null,null,null,"By:",null,null,null,null,"Date:"]
["CL79f","✔","Where a quality plan is required, it must be approved before commencing work on site. The Engineer must act on the quality plan within 5 days of receipt. See cl. 5.18.",{"$f":"J4","v":0}]
["CL79g","✔","Where a traffic mgt. plan is required, it must be approved before commencing work on site. The Engineer must act on the traffic mgt. plan within 5 days of receipt. See cl. 5.19.",{"$f":"J4","v":0},null,null,null,null,"✔","1. All red-checked Tasks are required for this project by the firm."]
["CL79h","✔","Verify that contractor has submitted a programme  in accordance with cl. 5.10, within 10 working days of award of contract. Note the exception in cl. 5.10.4 for Special Conditions.",{"$f":"J4","v":0},null,null,null,null,"ISO","2. If ISO 9001 is a project requirement, all Tasks with a blue ISO reference must be used."]
["CL79i","✔","Where the contactor is required to provide a bond, note that it must be delivered within 2 months of award. ",{"$f":"J4","v":0},null,null,null,null,"✔","3. Select optional Tasks (black check mark) by deleting checkmarks for Tasks not needed."]
["CL79j","✔","Note that no payment can be made to contractor until receipt of the bond and programme.",{"$f":"J4","v":0},null,null,null,null,"[C]","4. If using the 2009 AIA Client and Architects Agreement, this is a CORE activity."]
["CL79k","✔","Ensure that contractor has setting out information in accordance with cl. 5.8. Note contractor’s obligation regarding set out errors in cl. 5.8.5.",{"$f":"J4","v":0}]
["CL79l","✔","Be aware that contractor may seek time and/or cost variations under conditions noted in cl. 5.11.7, 5.11.10, 5.13.4, 5.16, 9.2 and 10.3.",{"$f":"J4","v":0}]
["CL79m","✔","Manage scope and schedule change in accordance with cl. 5.21, Section 9 Variations and 10.3.",{"$f":"J4","v":0}]
["CL79n","✔","Process contractor requests for payment in accordance with Section 12.",{"$f":"J4","v":0}]
["CL79o","✔","If required, authorise daywork in accordance w.ith cl. 9.4.",{"$f":"J4","v":0}]
["CL79p","✔","Manage latent conditions, if occurring, in accordance with cl. 9.5.",{"$f":"J4","v":0}]
[]
["© 1986-2017 Building Technology Pty Ltd. All rights reserved."]

{"sheet":"CL81","index":61,"n_rows":26,"n_cols":19,"rows_kept":26,"cut":false,"hidden":false,"merged":[[0,4,0,6],[1,4,1,6],[2,4,2,6],[3,4,3,6]]}
["Type:",null,{"$f":"Planner!B1","v":"CHECKITx All"},null,{"$f":"Planner!D1","v":"Test"}]
["Stage:",null,"8. Completion","PLNR",{"$f":"Planner!D2","v":"Street Address"},null,null,null,"CHECKITx"]
["CL ID:",null,"CL81 Practical Completion ",null,{"$f":"Planner!D3","v":"City | State | Postcode"}]
["Project:",null,{"$f":"Planner!B2","v":"Project Number & Name "},"Loc.",{"$f":"Planner!B3","v":"Location of Project "},null,null,null,null,null,"Staff assignment for this checklist - See Guides Sheet Step 4 for instructions"]
[]
["Item No ","Use","Task description","Who?","Checking record - action required if any. When action is completed, Initial & date approval\n","Chk By","Date",null,"Checking record:"]
["CL81a","✔","Review AIA Acumen guide notes regarding Practical Completion for the relevant contract. ",{"$f":"J4","v":0},null,null,null,null,null,1,2,3,4,5,6,7,8,9,10]
["CL81b","✔","Adjust Date for Practical Completion pursuant to agreed extensions of time and advise contractor and client.  ",{"$f":"J4","v":0},null,null,null,null,"Initials:"]
["CL81c","✔","If contract provides for staged completion, refer to relevant Acumen guide notes;  award extensions specific to each stage.  ",{"$f":"J4","v":0},null,null,null,null,"Date:"]
["CL81d","✔","Check if contractor has provided a certificate from a licensed surveyor concerning stipulated boundaries and structural tolerances if required by the contract.  ",{"$f":"J4","v":0},null,null,null,null,"Checklist signoff: I have verified that all tasks for this checklist are complete"]
["CL81e ","✔","Prior to issue of Notice of Practical Completion, advise client that Practical Completion results in the commencement of the Defects Liability Period. ",{"$f":"J4","v":0},null,null,null,null,"By:",null,null,null,null,"Date:"]
["CL81f","✔","Prior to issue of Notice of Practical Completion, advise client that Practical Completion results in the transfer of liability for damage to the Works from contractor to client. ",{"$f":"J4","v":0}]
["CL81g","✔","Obtain specified warranties; check for compliance with contract requirements.  Forward to client for approval with advice of exclusions and limitations.",{"$f":"J4","v":0},null,null,null,null,"✔","1. All red-checked Tasks are required for this project by the firm.\n"]
["CL81h","✔","Review previously issued architect's and consultant's instructions and inspection reports for matters and things required to be done before Practical Completion. Prepare list.",{"$f":"J4","v":0},null,null,null,null,"ISO","2. If ISO 9001 is a project requirement, all Tasks with a blue ISO reference must be used."]
["CL81i","✔","Ensure that the CL81h list includes items such as warranties, commissioning, operating manuals and records, including for subcontracts.   Refer also CL83.",{"$f":"J4","v":0},null,null,null,null,"✔","3. Select optional Tasks (black check mark) by deleting checkmarks for Tasks not needed."]
["CL81j","✔","Monitor contractor's progress in completing work required to achieve Practical Completion. ",{"$f":"J4","v":0},null,null,null,null,"[C]","4. If using the 2009 AIA Client and Architects Agreement, this is a CORE activity."]
["CL81k","✔","Prior to issue of Notice of Practical Completion, advise client that Practical Completion ends the period (if any) for which liquidated damages are applicable.  ",{"$f":"J4","v":0}]
["CL81l ","✔","Inspect the Works as soon as possible after receiving contractor’s request for issue of Notice of Practical Completion. Note that many contracts have a time limit for action.",{"$f":"J4","v":0}]
["CL81m","✔","Respond promptly to contractor’s written request for issue of Notice of Practical Completion. Note that many contracts have a time limit for action.",{"$f":"J4","v":0}]
["CL81n","✔","If Works are not ready for issue of Notice of Practical Completion, notify contractor.  Copy to client. ",{"$f":"J4","v":0}]
["CL81o","✔","Ensure that meter readings and fuel stocks at Date of Practical Completion are recorded. ",{"$f":"J4","v":0}]
["CL81p","✔","Ensure client does not become liable for contractor’s use of utilities after Practical Completion unless permitted by agreement.",{"$f":"J4","v":0}]
["CL81q","✔","If client occupies prior to Practical Completion, without written agreement, etc., advise contractor and client of deemed Date of Practical Completion. ",{"$f":"J4","v":0}]
["CL81r","✔","Check on authority approvals required for occupation.  Initiate action if required as part of architect's duties. Notify contractor and client as appropriate.",{"$f":"J4","v":0}]
[]
["© 1986-2017 Building Technology Pty Ltd. All rights reserved."]

{"sheet":"CL82","index":62,"n_rows":20,"n_cols":19,"rows_kept":20,"cut":false,"hidden":false,"merged":[[0,4,0,6],[1,4,1,6],[2,4,2,6],[3,4,3,6]]}
["Type:",null,{"$f":"Planner!B1","v":"CHECKITx All"},null,{"$f":"Planner!D1","v":"Test"}]
["Stage:",null,"8. Completion","PLNR",{"$f":"Planner!D2","v":"Street Address"},null,null,null,"CHECKITx"]
["CL ID:",null,"CL82 Defects Liability Period",null,{"$f":"Planner!D3","v":"City | State | Postcode"}]
["Project:",null,{"$f":"Planner!B2","v":"Project Number & Name "},"Loc.",{"$f":"Planner!B3","v":"Location of Project "},null,null,null,null,null,"Staff assignment for this checklist - See Guides Sheet Step 4 for instructions"]
[]
["Item No ","Use","Task description","Who?","Checking record - action required if any. When action is completed, Initial & date approval\n","Chk By","Date",null,"Checking record:"]
["CL82a","✔","Prepare and issue as soon as possible after Date of Practical Completion a list of work remaining to be done. Copy to client.  ",{"$f":"J4","v":0},null,null,null,null,null,1,2,3,4,5,6,7,8,9,10]
["CL82b","✔","During Defects Liability Period, issue instructions as required pursuant to contract.\n",{"$f":"J4","v":0},null,null,null,null,"Initials:"]
["CL82c","✔","Monitor contractor’s progress in making good defects.  If contractor does not comply with an instruction given by the architect, take appropriate action.",{"$f":"J4","v":0},null,null,null,null,"Date:"]
["CL82d","✔","Advise client on procedure for reporting defects, including degree of urgency, to architect.",{"$f":"J4","v":0},null,null,null,null,"Checklist signoff: I have verified that all tasks for this checklist are complete"]
["CL82e","✔","Check \"making good\" items instructed during the Defects Liability Period.",{"$f":"J4","v":0},null,null,null,null,"By:",null,null,null,null,"Date:"]
["CL82f","✔","Extend the defects liability period for specific parts of the Works, if appropriate, pursuant to CL81e.  ",{"$f":"J4","v":0}]
["CL82g","✔","Advise client of date of end of Defects Liability Period and dates of ends of extended defects liability periods, if any.",{"$f":"J4","v":0},null,null,null,null,"✔","1. All red-checked Tasks are required for this project by the firm.\n"]
["CL82h","✔","Agree any additional work required by the client.  Arrange as a Variation or as a new contract.  ",{"$f":"J4","v":0},null,null,null,null,"ISO","2. If ISO 9001 is a project requirement, all Tasks with a blue ISO reference must be used."]
["CL82i","✔","Determine whether defects are due to work being not in accordance with contract or have occurred notwithstanding that the contractor has carried out the work in accordance with the contract.",{"$f":"J4","v":0},null,null,null,null,"✔","3. Select optional Tasks (black check mark) by deleting checkmarks for Tasks not needed."]
["CL82j","✔","If defects are due to work being not in accordance with the contract, instruct contractor to rectify at no cost to client. ",{"$f":"J4","v":0},null,null,null,null,"[C]","4. If using the 2009 AIA Client and Architects Agreement, this is a CORE activity."]
["CL82k","✔","If any rectification work is alleged to result from contract documentation notify professional indemnity insurer.",{"$f":"J4","v":0}]
["CL82l","✔","Ensure that contractor’s plant and materials are removed from site. ",{"$f":"J4","v":0}]
[]
["© 1986-2017 Building Technology Pty Ltd. All rights reserved."]

{"sheet":"CL83","index":63,"n_rows":26,"n_cols":19,"rows_kept":26,"cut":false,"hidden":false,"merged":[[0,4,0,6],[1,4,1,6],[2,4,2,6],[3,4,3,6]]}
["Type:",null,{"$f":"Planner!B1","v":"CHECKITx All"},null,{"$f":"Planner!D1","v":"Test"}]
["Stage:",null,"8. Completion","PLNR",{"$f":"Planner!D2","v":"Street Address"},null,null,null,"CHECKITx"]
["CL ID:",null,"CL83 Payment & Adjustment of Contract Sum",null,{"$f":"Planner!D3","v":"City | State | Postcode"}]
["Project:",null,{"$f":"Planner!B2","v":"Project Number & Name "},"Loc.",{"$f":"Planner!B3","v":"Location of Project "},null,null,null,null,null,"Staff assignment for this checklist - See Guides Sheet Step 4 for instructions"]
[]
["Item No ","Use","Task description","Who?","Checking record - action required if any. When action is completed, Initial & date approval\n","Chk By","Date",null,"Checking record:"]
["CL83a","✔","Ensure that adequate project financial control procedures are in place.  If not, establish them.  Retain supporting data and reasons for assessments.",{"$f":"J4","v":0},null,null,null,null,null,1,2,3,4,5,6,7,8,9,10]
["CL83b","✔","Coordinate with other consultants on valuation of work and retention procedures for nominated subcontracts administered by them, if any.",{"$f":"J4","v":0},null,null,null,null,"Initials:"]
["CL83c","✔","Check value of delivered but unfixed materials against contractor’s claim. ",{"$f":"J4","v":0},null,null,null,null,"Date:"]
["CL83d","✔","Check administrative records, conditions of storage, etc., for undelivered goods included in contractor’s progress claim.",{"$f":"J4","v":0},null,null,null,null,"Checklist signoff: I have verified that all tasks for this checklist are complete"]
["CL83e","✔","Ensure that contractor provides evidence that payments previously certified and due have been paid to nominated subcontractors. ",{"$f":"J4","v":0},null,null,null,null,"By:",null,null,null,null,"Date:"]
["CL83f","✔","If security is a percentage of contract sum, adjust amount of security to reflect changes in the contract sum due to variations or other causes.  ",{"$f":"J4","v":0}]
["CL83g","✔","Take care that contractor does not become entitled to damages for delay caused to the Works by any act, default or omission of the architect. ",{"$f":"J4","v":0},null,null,null,null,"✔","1. All red-checked Tasks are required for this project by the firm.\n"]
["CL83h","✔","If the state or territory requires contractor to produce evidence of payment of wages, verify that such evidence has been produced to client. ",{"$f":"J4","v":0},null,null,null,null,"ISO","2. If ISO 9001 is a project requirement, all Tasks with a blue ISO reference must be used."]
["CL83i","✔","As a precondition to payment, verify that contractor has supplied a statement to client that wages have been paid and insurances are current. ",{"$f":"J4","v":0},null,null,null,null,"✔","3. Select optional Tasks (black check mark) by deleting checkmarks for Tasks not needed."]
["CL83j","✔","Within 10 days of receiving progress claim, assess contract value of work executed, determine any adjustments and issue progress certificate. ",{"$f":"J4","v":0},null,null,null,null,"[C]","4. If using the 2009 AIA Client and Architects Agreement, this is a CORE activity."]
["CL83k","✔","If amount certified in progress certificate differs from progress claim, provide details of the differences in writing to contractor. ",{"$f":"J4","v":0}]
["CL83l","✔","Release one half of retention monies at Practical Completion, except as otherwise provided in the contract for construction. Note time limits.",{"$f":"J4","v":0}]
["CL83m","✔","Note that a failure to issue certificates promptly may be the cause for client’s breach of contract. ",{"$f":"J4","v":0}]
["CL83n","✔","Assess damages and costs arising from delay; advise contractor & client of contract sum adjustments if appropriate.",{"$f":"J4","v":0}]
["CL83o","✔","If a liquidated and ascertained damages clause applies, assess any damages and make adjust- ments to contract sum.",{"$f":"J4","v":0}]
["CL83p","✔","Adjust contract sum as required to reflect adjustments of provisional sums.",{"$f":"J4","v":0}]
["CL83q","✔","Obtain from contractor a reasonable price for each variation supported by measurement or other evidence of costs. ",{"$f":"J4","v":0}]
["CL83r","✔","If security is a bank guarantee, advise client to reduce the amount of security to half the amount or percentage of the contract sum unless otherwise provided in construction contract. ",{"$f":"J4","v":0}]
["CL83s","✔","If security is in the form of a retention fund, issue a progress certificate for half the amount plus interest within 10 days of issue of Notice of Practical Completion, unless otherwise required.",{"$f":"J4","v":0}]
["© 1986-2017 Building Technology Pty Ltd. All rights reserved."]

{"sheet":"CL84","index":64,"n_rows":24,"n_cols":19,"rows_kept":24,"cut":false,"hidden":false,"merged":[[0,4,0,6],[1,4,1,6],[2,4,2,6],[3,4,3,6]]}
["Type:",null,{"$f":"Planner!B1","v":"CHECKITx All"},null,{"$f":"Planner!D1","v":"Test"}]
["Stage:",null,"8. Completion","PLNR",{"$f":"Planner!D2","v":"Street Address"},null,null,null,"CHECKITx"]
["CL ID:",null,"CL84 Testing & Commissioning",null,{"$f":"Planner!D3","v":"City | State | Postcode"}]
["Project:",null,{"$f":"Planner!B2","v":"Project Number & Name "},"Loc.",{"$f":"Planner!B3","v":"Location of Project "},null,null,null,null,null,"Staff assignment for this checklist - See Guides Sheet Step 4 for instructions"]
[]
["Item No ","Use","Task description","Who?","Checking record - action required if any. When action is completed, Initial & date approval\n","Chk By","Date",null,"Checking record:"]
["CL84a","✔","If required by client/architect agreement, receive and check maintenance contracts, if any, prior to forwarding to client.",{"$f":"J4","v":0},null,null,null,null,null,1,2,3,4,5,6,7,8,9,10]
["CL84b","✔","Ensure that contractor programs specify checking and testing, including commissioning of plant and services installations required for Practical Completion.",{"$f":"J4","v":0},null,null,null,null,"Initials:"]
["CL84c","✔","Request evidence that all required services connections have been satisfactorily completed.",{"$f":"J4","v":0},null,null,null,null,"Date:"]
["CL84d","✔","Request evidence that installations requiring authority approvals (e.g. lifts, escalators, BMUs) are satisfactorily completed and approvals obtained.",{"$f":"J4","v":0},null,null,null,null,"Checklist signoff: I have verified that all tasks for this checklist are complete"]
["CL84e","✔","Check that required statutory approvals have been received. Forward to client. Retain copies.",{"$f":"J4","v":0},null,null,null,null,"By:",null,null,null,null,"Date:"]
["CL84f","✔","Review submissions list (CL75d) and check that submissions have been received, reviewed and approved.",{"$f":"J4","v":0}]
["CL84g","✔","Check that 'as-built' drawings are consistent with completed installation and are satisfactorily completed. Forward to client and retain copy.",{"$f":"J4","v":0},null,null,null,null,"✔","1. All red-checked Tasks are required for this project by the firm.\n"]
["CL84h","✔","Receive and check that specified services operations manuals are complete. Issue to client. Ensure contractor provides client with list of after-hours service contacts.",{"$f":"J4","v":0},null,null,null,null,"ISO","2. If ISO 9001 is a project requirement, all Tasks with a blue ISO reference must be used."]
["CL84i","✔","If required, prepare building maintenance manual. ",{"$f":"J4","v":0},null,null,null,null,"✔","3. Select optional Tasks (black check mark) by deleting checkmarks for Tasks not needed."]
["CL84j","✔","Ensure manual includes easily understood diagrams and words demonstrating how the passive design aspects of the building and equipment work.",{"$f":"J4","v":0},null,null,null,null,"[C]","4. If using the 2009 AIA Client and Architects Agreement, this is a CORE activity."]
["CL84k","✔","Confirm contractor’s arrangements for handover of Works; advise builder of client's program for taking possession.",{"$f":"J4","v":0}]
["CL84l","✔","Review locking and keying provisions of the contract regarding contractor’s continuing access needs and coordinate provision of permanent locking.",{"$f":"J4","v":0}]
["CL84m","✔","Advise client to check adequacy of security provisions at time of handover of Works.",{"$f":"J4","v":0}]
["CL84n","✔","Set up regular maintenance schedules to ensure all materials and equipment are properly cared for.",{"$f":"J4","v":0}]
["CL84o","✔","Work with client to employ appropriate cleaning methods for carpets, fabrics, timber, etc.",{"$f":"J4","v":0}]
["CL84p","✔","Advise client with respect to ongoing pest management system.",{"$f":"J4","v":0}]
[]
["© 1986-2017 Building Technology Pty Ltd. All rights reserved."]

{"sheet":"CL85","index":65,"n_rows":74,"n_cols":19,"rows_kept":74,"cut":false,"hidden":false,"merged":[[0,4,0,6],[1,4,1,6],[2,4,2,6],[3,4,3,6]]}
["Type:",null,{"$f":"Planner!B1","v":"CHECKITx All"},null,{"$f":"Planner!D1","v":"Test"}]
["Stage:",null,"8. Completion","PLNR",{"$f":"Planner!D2","v":"Street Address"},null,null,null,"CHECKITx"]
["CL ID:",null,"CL85 Disputes, Final Certificate & Payment",null,{"$f":"Planner!D3","v":"City | State | Postcode"}]
["Project:",null,{"$f":"Planner!B2","v":"Project Number & Name "},"Loc.",{"$f":"Planner!B3","v":"Location of Project "},null,null,null,null,null,"Staff assignment for this checklist - See Guides Sheet Step 4 for instructions"]
[]
["Item No ","Use","Task description","Who?","Checking record - action required if any. When action is completed, Initial & date approval\n","Chk By","Date",null,"Checking record:"]
["CL85a","✔","Advise client to seek legal advice at first sign that contractor is in financial difficulty. ",{"$f":"J4","v":0},null,null,null,null,null,1,2,3,4,5,6,7,8,9,10]
["CL85b","✔","If circumstances appear to warrant determination by client, advise client to obtain legal advice before proceeding.",{"$f":"J4","v":0},null,null,null,null,"Initials:"]
["CL85c","✔","If contractor defaults and client advises of intent to determine  contract, help client avoid breach of contract by advising of  contractor’s performance. (Refer AN 09.01 032)",{"$f":"J4","v":0},null,null,null,null,"Date:"]
["CL85d","✔","If client determines the contract, at time of determination make a comprehensive record of extent and condition of completed work. ",{"$f":"J4","v":0},null,null,null,null,"Checklist signoff: I have verified that all tasks for this checklist are complete"]
["CL85e","✔","Advise client of any apparent breach of contract which could allow contractor to determine the contract. ",{"$f":"J4","v":0},null,null,null,null,"By:",null,null,null,null,"Date:"]
["CL85f","✔","Assist in the resolution of disputes as required. ",{"$f":"J4","v":0}]
["CL85g","✔","Advise contractor to submit a final claim detailing all adjustments to the contract sum within 15 days of the end of the Defects Liability Period. ",{"$f":"J4","v":0},null,null,null,null,"✔","1. All red-checked Tasks are required for this project by the firm.\n"]
["CL85h","✔","Ensure that all warranties are submitted and that provisions are satisfactory, prior to issuing final \ncertificate.   ",{"$f":"J4","v":0},null,null,null,null,"ISO","2. If ISO 9001 is a project requirement, all Tasks with a blue ISO reference must be used."]
["CL85i","✔","Ensure that all testing has been satisfactorily completed, prior to issuing final certificate.",{"$f":"J10","v":0},null,null,null,null,"✔","3. Select optional Tasks (black check mark) by deleting checkmarks for Tasks not needed."]
["CL85j","✔","Review submissions list (CL75d) and check that all submissions have been received, reviewed and approved, prior to issuing final certificate.",{"$f":"J10","v":0},null,null,null,null,"[C]","4. If using the 2009 AIA Client and Architects Agreement, this is a CORE activity."]
["CL85k","✔","Carry out final inspection in conjunction with consultants to check that defects have been made good to the satisfaction of the architect.",{"$f":"J10","v":0}]
["CL85l","✔","General: Issue final certificate to relevant contract requirements. Follow relevant Acumen advice",{"$f":"J10","v":0}]
["CL85m","✔","Ensure final certificate states adjusted contract sum, total amount previously certified and balance payable.  ",{"$f":"J10","v":0}]
["CL85n","✔","In case of extended defects liability period for any part of the Works, issue semi-final certificate.",{"$f":"J10","v":0}]
["CL85o","✔","If final certificate differs from amount claimed by contractor, provide written explanation of difference to contractor. Copy client.",{"$f":"J4","v":0}]
[]
["© 1986-2017 Building Technology Pty Ltd. All rights reserved."]
[]
[]
[]
[]
[]
[]
[]
[]
[]
[]
[]
[]
[]
[]
[]
[]
[]
[]
[]
[]
[]
[]
[]
[]
[]
[]
[]
[]
[]
[]
[]
[]
[]
[]
[]
[]
[]
[]
[]
[]
[]
[]
[]
[]
[]
[]
[]
[]
[]
[]
[null,null,null,null,"s"]

{"sheet":"CL86","index":66,"n_rows":75,"n_cols":19,"rows_kept":75,"cut":false,"hidden":false,"merged":[[0,4,0,6],[1,4,1,6],[2,4,2,6],[3,4,3,6]]}
["Type:",null,{"$f":"Planner!B1","v":"CHECKITx All"},null,{"$f":"Planner!D1","v":"Test"}]
["Stage:",null,"8. Completion ","PLNR",{"$f":"Planner!D2","v":"Street Address"},null,null,null,"CHECKITx"]
["CL ID:",null,"CL86 Completion: AS 2124",null,{"$f":"Planner!D3","v":"City | State | Postcode"}]
["Project:",null,{"$f":"Planner!B2","v":"Project Number & Name "},"Loc.",{"$f":"Planner!B3","v":"Location of Project "},null,null,null,null,null,"Staff assignment for this checklist - See Guides Sheet Step 4 for instructions"]
[]
["Item No ","Use","Task description","Who?","Checking record - action required if any. When action is completed, Initial & date approval\n","Chk By","Date",null,"Checking record:"]
["CL86a","✔","This checklist is for projects using the AS 2124 Contract for Construction. Clause numbers refer to AS 2124 clauses. Use in conjunction with CL64, CL76 & CL81-CL85 inclusive.",{"$f":"J4","v":0},null,null,null,null,null,1,2,3,4,5,6,7,8,9,10]
["CL86b","✔","Review the definition of Practical Completion (cl 2) to understand the meaning of the term under AS 2124.",{"$f":"J4","v":0},null,null,null,null,"Initials:"]
["CL86c","✔","Manage completuon of separable portions of the work and/or partial completion in accordance with cl. 35.3 & 35.4.",{"$f":"J4","v":0},null,null,null,null,"Date:"]
["CL86d","✔","Where necessary, extend time for Ptractical Completion in accordance with cl. 35.5.",{"$f":"J4","v":0},null,null,null,null,"Checklist signoff: I have verified that all tasks for this checklist are complete"]
["CL86e","✔","Issue Certificate of Practical Completion in accordance with Section 42. Note that you must take action on a request within 14 days.",{"$f":"J4","v":0},null,null,null,null,"By:",null,null,null,null,"Date:"]
["CL86f","✔","Direct  contractor to rectify any defects existing at Practical Completion (Section 37). Note that notice must be given to the contractor within 14 days of start of the Defects Liability Period.",{"$f":"J4","v":0}]
["CL86g","✔","Promptly notify the contractor to rectify any defects discovered during the Defects Liability Period (Section 37). ",{"$f":"J4","v":0},null,null,null,null,"✔","1. All red-checked Tasks are required for this project by the firm."]
["CL86h","✔","As necessary, extend time for clean up. If contractor fails to clean up, order cleanup by others (Section 38).",{"$f":"J4","v":0},null,null,null,null,"ISO","2. If ISO 9001 is a project requirement, all Tasks with a blue ISO reference must be used."]
["CL86i","✔","Manage reduction of security and/or retention monies in accordance with cl. 5.7.",{"$f":"J4","v":0},null,null,null,null,"✔","3. Select optional Tasks (black check mark) by deleting checkmarks for Tasks not needed."]
["CL86j","✔","Where necessary by way of the provisions of Section 34, suspend the works in accordance with the conditions thereof.",{"$f":"J4","v":0},null,null,null,null,"[C]","4. If using the 2009 AIA Client and Architects Agreement, this is a CORE activity."]
["CL86k","✔","If it becomes necessary to take the works out of the contractor's hands, proceed in accordance with cl. 44.6.",{"$f":"J4","v":0}]
["CL86l","✔","If necessary, organise and manage dispute resolution in accordance with Section 47.",{"$f":"J4","v":0}]
["CL86m","✔","Process claim for fin al payment in accordance with cl. 42.7. ",{"$f":"J4","v":0}]
["CL86n","✔","Issue Final Certificate in accordance with cl 42.8. Note that action must be taken within 14 days of contractor's request.",{"$f":"J4","v":0}]
[]
["© 1986-2017 Building Technology Pty Ltd. All rights reserved."]
[]
[]
[]
[]
[]
[]
[]
[]
[]
[]
[]
[]
[]
[]
[]
[]
[]
[]
[]
[]
[]
[]
[]
[]
[]
[]
[]
[]
[]
[]
[]
[]
[]
[]
[]
[]
[]
[]
[]
[]
[]
[]
[]
[]
[]
[]
[]
[]
[]
[]
[]
[]
[null,null,null,null,"s"]

{"sheet":"CL87","index":67,"n_rows":22,"n_cols":19,"rows_kept":22,"cut":false,"hidden":false,"merged":[[0,4,0,6],[1,4,1,6],[2,4,2,6],[3,4,3,6]]}
["Type:",null,{"$f":"Planner!B1","v":"CHECKITx All"},null,{"$f":"Planner!D1","v":"Test"}]
["Stage:",null,"8. Completion ","PLNR",{"$f":"Planner!D2","v":"Street Address"},null,null,null,"CHECKITx"]
["CL ID:",null,"CL87 Completion: AS 4000",null,{"$f":"Planner!D3","v":"City | State | Postcode"}]
["Project:",null,{"$f":"Planner!B2","v":"Project Number & Name "},"Loc.",{"$f":"Planner!B3","v":"Location of Project "},null,null,null,null,null,"Staff assignment for this checklist - See Guides Sheet Step 4 for instructions"]
[]
["Item No ","Use","Task description","Who?","Checking record - action required if any. When action is completed, Initial & date approval\n","Chk By","Date",null,"Checking record:"]
["CL87a","✔","This checklist is for projects using the AS 4000 Contract for Construction. Clause numbers refer to AS 4000 clauses. Use in conjunction with CL65, CL81-CL85 inclusive & CL77.",{"$f":"J4","v":0},null,null,null,null,null,1,2,3,4,5,6,7,8,9,10]
["CL87b","✔","Review the definition of Practical Completion (Section 1) to understand the meaning of the term under AS 4000.",{"$f":"J4","v":0},null,null,null,null,"Initials:"]
["CL87c","✔","Manage completuon of separable portions of the work and/or partial completion in accordance with Section 4.",{"$f":"J4","v":0},null,null,null,null,"Date:"]
["CL87d","✔","Where necessary, extend time for Practical Completion, certify liquidated damages or delay damages or early copletion bonus in accordance with cl. 34.7, 34.8, and 34.9.",{"$f":"J4","v":0},null,null,null,null,"Checklist signoff: I have verified that all tasks for this checklist are complete"]
["CL87e","✔","Issue Certificate of Practical Completion in accordance with cl. 34.6. Note that you must take action on a request within 14 days.",{"$f":"J4","v":0},null,null,null,null,"By:",null,null,null,null,"Date:"]
["CL87f","✔","Direct  contractor to rectify any defects existing at Practical Completion (Section 35). Note that notice must be given to the contractor within 14 days of start of the Defects Liability Period.",{"$f":"J4","v":0}]
["CL87g","✔","Promptly notify the contractor to rectify any defects discovered during the Defects Liability Period (Section 35). ",{"$f":"J4","v":0},null,null,null,null,"✔","1. All red-checked Tasks are required for this project by the firm."]
["CL87h","✔","As necessary, extend time for clean up. If contractor fails to clean up, order cleanup by others (Section 27).",{"$f":"J4","v":0},null,null,null,null,"ISO","2. If ISO 9001 is a project requirement, all Tasks with a blue ISO reference must be used."]
["CL87i","✔","Where necessary by way of the provisions of Section 33, suspend the works in accordance with the conditions thereof.",{"$f":"J4","v":0},null,null,null,null,"✔","3. Select optional Tasks (black check mark) by deleting checkmarks for Tasks not needed."]
["CL87j","✔","Manage contractor default, insolvency or termination if required, per Sections 39 & 40.",{"$f":"J4","v":0},null,null,null,null,"[C]","4. If using the 2009 AIA Client and Architects Agreement, this is a CORE activity."]
["CL87k","✔","Manage communication of claims issues in accordance wqith Section 41.",{"$f":"J4","v":0}]
["CL87l","✔","If necessary, organise and manage dispute resolution in accordance with Section 42.",{"$f":"J4","v":0}]
["CL87m","✔","Process claim for final payment in accordance with cl. 37.4. ",{"$f":"J4","v":0}]
["CL87n","✔","Issue Final Certificate in accordance with cl. 37.4. Note that Certificate must be taken within 42 days of expiry of the last defects liability period.",{"$f":"J4","v":0}]
[]
["© 1986-2017 Building Technology Pty Ltd. All rights reserved."]

{"sheet":"CL88","index":68,"n_rows":77,"n_cols":19,"rows_kept":77,"cut":false,"hidden":false,"merged":[[0,4,0,6],[1,4,1,6],[2,4,2,6],[3,4,3,6]]}
["Type:",null,{"$f":"Planner!B1","v":"CHECKITx All"},null,{"$f":"Planner!D1","v":"Test"}]
["Stage:",null,"8. Completion ","PLNR",{"$f":"Planner!D2","v":"Street Address"},null,null,null,"CHECKITx"]
["CL ID:",null,"CL88 Completion: ABIC",null,{"$f":"Planner!D3","v":"City | State | Postcode"}]
["Project:",null,{"$f":"Planner!B2","v":"Project Number & Name "},"Loc.",{"$f":"Planner!B3","v":"Location of Project "},null,null,null,null,null,"Staff assignment for this checklist - See Guides Sheet Step 4 for instructions"]
[]
["Item No ","Use","Task description","Who?","Checking record - action required if any. When action is completed, Initial & date approval\n","Chk By","Date",null,"Checking record:"]
["CL88a","✔","This checklist is for projects using the ABIC Contract for Construction. Clause numbers refer to ABIC clauses. Use in conjunction with CL66, CL81-CL85 inclusive & CL78.",{"$f":"J4","v":0},null,null,null,null,null,1,2,3,4,5,6,7,8,9,10]
["CL88b","✔","If not already familiar with it, review the User Guide to the ABIC CP-2014 C contract. Note time limits applicable to various contract administration functions, set out in the table on pp 4-9.",{"$f":"J4","v":0},null,null,null,null,"Initials:"]
["CL88c","✔","If contractor advises of a delay in achieving practical completion, notify owner of new date (cl. L1, L2).",{"$f":"J4","v":0},null,null,null,null,"Date:"]
["CL88d","✔","When contractor notifies of practical completion pursuant to cl. M2 and M3, inspect the works within 10 working days unless otherwise agreed, and advise contractor & owner of result.",{"$f":"J4","v":0},null,null,null,null,"Checklist signoff: I have verified that all tasks for this checklist are complete"]
["CL88e","✔","Issue notice of practical completion when the conditions of cl. M1 have been met.",{"$f":"J4","v":0},null,null,null,null,"By:",null,null,null,null,"Date:"]
["CL88f","✔","Issue notice of practical completion when the conditions of cl. M1 have been met. Notice must be within 5 working days of completion of inspection. (M4)",{"$f":"J4","v":0}]
["CL88g","✔","If, pursuant to cl. M5, the works are near, but not at, practical completion, notify contractor and owner within 5 working days, with a list of items required to achieve practical completion.",{"$f":"J4","v":0},null,null,null,null,"✔","1. All red-checked Tasks are required for this project by the firm."]
["CL88h","✔","If works are assessed as not near practical completion, notify owner and contractor within 5 working days, with a summary of reasons for the decision (cl. M6).",{"$f":"J4","v":0},null,null,null,null,"ISO","2. If ISO 9001 is a project requirement, all Tasks with a blue ISO reference must be used."]
["CL88i","✔","Beware of the consequences of failing to notify within the time limits - see cl. M8.",{"$f":"J4","v":0},null,null,null,null,"✔","3. Select optional Tasks (black check mark) by deleting checkmarks for Tasks not needed."]
["CL88j","✔","Carry out architect's security administration obligations in the practical completion phase as required in C8, C9 & C17.",{"$f":"J4","v":0},null,null,null,null,"[C]","4. If using the 2009 AIA Client and Architects Agreement, this is a CORE activity."]
["CL88k","✔","Should the contractor fail to correct defects within a time established by the architect, the owner may instruct others to complete. Adjust the next certificate accordingly (M10).",{"$f":"J4","v":0}]
["CL88l","✔","Where appropriate, pursuant to cl. M11, extend the defects liability period. Note the limitation on giving instructions after the end of the defects liability period (M12.2).",{"$f":"J4","v":0}]
["CL88m","✔","When the conditions of cl. N10 and N11 have been met, assess and issue final certificate for payment. See also cl. N13.",{"$f":"J4","v":0}]
["CL88n","✔","Make a determination as to time to remedy default, if appropriate, pursuance to cl. Q1.2.",{"$f":"J4","v":0}]
["CL88o","✔","If necessary, and pursuant to cl. Q3, instruct contractor to remove materials from site.",{"$f":"J4","v":0}]
["CL88p","✔","If the contract is terminated pursuant to cl. Q4, direct the contractor to assign rights to labour, materials, etc. to the owner.",{"$f":"J4","v":0}]
["CL88q","✔","On termination of contact, and pursuant to cl. Q8 & Q9, promptly assess  costs to the owner of completing the works, and issue a certificate of amount payable to owner or contractor.",{"$f":"J4","v":0}]
["CL88r","✔","On termination by contractor and pursuant to cl. Q14, Q15, Q16 & Q17, promptly assess claim and issue certificate for payment to both parties.",{"$f":"J5","v":0}]
["CL88s","✔","Pursuant to Q19, if the contract is frustrated, promptly assess any claim by the contractor, and issue certificate for payment to both parties.",{"$f":"J6","v":0}]
[]
["© 1986-2017 Building Technology Pty Ltd. All rights reserved."]
[]
[]
[]
[]
[]
[]
[]
[]
[]
[]
[]
[]
[]
[]
[]
[]
[]
[]
[]
[]
[]
[]
[]
[]
[]
[]
[]
[]
[]
[]
[]
[]
[]
[]
[]
[]
[]
[]
[]
[]
[]
[]
[]
[]
[]
[]
[]
[]
[]
[null,null,null,null,"s"]

{"sheet":"CL89","index":69,"n_rows":78,"n_cols":19,"rows_kept":78,"cut":false,"hidden":false,"merged":[[0,4,0,6],[1,4,1,6],[2,4,2,6],[3,4,3,6]]}
["Type:",null,{"$f":"Planner!B1","v":"CHECKITx All"},null,{"$f":"Planner!D1","v":"Test"}]
["Stage:",null,"8. Completion ","PLNR",{"$f":"Planner!D2","v":"Street Address"},null,null,null,"CHECKITx"]
["CL ID:",null,"CL89 Completion: NZS 3910",null,{"$f":"Planner!D3","v":"City | State | Postcode"}]
["Project:",null,{"$f":"Planner!B2","v":"Project Number & Name "},"Loc.",{"$f":"Planner!B3","v":"Location of Project "},null,null,null,null,null,"Staff assignment for this checklist - See Guides Sheet Step 4 for instructions"]
[]
["Item No ","Use","Task description","Who?","Checking record - action required if any. When action is completed, Initial & date approval\n","Chk By","Date",null,"Checking record:"]
["CL89a","✔","This checklist is for use with NZS 3910, and relies on prior implementation of CL79. All references are to NZS 3910. Review relevant clauses in CL81 – CL85 inclusive. ",{"$f":"J4","v":0},null,null,null,null,null,1,2,3,4,5,6,7,8,9,10]
["CL89b","✔","Issue Notice of Practical Completion in accordance with cl. 5.11.8, 6.6, 10.4 and 10.5.",{"$f":"J4","v":0},null,null,null,null,"Initials:"]
["CL89c","✔","Manage defects notification and remediation procedures in accordance with cl. 11.1 and 11.2.",{"$f":"J4","v":0},null,null,null,null,"Date:"]
["CL89d","✔","Manage submission of as-built drawings in accordance with cl. 5.20.",{"$f":"J4","v":0},null,null,null,null,"Checklist signoff: I have verified that all tasks for this checklist are complete"]
["CL89e","✔","Manage submission of warranties and guarantees in accordance with cl. 11.5 and 11.6.",{"$f":"J4","v":0},null,null,null,null,"By:",null,null,null,null,"Date:"]
["CL89f","✔","Using CL88d and CL88e as guidelines, manage submission of all other specified completion items.",{"$f":"J4","v":0}]
["CL89g","✔","In the event of occupancy by Principal prior to Final Completion, administer the interface between contractor and Principal in accordance with cl. 10.7.",{"$f":"J4","v":0},null,null,null,null,"✔","1. All red-checked Tasks are required for this project by the firm."]
["CL89h","✔","When appropriate, issue Certificate of Final Completion in accordance with cl. 11.3 and 11.4.",{"$f":"J4","v":0},null,null,null,null,"ISO","2. If ISO 9001 is a project requirement, all Tasks with a blue ISO reference must be used."]
["CL89i","✔","Certify final payments and retention monies in accordance with cl. 12.3, 12.4, 12.5, 12.6, and 12.7.",{"$f":"J4","v":0},null,null,null,null,"✔","3. Select optional Tasks (black check mark) by deleting checkmarks for Tasks not needed."]
["CL89j","✔","In the event of default by Principal, manage in accordance with cl. 14.5.",{"$f":"J4","v":0},null,null,null,null,"[C]","4. If using the 2009 AIA Client and Architects Agreement, this is a CORE activity."]
["CL89k","✔","Conduct periodic reviews throughout the Defects Liability Period; notify contractor of any nonconforming work and request remediation in accordance with cl. 11.2. Copy client.",{"$f":"J4","v":0}]
[]
["© 1986-2017 Building Technology Pty Ltd. All rights reserved."]
[]
[]
[]
[]
[]
[]
[]
[]
[]
[]
[]
[]
[]
[]
[]
[]
[]
[]
[]
[]
[]
[]
[]
[]
[]
[]
[]
[]
[]
[]
[]
[]
[]
[]
[]
[]
[]
[]
[]
[]
[]
[]
[]
[]
[]
[]
[]
[]
[]
[]
[]
[]
[]
[]
[]
[]
[]
[]
[null,null,null,null,"s"]

{"sheet":"CL91","index":70,"n_rows":18,"n_cols":19,"rows_kept":18,"cut":false,"hidden":false,"merged":[[0,4,0,6],[1,4,1,6],[2,4,2,6],[3,4,3,6]]}
["Type:",null,{"$f":"Planner!B1","v":"CHECKITx All"},null,{"$f":"Planner!D1","v":"Test"}]
["Stage:",null,"9. Management ","PLNR",{"$f":"Planner!D2","v":"Street Address"},null,null,null,"CHECKITx"]
["CL ID:",null,"CL91 Project Resources & Mgt. Review",null,{"$f":"Planner!D3","v":"City | State | Postcode"}]
["Project:",null,{"$f":"Planner!B2","v":"Project Number & Name "},"Loc.",{"$f":"Planner!B3","v":"Location of Project "},null,null,null,null,null,"Staff assignment for this checklist - See Guides Sheet Step 4 for instructions"]
[]
["Item No ","Use","Task description","Who?","Checking record - action required if any. When action is completed, Initial & date approval\n","Chk By","Date",null,"Checking record:"]
["CL91a","✔","Ensure that the project team has prepared a Work Breakdown Structure (WBS) as part of the project initiation process (see CL11s). Check for adequacy. ",{"$f":"J4","v":0},null,null,null,null,null,1,2,3,4,5,6,7,8,9,10]
["CL91b","✔","Verify that the WBS includes Project Management as a line item and that the team underestands what activities should be charged to it.",{"$f":"J4","v":0},null,null,null,null,"Initials:"]
["CL91c","✔","Verify that team assignments are appropriate to the skill levels required by the project. ISO 9001: 7.1, 7.2",{"$f":"J4","v":0},null,null,null,null,"Date:"]
["CL91d","✔","Verify that suitable allowance has been made in the budget for rework, based on experience of the team. Verify that staff understand the importance of accurately accounting for rework.",{"$f":"J4","v":0},null,null,null,null,"Checklist signoff: I have verified that all tasks for this checklist are complete"]
["CL91e ","✔","Verify that suitable allowance has been made in the budget for coaching & mentoring, based on experience level of the team. ",{"$f":"J4","v":0},null,null,null,null,"By:",null,null,null,null,"Date:"]
["CL91f","✔","Check, for each element in the WBS, that time expenditure is within plan. If there are any significant blowouts, determine what happened, why, and how to correct the prioblem.",{"$f":"J4","v":0}]
["CL91g","✔","Prepare regular reports to senior management on the outcomes of CL91a - 91f. ISO 9001: 5.1.1, 7.1.6,  9.3.",{"$f":"J4","v":0},null,null,null,null,"✔","1. All red-checked Tasks are required for this project by the firm.\n"]
["CL91h","✔","Implement suggestions from senior management on the outcomes from management review.         ISO 9001: 5.1.1, 10.2",{"$f":"J4","v":0},null,null,null,null,"ISO","2. If ISO 9001 is a project requirement, all Tasks with a blue ISO reference must be used."]
[null,null,null,null,null,null,null,null,"✔","3. Select optional Tasks (black check mark) by deleting checkmarks for Tasks not needed."]
[null,null,null,null,null,null,null,null,"[C]","4. If using the 2009 AIA Client and Architects Agreement, this is a CORE activity."]
[]
["© 1986-2017 Building Technology Pty Ltd. All rights reserved."]

{"sheet":"CL92","index":71,"n_rows":19,"n_cols":19,"rows_kept":19,"cut":false,"hidden":false,"merged":[[0,4,0,6],[1,4,1,6],[2,4,2,6],[3,4,3,6]]}
["Type:",null,{"$f":"Planner!B1","v":"CHECKITx All"},null,{"$f":"Planner!D1","v":"Test"}]
["Stage:",null,"9. Management ","PLNR",{"$f":"Planner!D2","v":"Street Address"},null,null,null,"CHECKITx"]
["CL ID:",null,"CL92 Project Communication & Records",null,{"$f":"Planner!D3","v":"City | State | Postcode"}]
["Project:",null,{"$f":"Planner!B2","v":"Project Number & Name "},"Loc.",{"$f":"Planner!B3","v":"Location of Project "},null,null,null,null,null,"Staff assignment for this checklist - See Guides Sheet Step 4 for instructions"]
[]
["Item No ","Use","Task description","Who?","Checking record - action required if any. When action is completed, Initial & date approval\n","Chk By","Date",null,"Checking record:"]
["CL92a","✔","Hold a Project kickoff meeting with client and any other relevant stakeholders; take and distribute minutes. ISO 9001: 4.2, 7.4, 7.5,  8.2.1. [C]",{"$f":"J4","v":0},null,null,null,null,null,1,2,3,4,5,6,7,8,9,10]
["CL92b","✔","Hold a Team kickoff meeting with all design consultants & internal project team; take and distribute minutes. ISO 9001: 7.4, 7.5, 8.2.1 [C]",{"$f":"J4","v":0},null,null,null,null,"Initials:"]
["CL92c","✔","Ensure that regularly weekly reports go to clients advising them of project progress and issues requiring client decisions or information. ISO 9001: 5.1, 7.4, 7.5, 8.2.1",{"$f":"J4","v":0},null,null,null,null,"Date:"]
["CL92d","✔","Follow up promptly on the weekly reports with a brief phone call to answer any client questions about progress.  ISO 9001: 5.1, 7.4, 8.2.1",{"$f":"J4","v":0},null,null,null,null,"Checklist signoff: I have verified that all tasks for this checklist are complete"]
["CL92e ","✔","Verify that communication records (Ref.CL12v,)  are being maintained. ISO 9001: 7.5, 8.2.3.2",{"$f":"J4","v":0},null,null,null,null,"By:",null,null,null,null,"Date:"]
["CL92f","✔","Verify that records of design inputs and outputs are being maintained. (ISO 9001: 8.3.3, 8.3.5)",{"$f":"J4","v":0}]
["CL92g","✔","Verify that records of design changes are being maintained. (ISO 9001: 7.5, 8.3.6, 8.5.6)",{"$f":"J4","v":0},null,null,null,null,"✔","1. All red-checked Tasks are required for this project by the firm.\n"]
["CL92h","✔","Verify that records of reviews of subconsultant quality reviews are being maintained. This includes verifying that subconsultants have a quality system in operation.  (ISO 9001: 7.5, 8.4.2)",{"$f":"J4","v":0},null,null,null,null,"ISO","2. If ISO 9001 is a project requirement, all Tasks with a blue ISO reference must be used."]
["CL92i","✔","Verify that records of any nonconformity are maintained. That means these CHECKIT records. (ISO 9001: 7.5, 8.7.2, 10.2)",{"$f":"J4","v":0},null,null,null,null,"✔","3. Select optional Tasks (black check mark) by deleting checkmarks for Tasks not needed."]
["CL92j","✔","If the firm's internal audit schedule requires that this project be audited, verify that the audit was completed, any follow-up actions taken, and audit records retained. (ISO 9001: 9.2)",{"$f":"J4","v":0},null,null,null,null,"[C]","4. If using the 2009 AIA Client and Architects Agreement, this is a CORE activity."]
["CL92k","✔","If this project was subject to a management review, ensure that review recommendations were implemented and records maintained (ISO 9001: 9.3.2, 9.3.3)",{"$f":"J4","v":0},null,null,"  "]
[]
["© 1986-2017 Building Technology Pty Ltd. All rights reserved."]

{"sheet":"CL93","index":72,"n_rows":19,"n_cols":19,"rows_kept":19,"cut":false,"hidden":false,"merged":[[0,4,0,6],[1,4,1,6],[2,4,2,6],[3,4,3,6]]}
["Type:",null,{"$f":"Planner!B1","v":"CHECKITx All"},null,{"$f":"Planner!D1","v":"Test"}]
["Stage:",null,"9. Management ","PLNR",{"$f":"Planner!D2","v":"Street Address"},null,null,null,"CHECKITx"]
["CL ID:",null,"CL93 Design Scope Changes",null,{"$f":"Planner!D3","v":"City | State | Postcode"}]
["Project:",null,{"$f":"Planner!B2","v":"Project Number & Name "},"Loc.",{"$f":"Planner!B3","v":"Location of Project "},null,null,null,null,null,"Staff assignment for this checklist - See Guides Sheet Step 4 for instructions"]
[]
["Item No ","Use","Task description","Who?","Checking record - action required if any. When action is completed, Initial & date approval\n","Chk By","Date",null,"Checking record:"]
["CL93a","✔","Be wary  of contract language that obligates you to perform unspecified scope item. Refer CL11j and CL11q. ",{"$f":"J4","v":0},null,null,null,null,null,1,2,3,4,5,6,7,8,9,10]
["CL93b","✔","If site conditions review indicates the potential for latent conditions (building and/or ground) exclude such conditions from scope of work.",{"$f":"J4","v":0},null,null,null,null,"Initials:"]
["CL93c","✔","In proposal to client, identify known or potential risks, and rather than \"excluding\" them, offer to add them to the scope once the risks can be assessed and priced. ISO 9001: 6.3, 8.2",{"$f":"J4","v":0},null,null,null,null,"Date:"]
["CL93d","✔","Except in genuine emergencies, do not undertake work outside of agreed sope without first obtaining written approval of the client's acceptance of the change.",{"$f":"J4","v":0},null,null,null,null,"Checklist signoff: I have verified that all tasks for this checklist are complete"]
["CL93e ","✔","Verify that Project team is logging time on all scope changes, and promptly processing Variation requests where appropriate. ISO 9001: 6.3, 8.2",{"$f":"J4","v":0},null,null,null,null,"By:",null,null,null,null,"Date:"]
["CL93f","✔","If client requires that latent conditions be included, offer to conduct a fixed sum feasibility study prior to entering a general contract for services.           ISO 9001: 6.3, 8.2",{"$f":"J4","v":0}]
["CL93g","✔","Maintain records of all scope changes. ISO 9001: 8.2",{"$f":"J4","v":0},null,null,null,null,"✔","1. All red-checked Tasks are required for this project by the firm.\n"]
["CL93h","✔","When client requests a scope change, or other conditions require it, check with all other consultants to provide client with a full picture of the cost & time consequences of the change.",{"$f":"J4","v":0},null,null,null,null,"ISO","2. If ISO 9001 is a project requirement, all Tasks with a blue ISO reference must be used."]
["CL93i","✔","Consider offering a separate service fee to manage coordination and integration of the work of other consultants. Refer CL11j, CL41-49 as needed and CL94. ",{"$f":"J4","v":0},null,null,null,null,"✔","3. Select optional Tasks (black check mark) by deleting checkmarks for Tasks not needed."]
[null,null,null,null,null,null,null,null,"[C]","4. If using the 2009 AIA Client and Architects Agreement, this is a CORE activity."]
[]
[]
["© 1986-2017 Building Technology Pty Ltd. All rights reserved."]

{"sheet":"CL94","index":73,"n_rows":19,"n_cols":19,"rows_kept":19,"cut":false,"hidden":false,"merged":[[0,4,0,6],[1,4,1,6],[2,4,2,6],[3,4,3,6]]}
["Type:",null,{"$f":"Planner!B1","v":"CHECKITx All"},null,{"$f":"Planner!D1","v":"Test"}]
["Stage:",null,"9. Management ","PLNR",{"$f":"Planner!D2","v":"Street Address"},null,null,null,"CHECKITx"]
["CL ID:",null,"CL94 Consultants Project Monitoring",null,{"$f":"Planner!D3","v":"City | State | Postcode"}]
["Project:",null,{"$f":"Planner!B2","v":"Project Number & Name "},"Loc.",{"$f":"Planner!B3","v":"Location of Project "},null,null,null,null,null,"Staff assignment for this checklist - See Guides Sheet Step 4 for instructions"]
[]
["Item No ","Use","Task description","Who?","Checking record - action required if any. When action is completed, Initial & date approval\n","Chk By","Date",null,"Checking record:"]
["CL94a","✔","Compare subconsultants'/consultants' progress drawings to architectural drawings with regard to site plan dimensions & structure location(s).",{"$f":"J4","v":0},null,null,null,null,null,1,2,3,4,5,6,7,8,9,10]
["CL94b","✔","Compare subconsultants'/consultants' progress drawings to architectural drawings with regard to structure, overall dimensions and grid lines.",{"$f":"J4","v":0},null,null,null,null,"Initials:"]
["CL94c","✔","Compare subconsultants'/consultants' progress drawings to architectural drawings with regard to general massing of elements.",{"$f":"J4","v":0},null,null,null,null,"Date:"]
["CL94d","✔","Compare subconsultants'/consultants' progress drawings to architectural drawings with regard to features of site critical to overall design.",{"$f":"J4","v":0},null,null,null,null,"Checklist signoff: I have verified that all tasks for this checklist are complete"]
["CL94e","✔","Verify that all questions from the design brief relating to engineering disciplines have been resolved (refer CL32, CL33). Keep notes. ",{"$f":"J4","v":0},null,null,null,null,"By:",null,null,null,null,"Date:"]
["CL94f","✔","Check consultant progress to agreed work plan in current period.",{"$f":"J4","v":0}]
["CL94g","✔","For consultants appointed by client, advise client of any delays in consultants meeting project program.",{"$f":"J4","v":0},null,null,null,null,"✔","1. All red-checked Tasks are required for this project by the firm."]
["CL94h","✔","Advise consultants appointed by architect of any delays in their meeting the project program.",{"$f":"J4","v":0},null,null,null,null,"ISO","2. If ISO 9001 is a project requirement, all Tasks with a blue ISO reference must be used."]
["CL94i","✔","Request assurance that delays can be made up before next critical program event. Monitor con- sultants' progress in making up program delays.",{"$f":"J4","v":0},null,null,null,null,"✔","3. Select optional Tasks (black check mark) by deleting checkmarks for Tasks not needed."]
["CL94j","✔","If assurances are not made, request meeting with all concerned parties to work out a resolution.",{"$f":"J4","v":0},null,null,null,null,"[C]","4. If using the 2009 AIA Client and Architects Agreement, this is a CORE activity."]
["CL94k","✔","Conduct interim content evaluation of consultants' preliminary output. Refer Stage 400 Coordination checklists as guides. ",{"$f":"J4","v":0}]
[]
["© 1986-2017 Building Technology Pty Ltd. All rights reserved."]

{"sheet":"CL95","index":74,"n_rows":23,"n_cols":19,"rows_kept":23,"cut":false,"hidden":false,"merged":[[0,4,0,6],[1,4,1,6],[2,4,2,6],[3,4,3,6]]}
["Type:",null,{"$f":"Planner!B1","v":"CHECKITx All"},null,{"$f":"Planner!D1","v":"Test"}]
["Stage:",null,"9. Management ","PLNR",{"$f":"Planner!D2","v":"Street Address"},null,null,null,"CHECKITx"]
["CL ID:",null,"CL95 Post-occupancy Evaluation (POE)",null,{"$f":"Planner!D3","v":"City | State | Postcode"}]
["Project:",null,{"$f":"Planner!B2","v":"Project Number & Name "},"Loc.",{"$f":"Planner!B3","v":"Location of Project "},null,null,null,null,null,"Staff assignment for this checklist - See Guides Sheet Step 4 for instructions"]
[]
["Item No ","Use","Task description","Who?","Checking record - action required if any. When action is completed, Initial & date approval\n","Chk By","Date",null,"Checking record:"]
["CL95a","✔","Recall & record a list of project requirements & goals: client, functionality, design, financial, environmental, schedule and profitability - and others as applicable.",{"$f":"J4","v":0},null,null,null,null,null,1,2,3,4,5,6,7,8,9,10]
["CL95b","✔","Determine the purpose of the POE - what should it achieve? Why are you doing it? Who will use the outcomes, and for what purposes?",{"$f":"J4","v":0},null,null,null,null,"Initials:"]
["CL95c","✔","Matching the above, identify a POE strategy. What wil be the approach? Wil it include physical review, performance analysis, user experience, benchmarking against other facilities, etc.?",{"$f":"J4","v":0},null,null,null,null,"Date:"]
["CL95d","✔","Prepare a brief for the POE, identifying focus, methods, tools, and resources required. Identify who will take ownership of each phase of the POE.",{"$f":"J4","v":0},null,null,null,null,"Checklist signoff: I have verified that all tasks for this checklist are complete"]
["CL95e","✔","Prepare a plan for carrying out the POE, including assessment of records, energy audits, security analysis, maintenance costs, etc., if appropriate to the POE goals.",{"$f":"J4","v":0},null,null,null,null,"By:",null,null,null,null,"Date:"]
["CL95f","✔","Consider using an existing POE template, such as Rate My Building (https://ratemybuilding.com.au)",{"$f":"J4","v":0}]
["CL95g","✔","If the POE is to include a user survey, design the survey and the building elements that the survey will cover. Keep the rating system simple and easy to complete and score.",{"$f":"J4","v":0},null,null,null,null,"✔","1. All red-checked Tasks are required for this project by the firm."]
["CL95h","✔","Decide on how the survey will be conducted eg. Online, using a tool such as Survey Monkey, or in paper format, or by interview. Multiple methods might be appropriate for different purposes.",{"$f":"J4","v":0},null,null,null,null,"ISO","2. If ISO 9001 is a project requirement, all Tasks with a blue ISO reference must be used."]
["CL95i","✔","If the POE is to include a \"walkthrough\", prepare a scorecard of items  to be reviewed, with a simple rating system.",{"$f":"J4","v":0},null,null,null,null,"✔","3. Select optional Tasks (black check mark) by deleting checkmarks for Tasks not needed."]
["CL95j","✔","Arrange for access to the facility and for completion of user surveys. ",{"$f":"J4","v":0},null,null,null,null,"[C]","4. If using the 2009 AIA Client and Architects Agreement, this is a CORE activity."]
["CL95k","✔","Conduct the survey, being mindful of the possible need to adjust the scope depending on feedback received as it progresses.",{"$f":"J4","v":0}]
["CL95l","✔","Analyse the findings and prepare a report that is aligned with the CL95b strategy.",{"$f":"J4","v":0}]
["CL95m","✔","Distribute report to stakeholders; request feedback as to its usefulness.",{"$f":"J4","v":0}]
["CL95n","✔","Taking all of the above into account, prepare and implement a plan \"going forward\" to modify facility management to optimise performance.",{"$f":"J4","v":0}]
["CL95o","✔","To learn more about POE, the classic work on this topic is Post-occupancy Evaluation, by W F E Preiser, H Z Rabinowitz & E T White (1988).",{"$f":"J4","v":0}]
[]
["© 1986-2017 Building Technology Pty Ltd. All rights reserved."]